Body Name,Body,Date,Department,Beneficiary,Summary of Purpose (SeRCOP),Amount,Merchant Code,Transaction Number,Supplier ID
Sandwell Metropolitan Borough Council,http://www.sandwell.gov.uk/info/200202/performance_and_spending/1079/payments_over_500,01-Oct-2022,Adults Social Care Capital,LIFT & ENGINEERING SERVICES LTD,Adults Social Care Capital,574.47,CIP - Fixtures & Fittings,2223P07_CR00001,77003962
Sandwell Metropolitan Borough Council,http://www.sandwell.gov.uk/info/200202/performance_and_spending/1079/payments_over_500,01-Oct-2022,Adults Social Care Capital,LIFT & ENGINEERING SERVICES LTD,Adults Social Care Capital,795.23,CIP - Fixtures & Fittings,2223P07_CR00002,77003962
Sandwell Metropolitan Borough Council,http://www.sandwell.gov.uk/info/200202/performance_and_spending/1079/payments_over_500,01-Oct-2022,Adults Social Care Capital,LIFT & ENGINEERING SERVICES LTD,Adults Social Care Capital,1220.55,CIP - Fixtures & Fittings,2223P07_CR00003,77003962
Sandwell Metropolitan Borough Council,http://www.sandwell.gov.uk/info/200202/performance_and_spending/1079/payments_over_500,06-Oct-2022,Adults Social Care Capital,DOLPHIN LIFTS MIDLANDS LTD,Adults Social Care Capital,1300.00,Deferred Charges/Grant Payments,2223P07_CR00004,123852
Sandwell Metropolitan Borough Council,http://www.sandwell.gov.uk/info/200202/performance_and_spending/1079/payments_over_500,24-Oct-2022,Adults Social Care Capital,DOLPHIN LIFTS MIDLANDS LTD,Adults Social Care Capital,1426.66,Deferred Charges/Grant Payments,2223P07_CR00005,123852
Sandwell Metropolitan Borough Council,http://www.sandwell.gov.uk/info/200202/performance_and_spending/1079/payments_over_500,13-Oct-2022,Adults Social Care Capital,DOLPHIN LIFTS MIDLANDS LTD,Adults Social Care Capital,3263.60,Deferred Charges/Grant Payments,2223P07_CR00006,123852
Sandwell Metropolitan Borough Council,http://www.sandwell.gov.uk/info/200202/performance_and_spending/1079/payments_over_500,01-Oct-2022,Adults Social Care Capital,RIDGE & PARTNERS LLP,Adults Social Care Capital,5300.00,"CIP - New Construction,Conversion, Enhancement & Reno",2223P07_CR00007,134994
Sandwell Metropolitan Borough Council,http://www.sandwell.gov.uk/info/200202/performance_and_spending/1079/payments_over_500,13-Oct-2022,Adults Social Care Capital,DOLPHIN LIFTS MIDLANDS LTD,Adults Social Care Capital,5424.32,Deferred Charges/Grant Payments,2223P07_CR00008,123852
Sandwell Metropolitan Borough Council,http://www.sandwell.gov.uk/info/200202/performance_and_spending/1079/payments_over_500,01-Oct-2022,Adults Social Care Capital,AXIS EUROPE PLC                                          ,Adults Social Care Capital,5619.94,Deferred Charges/Grant Payments,2223P07_CR00009,64946
Sandwell Metropolitan Borough Council,http://www.sandwell.gov.uk/info/200202/performance_and_spending/1079/payments_over_500,01-Oct-2022,Adults Social Care Capital,PROFILE SECURITY SERVICES LTD,Adults Social Care Capital,5882.00,Security,2223P07_CR00010,131253
Sandwell Metropolitan Borough Council,http://www.sandwell.gov.uk/info/200202/performance_and_spending/1079/payments_over_500,06-Oct-2022,Adults Social Care Capital,DOLPHIN LIFTS MIDLANDS LTD,Adults Social Care Capital,6546.87,Deferred Charges/Grant Payments,2223P07_CR00011,123852
Sandwell Metropolitan Borough Council,http://www.sandwell.gov.uk/info/200202/performance_and_spending/1079/payments_over_500,06-Oct-2022,Adults Social Care Capital,AXIS EUROPE PLC                                          ,Adults Social Care Capital,6735.37,Deferred Charges/Grant Payments,2223P07_CR00012,64946
Sandwell Metropolitan Borough Council,http://www.sandwell.gov.uk/info/200202/performance_and_spending/1079/payments_over_500,06-Oct-2022,Adults Social Care Capital,DLM BUILDING & MAINTENANCE LTD,Adults Social Care Capital,6920.22,Deferred Charges/Grant Payments,2223P07_CR00013,137596
Sandwell Metropolitan Borough Council,http://www.sandwell.gov.uk/info/200202/performance_and_spending/1079/payments_over_500,13-Oct-2022,Adults Social Care Capital,PR PROPERTY MAINTENANCE,Adults Social Care Capital,8167.22,Deferred Charges/Grant Payments,2223P07_CR00014,33836
Sandwell Metropolitan Borough Council,http://www.sandwell.gov.uk/info/200202/performance_and_spending/1079/payments_over_500,05-Oct-2022,Adults Social Care Capital,GRESHAM OFFICE FURNITURE LTD,Adults Social Care Capital,17172.85,CIP - Fixtures & Fittings,2223P07_CR00015,93465
Sandwell Metropolitan Borough Council,http://www.sandwell.gov.uk/info/200202/performance_and_spending/1079/payments_over_500,18-Oct-2022,Adults Social Care Capital,LONDON BOROUGH OF CROYDON COMMUNITY EQUIPMENT SERVICES,Adults Social Care Capital,19338.63,Equipment & Furniture ,2223P07_CR00016,128573
Sandwell Metropolitan Borough Council,http://www.sandwell.gov.uk/info/200202/performance_and_spending/1079/payments_over_500,01-Oct-2022,Adults Social Care Capital,WILLMOTT DIXON CONSTRUCTION LIMITED,Adults Social Care Capital,177927.94,"CIP - New Construction,Conversion, Enhancement & Reno",2223P07_CR00017,34081
Sandwell Metropolitan Borough Council,http://www.sandwell.gov.uk/info/200202/performance_and_spending/1079/payments_over_500,01-Oct-2022,Adults Social Care Capital,AA PROJECTS LIMITED,Adults Social Care Capital,3480.00,Deferred Charges/Grant Payments,2223P07_CR00018,116074
Sandwell Metropolitan Borough Council,http://www.sandwell.gov.uk/info/200202/performance_and_spending/1079/payments_over_500,21-Oct-2022,Adults Social Care Capital,DESIGN SYNTAX LIMITED,Adults Social Care Capital,21000.00,Deferred Charges/Grant Payments,2223P07_CR00019,106226
Sandwell Metropolitan Borough Council,http://www.sandwell.gov.uk/info/200202/performance_and_spending/1079/payments_over_500,01-Oct-2022,Adults Social Care Capital,JOHN GILLESPIE CONTRACTORS LTD,Adults Social Care Capital,17182.85,Deferred Charges/Grant Payments,2223P07_CR00020,82566
Sandwell Metropolitan Borough Council,http://www.sandwell.gov.uk/info/200202/performance_and_spending/1079/payments_over_500,01-Oct-2022,Adults Social Care Capital,TDF DESIGN LIMITED,Adults Social Care Capital,6000.00,Deferred Charges/Grant Payments,2223P07_CR00021,10320
Sandwell Metropolitan Borough Council,http://www.sandwell.gov.uk/info/200202/performance_and_spending/1079/payments_over_500,01-Oct-2022,Adults Social Care Capital,TDF DESIGN LIMITED,Adults Social Care Capital,20045.81,Deferred Charges/Grant Payments,2223P07_CR00022,10320
Sandwell Metropolitan Borough Council,http://www.sandwell.gov.uk/info/200202/performance_and_spending/1079/payments_over_500,01-Oct-2022,Adults Social Care Capital,TDF DESIGN LIMITED,Adults Social Care Capital,12000.00,Deferred Charges/Grant Payments,2223P07_CR00023,10320
Sandwell Metropolitan Borough Council,http://www.sandwell.gov.uk/info/200202/performance_and_spending/1079/payments_over_500,20-Oct-2022,Adults Social Care Capital,B S VIRDEE,Adults Social Care Capital,6000.00,Deferred Charges/Grant Payments,2223P07_CR00024,16907
Sandwell Metropolitan Borough Council,http://www.sandwell.gov.uk/info/200202/performance_and_spending/1079/payments_over_500,17-Oct-2022,Adults Social Care Capital,PARVINDER SINGH.,Adults Social Care Capital,6345.00,Deferred Charges/Grant Payments,2223P07_CR00025,164062
Sandwell Metropolitan Borough Council,http://www.sandwell.gov.uk/info/200202/performance_and_spending/1079/payments_over_500,19-Oct-2022,Childrens Services,DIRECTION TRAINING & MANAGEMENT,Childrens Services,500.00,Externally Purchased Professional Services ,2223P07_CR00026,01727395
Sandwell Metropolitan Borough Council,http://www.sandwell.gov.uk/info/200202/performance_and_spending/1079/payments_over_500,18-Oct-2022,Childrens Services,UPLANDS MANOR PRIMARY     ,Childrens Services,500.00,Grants,2223P07_CR00027,04024322
Sandwell Metropolitan Borough Council,http://www.sandwell.gov.uk/info/200202/performance_and_spending/1079/payments_over_500,18-Oct-2022,Childrens Services,UPLANDS MANOR PRIMARY      ,Childrens Services,500.00,Grants,2223P07_CR00028,04024322
Sandwell Metropolitan Borough Council,http://www.sandwell.gov.uk/info/200202/performance_and_spending/1079/payments_over_500,01-Oct-2022,Childrens Services,TOTALENERGIES GAS & POWER LTD,Childrens Services,519.56,Electricity,2223P07_CR00029,107605
Sandwell Metropolitan Borough Council,http://www.sandwell.gov.uk/info/200202/performance_and_spending/1079/payments_over_500,05-Oct-2022,Childrens Services,NORTH SMETHWICK DEVELOPMENT TRUST,Childrens Services,525.00,Hire of Facilities,2223P07_CR00030,01346623
Sandwell Metropolitan Borough Council,http://www.sandwell.gov.uk/info/200202/performance_and_spending/1079/payments_over_500,16-Oct-2022,Childrens Services,TOTALENERGIES GAS & POWER LTD,Childrens Services,539.58,Electricity,2223P07_CR00031,107605
Sandwell Metropolitan Borough Council,http://www.sandwell.gov.uk/info/200202/performance_and_spending/1079/payments_over_500,01-Oct-2022,Childrens Services,BLAKEMORE FOOD SERVICE LTD,Childrens Services,540.57,Catering Provisions,2223P07_CR00032,2518
Sandwell Metropolitan Borough Council,http://www.sandwell.gov.uk/info/200202/performance_and_spending/1079/payments_over_500,01-Oct-2022,Childrens Services,BLAKEMORE FOOD SERVICE LTD,Childrens Services,542.78,Catering Provisions,2223P07_CR00033,2518
Sandwell Metropolitan Borough Council,http://www.sandwell.gov.uk/info/200202/performance_and_spending/1079/payments_over_500,18-Oct-2022,Childrens Services,TOTALENERGIES GAS & POWER LTD,Childrens Services,568.39,Gas,2223P07_CR00034,107605
Sandwell Metropolitan Borough Council,http://www.sandwell.gov.uk/info/200202/performance_and_spending/1079/payments_over_500,01-Oct-2022,Childrens Services,BLAKEMORE FOOD SERVICE LTD,Childrens Services,569.76,Catering Provisions,2223P07_CR00035,2518
Sandwell Metropolitan Borough Council,http://www.sandwell.gov.uk/info/200202/performance_and_spending/1079/payments_over_500,18-Oct-2022,Childrens Services,TOTALENERGIES GAS & POWER LTD,Childrens Services,570.41,Gas,2223P07_CR00036,107605
Sandwell Metropolitan Borough Council,http://www.sandwell.gov.uk/info/200202/performance_and_spending/1079/payments_over_500,01-Oct-2022,Childrens Services,TOPPS MANAGEMENT & SUPPORT SERVICES LTD,Childrens Services,578.30,Externally Purchased Professional Services ,2223P07_CR00037,68846
Sandwell Metropolitan Borough Council,http://www.sandwell.gov.uk/info/200202/performance_and_spending/1079/payments_over_500,18-Oct-2022,Childrens Services,A GREENER CHILDHOOD,Childrens Services,585.00,Externally Purchased Professional Services ,2223P07_CR00038,155772
Sandwell Metropolitan Borough Council,http://www.sandwell.gov.uk/info/200202/performance_and_spending/1079/payments_over_500,12-Oct-2022,Childrens Services,MOVECORP HOLDINGS LTD,Childrens Services,585.00,Grants,2223P07_CR00039,152623
Sandwell Metropolitan Borough Council,http://www.sandwell.gov.uk/info/200202/performance_and_spending/1079/payments_over_500,20-Oct-2022,Childrens Services,UPSHOT SYSTEMS CIC,Childrens Services,595.00,Externally Purchased Professional Services ,2223P07_CR00040,150986
Sandwell Metropolitan Borough Council,http://www.sandwell.gov.uk/info/200202/performance_and_spending/1079/payments_over_500,05-Oct-2022,Childrens Services,BAKER ROSS LIMITED,Childrens Services,595.89,Advertising & Publicity,2223P07_CR00041,01269861
Sandwell Metropolitan Borough Council,http://www.sandwell.gov.uk/info/200202/performance_and_spending/1079/payments_over_500,01-Oct-2022,Childrens Services,NEW BEGINNINGS COMMUNITY,Childrens Services,600.00,Hire of Facilities,2223P07_CR00042,155886
Sandwell Metropolitan Borough Council,http://www.sandwell.gov.uk/info/200202/performance_and_spending/1079/payments_over_500,18-Oct-2022,Childrens Services,THOMAS CHARLES FACILITIES & MAINTENANCE LTD,Childrens Services,600.00,Security,2223P07_CR00043,114170
Sandwell Metropolitan Borough Council,http://www.sandwell.gov.uk/info/200202/performance_and_spending/1079/payments_over_500,01-Oct-2022,Childrens Services,HEART & SOUL COMMUNITY CIC LTD,Childrens Services,648.26,Externally Purchased Professional Services ,2223P07_CR00044,133378
Sandwell Metropolitan Borough Council,http://www.sandwell.gov.uk/info/200202/performance_and_spending/1079/payments_over_500,01-Oct-2022,Childrens Services,INGESTRE ORANGERY AND GARDENS,Childrens Services,650.00,Materials & Consumables,2223P07_CR00045,127331
Sandwell Metropolitan Borough Council,http://www.sandwell.gov.uk/info/200202/performance_and_spending/1079/payments_over_500,12-Oct-2022,Childrens Services,CHUBB FIRE & SECURITY LIMITED t/a CHUBB ELECTRONIC SECURITY,Childrens Services,655.03,Security,2223P07_CR00046,81343
Sandwell Metropolitan Borough Council,http://www.sandwell.gov.uk/info/200202/performance_and_spending/1079/payments_over_500,03-Oct-2022,Childrens Services,OCR,Childrens Services,676.00,Externally Purchased Professional Services ,2223P07_CR00047,01620492
Sandwell Metropolitan Borough Council,http://www.sandwell.gov.uk/info/200202/performance_and_spending/1079/payments_over_500,01-Oct-2022,Childrens Services,MIDLAND NEWS ASSOCIATION LTD,Childrens Services,689.95,Advertising & Publicity,2223P07_CR00048,01038645
Sandwell Metropolitan Borough Council,http://www.sandwell.gov.uk/info/200202/performance_and_spending/1079/payments_over_500,01-Oct-2022,Childrens Services,OSBORNE TECHNOLOGIES LTD,Childrens Services,690.00,Security,2223P07_CR00049,129523
Sandwell Metropolitan Borough Council,http://www.sandwell.gov.uk/info/200202/performance_and_spending/1079/payments_over_500,01-Oct-2022,Childrens Services,NEW BEGINNINGS COMMUNITY,Childrens Services,700.00,Hire of Facilities,2223P07_CR00050,155886
Sandwell Metropolitan Borough Council,http://www.sandwell.gov.uk/info/200202/performance_and_spending/1079/payments_over_500,01-Oct-2022,Childrens Services,NEW BEGINNINGS COMMUNITY,Childrens Services,700.00,Hire of Facilities,2223P07_CR00051,155886
Sandwell Metropolitan Borough Council,http://www.sandwell.gov.uk/info/200202/performance_and_spending/1079/payments_over_500,01-Oct-2022,Childrens Services,THIS IS FOCUS LTD,Childrens Services,700.00,ICT ,2223P07_CR00052,121794
Sandwell Metropolitan Borough Council,http://www.sandwell.gov.uk/info/200202/performance_and_spending/1079/payments_over_500,01-Oct-2022,Childrens Services,NEWAVE LTD,Childrens Services,718.20,Agency Staff,2223P07_CR00053,101666
Sandwell Metropolitan Borough Council,http://www.sandwell.gov.uk/info/200202/performance_and_spending/1079/payments_over_500,01-Oct-2022,Childrens Services,4 COMMUNITY TRUST CIC,Childrens Services,739.92,Externally Purchased Professional Services ,2223P07_CR00054,137880
Sandwell Metropolitan Borough Council,http://www.sandwell.gov.uk/info/200202/performance_and_spending/1079/payments_over_500,01-Oct-2022,Childrens Services,BRIDGE CONSTRUCTION LTD,Childrens Services,746.52,Externally Purchased Professional Services ,2223P07_CR00055,127570
Sandwell Metropolitan Borough Council,http://www.sandwell.gov.uk/info/200202/performance_and_spending/1079/payments_over_500,01-Oct-2022,Childrens Services,BRIDGE CONSTRUCTION LTD,Childrens Services,746.52,Externally Purchased Professional Services ,2223P07_CR00056,127570
Sandwell Metropolitan Borough Council,http://www.sandwell.gov.uk/info/200202/performance_and_spending/1079/payments_over_500,01-Oct-2022,Childrens Services,BRIDGE CONSTRUCTION LTD,Childrens Services,746.52,Externally Purchased Professional Services ,2223P07_CR00057,127570
Sandwell Metropolitan Borough Council,http://www.sandwell.gov.uk/info/200202/performance_and_spending/1079/payments_over_500,01-Oct-2022,Childrens Services,EATON VALLEY PRIMARY SCHOOL,Childrens Services,746.52,Externally Purchased Professional Services ,2223P07_CR00058,88755
Sandwell Metropolitan Borough Council,http://www.sandwell.gov.uk/info/200202/performance_and_spending/1079/payments_over_500,01-Oct-2022,Childrens Services,EATON VALLEY PRIMARY SCHOOL,Childrens Services,746.52,Externally Purchased Professional Services ,2223P07_CR00059,88755
Sandwell Metropolitan Borough Council,http://www.sandwell.gov.uk/info/200202/performance_and_spending/1079/payments_over_500,01-Oct-2022,Childrens Services,JOLLIMAN ESSENTIALS LIMITED,Childrens Services,746.52,Externally Purchased Professional Services ,2223P07_CR00060,142689
Sandwell Metropolitan Borough Council,http://www.sandwell.gov.uk/info/200202/performance_and_spending/1079/payments_over_500,01-Oct-2022,Childrens Services,TINY TOEZ LIMITED,Childrens Services,746.52,Externally Purchased Professional Services ,2223P07_CR00061,23618
Sandwell Metropolitan Borough Council,http://www.sandwell.gov.uk/info/200202/performance_and_spending/1079/payments_over_500,01-Oct-2022,Childrens Services,TINY TOEZ LIMITED,Childrens Services,746.52,Externally Purchased Professional Services ,2223P07_CR00062,23618
Sandwell Metropolitan Borough Council,http://www.sandwell.gov.uk/info/200202/performance_and_spending/1079/payments_over_500,01-Oct-2022,Childrens Services,TINY TOEZ LIMITED,Childrens Services,746.52,Externally Purchased Professional Services ,2223P07_CR00063,23618
Sandwell Metropolitan Borough Council,http://www.sandwell.gov.uk/info/200202/performance_and_spending/1079/payments_over_500,01-Oct-2022,Childrens Services,NEWAVE LTD,Childrens Services,751.10,Agency Staff,2223P07_CR00064,101666
Sandwell Metropolitan Borough Council,http://www.sandwell.gov.uk/info/200202/performance_and_spending/1079/payments_over_500,18-Oct-2022,Childrens Services,TOTALENERGIES GAS & POWER LTD,Childrens Services,760.04,Gas,2223P07_CR00065,107605
Sandwell Metropolitan Borough Council,http://www.sandwell.gov.uk/info/200202/performance_and_spending/1079/payments_over_500,01-Oct-2022,Childrens Services,THOMAS CHARLES FACILITIES & MAINTENANCE LTD,Childrens Services,780.00,Contract Cleaning,2223P07_CR00066,114170
Sandwell Metropolitan Borough Council,http://www.sandwell.gov.uk/info/200202/performance_and_spending/1079/payments_over_500,12-Oct-2022,Childrens Services,LEARNPLAY FOUNDATION LTD,Childrens Services,800.00,Externally Purchased Professional Services ,2223P07_CR00067,86525
Sandwell Metropolitan Borough Council,http://www.sandwell.gov.uk/info/200202/performance_and_spending/1079/payments_over_500,01-Oct-2022,Childrens Services,ADVENTURE KIT UK LTD,Childrens Services,809.00,Materials & Consumables,2223P07_CR00068,01639399
Sandwell Metropolitan Borough Council,http://www.sandwell.gov.uk/info/200202/performance_and_spending/1079/payments_over_500,01-Oct-2022,Childrens Services,SITEWATCH FIRE AND SURVEILLANCE LIMITED,Childrens Services,811.02,Security,2223P07_CR00069,55288
Sandwell Metropolitan Borough Council,http://www.sandwell.gov.uk/info/200202/performance_and_spending/1079/payments_over_500,01-Oct-2022,Childrens Services,NEWAVE LTD,Childrens Services,820.60,Agency Staff,2223P07_CR00070,101666
Sandwell Metropolitan Borough Council,http://www.sandwell.gov.uk/info/200202/performance_and_spending/1079/payments_over_500,01-Oct-2022,Childrens Services,RENAISSANCE CREATIVE DESIGN & PRINT LTD,Childrens Services,845.00,Advertising & Publicity,2223P07_CR00071,97376
Sandwell Metropolitan Borough Council,http://www.sandwell.gov.uk/info/200202/performance_and_spending/1079/payments_over_500,10-Oct-2022,Childrens Services,EURO SHAF TRAINING SERVICES LIMITED,Childrens Services,875.00,Externally Purchased Professional Services ,2223P07_CR00072,76260
Sandwell Metropolitan Borough Council,http://www.sandwell.gov.uk/info/200202/performance_and_spending/1079/payments_over_500,20-Oct-2022,Childrens Services,FIRST RESPONSE (FIRST AID) LTD,Childrens Services,875.00,Externally Purchased Professional Services ,2223P07_CR00073,57372
Sandwell Metropolitan Borough Council,http://www.sandwell.gov.uk/info/200202/performance_and_spending/1079/payments_over_500,01-Oct-2022,Childrens Services,THOMAS CHARLES FACILITIES & MAINTENANCE LTD,Childrens Services,877.50,Contract Cleaning,2223P07_CR00074,114170
Sandwell Metropolitan Borough Council,http://www.sandwell.gov.uk/info/200202/performance_and_spending/1079/payments_over_500,16-Oct-2022,Childrens Services,TOTALENERGIES GAS & POWER LTD,Childrens Services,897.87,Electricity,2223P07_CR00075,107605
Sandwell Metropolitan Borough Council,http://www.sandwell.gov.uk/info/200202/performance_and_spending/1079/payments_over_500,01-Oct-2022,Childrens Services,GRACE DESIGNS,Childrens Services,900.00,Advertising & Publicity,2223P07_CR00076,163631
Sandwell Metropolitan Borough Council,http://www.sandwell.gov.uk/info/200202/performance_and_spending/1079/payments_over_500,01-Oct-2022,Childrens Services,GRACE DESIGNS,Childrens Services,900.00,Advertising & Publicity,2223P07_CR00077,163631
Sandwell Metropolitan Borough Council,http://www.sandwell.gov.uk/info/200202/performance_and_spending/1079/payments_over_500,01-Oct-2022,Childrens Services,TOTALENERGIES GAS & POWER LTD,Childrens Services,912.77,Electricity,2223P07_CR00078,107605
Sandwell Metropolitan Borough Council,http://www.sandwell.gov.uk/info/200202/performance_and_spending/1079/payments_over_500,01-Oct-2022,Childrens Services,AVANTI GAS LIMITED,Childrens Services,915.90,Gas,2223P07_CR00079,60069
Sandwell Metropolitan Borough Council,http://www.sandwell.gov.uk/info/200202/performance_and_spending/1079/payments_over_500,01-Oct-2022,Childrens Services,TOTALENERGIES GAS & POWER LTD,Childrens Services,927.28,Electricity,2223P07_CR00080,107605
Sandwell Metropolitan Borough Council,http://www.sandwell.gov.uk/info/200202/performance_and_spending/1079/payments_over_500,01-Oct-2022,Childrens Services,BRANDHALL PRIMARY SCHOOL,Childrens Services,941.16,Externally Purchased Professional Services ,2223P07_CR00081,04011709
Sandwell Metropolitan Borough Council,http://www.sandwell.gov.uk/info/200202/performance_and_spending/1079/payments_over_500,01-Oct-2022,Childrens Services,WELL LIFE PHYSIOTHERAPY,Childrens Services,941.16,Externally Purchased Professional Services ,2223P07_CR00082,149594
Sandwell Metropolitan Borough Council,http://www.sandwell.gov.uk/info/200202/performance_and_spending/1079/payments_over_500,01-Oct-2022,Childrens Services,WELL LIFE PHYSIOTHERAPY,Childrens Services,941.16,Externally Purchased Professional Services ,2223P07_CR00083,149594
Sandwell Metropolitan Borough Council,http://www.sandwell.gov.uk/info/200202/performance_and_spending/1079/payments_over_500,19-Oct-2022,Childrens Services,TWINKL LTD,Childrens Services,949.00,Externally Purchased Professional Services ,2223P07_CR00084,119941
Sandwell Metropolitan Borough Council,http://www.sandwell.gov.uk/info/200202/performance_and_spending/1079/payments_over_500,01-Oct-2022,Childrens Services,NCFE,Childrens Services,995.00,Externally Purchased Professional Services ,2223P07_CR00085,6230
Sandwell Metropolitan Borough Council,http://www.sandwell.gov.uk/info/200202/performance_and_spending/1079/payments_over_500,20-Oct-2022,Childrens Services,TOPPS MANAGEMENT & SUPPORT SERVICES LTD,Childrens Services,996.94,Externally Purchased Professional Services ,2223P07_CR00086,68846
Sandwell Metropolitan Borough Council,http://www.sandwell.gov.uk/info/200202/performance_and_spending/1079/payments_over_500,01-Oct-2022,Childrens Services,CHRIST CHURCH C OF E PRIMARY SCHOOL,Childrens Services,1000.00,Grants,2223P07_CR00087,1705
Sandwell Metropolitan Borough Council,http://www.sandwell.gov.uk/info/200202/performance_and_spending/1079/payments_over_500,01-Oct-2022,Childrens Services,DIRECTION TRAINING & MANAGEMENT,Childrens Services,1000.00,Externally Purchased Professional Services ,2223P07_CR00088,01727395
Sandwell Metropolitan Borough Council,http://www.sandwell.gov.uk/info/200202/performance_and_spending/1079/payments_over_500,01-Oct-2022,Childrens Services,BRANDHALL PRIMARY SCHOOL,Childrens Services,1010.75,Externally Purchased Professional Services ,2223P07_CR00089,04011709
Sandwell Metropolitan Borough Council,http://www.sandwell.gov.uk/info/200202/performance_and_spending/1079/payments_over_500,01-Oct-2022,Childrens Services,SEDDON CONSTRUCTION LIMITED,Childrens Services,1010.75,Externally Purchased Professional Services ,2223P07_CR00090,132999
Sandwell Metropolitan Borough Council,http://www.sandwell.gov.uk/info/200202/performance_and_spending/1079/payments_over_500,01-Oct-2022,Childrens Services,SEDDON CONSTRUCTION LIMITED,Childrens Services,1044.28,Externally Purchased Professional Services ,2223P07_CR00091,132999
Sandwell Metropolitan Borough Council,http://www.sandwell.gov.uk/info/200202/performance_and_spending/1079/payments_over_500,01-Oct-2022,Childrens Services,HEART & SOUL COMMUNITY CIC LTD,Childrens Services,1048.24,Externally Purchased Professional Services ,2223P07_CR00092,133378
Sandwell Metropolitan Borough Council,http://www.sandwell.gov.uk/info/200202/performance_and_spending/1079/payments_over_500,01-Oct-2022,Childrens Services,HEART & SOUL COMMUNITY CIC LTD,Childrens Services,1048.24,Externally Purchased Professional Services ,2223P07_CR00093,133378
Sandwell Metropolitan Borough Council,http://www.sandwell.gov.uk/info/200202/performance_and_spending/1079/payments_over_500,01-Oct-2022,Childrens Services,HEART & SOUL COMMUNITY CIC LTD,Childrens Services,1048.24,Externally Purchased Professional Services ,2223P07_CR00094,133378
Sandwell Metropolitan Borough Council,http://www.sandwell.gov.uk/info/200202/performance_and_spending/1079/payments_over_500,01-Oct-2022,Childrens Services,HEART & SOUL COMMUNITY CIC LTD,Childrens Services,1048.24,Externally Purchased Professional Services ,2223P07_CR00095,133378
Sandwell Metropolitan Borough Council,http://www.sandwell.gov.uk/info/200202/performance_and_spending/1079/payments_over_500,01-Oct-2022,Childrens Services,HEART & SOUL COMMUNITY CIC LTD,Childrens Services,1048.24,Externally Purchased Professional Services ,2223P07_CR00096,133378
Sandwell Metropolitan Borough Council,http://www.sandwell.gov.uk/info/200202/performance_and_spending/1079/payments_over_500,01-Oct-2022,Childrens Services,HEART & SOUL COMMUNITY CIC LTD,Childrens Services,1048.24,Externally Purchased Professional Services ,2223P07_CR00097,133378
Sandwell Metropolitan Borough Council,http://www.sandwell.gov.uk/info/200202/performance_and_spending/1079/payments_over_500,18-Oct-2022,Childrens Services,RICHARDS CCTV,Childrens Services,1050.00,Security,2223P07_CR00098,01665737
Sandwell Metropolitan Borough Council,http://www.sandwell.gov.uk/info/200202/performance_and_spending/1079/payments_over_500,01-Oct-2022,Childrens Services,4 COMMUNITY TRUST CIC,Childrens Services,1085.21,Externally Purchased Professional Services ,2223P07_CR00099,137880
Sandwell Metropolitan Borough Council,http://www.sandwell.gov.uk/info/200202/performance_and_spending/1079/payments_over_500,01-Oct-2022,Childrens Services,DRYWALL STEEL SECTIONS LTD,Childrens Services,1085.21,Externally Purchased Professional Services ,2223P07_CR00100,132994
Sandwell Metropolitan Borough Council,http://www.sandwell.gov.uk/info/200202/performance_and_spending/1079/payments_over_500,01-Oct-2022,Childrens Services,EATON VALLEY PRIMARY SCHOOL,Childrens Services,1085.21,Externally Purchased Professional Services ,2223P07_CR00101,88755
Sandwell Metropolitan Borough Council,http://www.sandwell.gov.uk/info/200202/performance_and_spending/1079/payments_over_500,01-Oct-2022,Childrens Services,SKILLS WORK AND ENTERPRISE DEVELOPMENT AGENCY LTD,Childrens Services,1085.21,Externally Purchased Professional Services ,2223P07_CR00102,5092
Sandwell Metropolitan Borough Council,http://www.sandwell.gov.uk/info/200202/performance_and_spending/1079/payments_over_500,07-Oct-2022,Childrens Services,SKILLS WORK AND ENTERPRISE DEVELOPMENT AGENCY LTD,Childrens Services,1085.21,Externally Purchased Professional Services ,2223P07_CR00103,5092
Sandwell Metropolitan Borough Council,http://www.sandwell.gov.uk/info/200202/performance_and_spending/1079/payments_over_500,10-Oct-2022,Childrens Services,NEWVISION PROMOTIONS LTD,Childrens Services,1180.00,"Printing, Stationery & General Office Expenses",2223P07_CR00104,01423582
Sandwell Metropolitan Borough Council,http://www.sandwell.gov.uk/info/200202/performance_and_spending/1079/payments_over_500,12-Oct-2022,Childrens Services,BIDDLE & WEBB LTD,Childrens Services,1200.00,Externally Purchased Professional Services ,2223P07_CR00105,63724
Sandwell Metropolitan Borough Council,http://www.sandwell.gov.uk/info/200202/performance_and_spending/1079/payments_over_500,12-Oct-2022,Childrens Services,THE GIFT VOUCHER SHOP LIMITED,Childrens Services,1210.30,Operational Services ,2223P07_CR00106,111545
Sandwell Metropolitan Borough Council,http://www.sandwell.gov.uk/info/200202/performance_and_spending/1079/payments_over_500,01-Oct-2022,Childrens Services,SIPS EDUCATION LTD,Childrens Services,1211.42,Catering Equipment,2223P07_CR00107,110784
Sandwell Metropolitan Borough Council,http://www.sandwell.gov.uk/info/200202/performance_and_spending/1079/payments_over_500,01-Oct-2022,Childrens Services,NEWAVE LTD,Childrens Services,1241.44,Agency Staff,2223P07_CR00108,101666
Sandwell Metropolitan Borough Council,http://www.sandwell.gov.uk/info/200202/performance_and_spending/1079/payments_over_500,01-Oct-2022,Childrens Services,LEARNING INTO EMPLOYMENT ACADEMY LTD,Childrens Services,1242.99,Externally Purchased Professional Services ,2223P07_CR00109,147427
Sandwell Metropolitan Borough Council,http://www.sandwell.gov.uk/info/200202/performance_and_spending/1079/payments_over_500,01-Oct-2022,Childrens Services,LEARNING INTO EMPLOYMENT ACADEMY LTD,Childrens Services,1242.99,Externally Purchased Professional Services ,2223P07_CR00110,147427
Sandwell Metropolitan Borough Council,http://www.sandwell.gov.uk/info/200202/performance_and_spending/1079/payments_over_500,01-Oct-2022,Childrens Services,LEARNING INTO EMPLOYMENT ACADEMY LTD,Childrens Services,1242.99,Externally Purchased Professional Services ,2223P07_CR00111,147427
Sandwell Metropolitan Borough Council,http://www.sandwell.gov.uk/info/200202/performance_and_spending/1079/payments_over_500,19-Oct-2022,Childrens Services,TOTALENERGIES GAS & POWER LTD,Childrens Services,1264.85,Electricity,2223P07_CR00112,107605
Sandwell Metropolitan Borough Council,http://www.sandwell.gov.uk/info/200202/performance_and_spending/1079/payments_over_500,07-Oct-2022,Childrens Services,WATER PLUS SELECT LIMITED,Childrens Services,1271.22,Water Services,2223P07_CR00113,129644
Sandwell Metropolitan Borough Council,http://www.sandwell.gov.uk/info/200202/performance_and_spending/1079/payments_over_500,20-Oct-2022,Childrens Services,LYNNER CONSULTING LTD,Childrens Services,1300.00,Externally Purchased Professional Services ,2223P07_CR00114,133003
Sandwell Metropolitan Borough Council,http://www.sandwell.gov.uk/info/200202/performance_and_spending/1079/payments_over_500,03-Oct-2022,Childrens Services,REFUGEE AND MIGRANT CENTRE LTD,Childrens Services,1331.22,Grants,2223P07_CR00115,163206
Sandwell Metropolitan Borough Council,http://www.sandwell.gov.uk/info/200202/performance_and_spending/1079/payments_over_500,01-Oct-2022,Childrens Services,NEWAVE LTD,Childrens Services,1344.00,Agency Staff,2223P07_CR00116,101666
Sandwell Metropolitan Borough Council,http://www.sandwell.gov.uk/info/200202/performance_and_spending/1079/payments_over_500,06-Oct-2022,Childrens Services,EON NEXT ENERGY LTD,Childrens Services,1359.26,Electricity,2223P07_CR00117,149566
Sandwell Metropolitan Borough Council,http://www.sandwell.gov.uk/info/200202/performance_and_spending/1079/payments_over_500,05-Oct-2022,Childrens Services,BAINS TRAVEL,Childrens Services,1372.80,Public Transport,2223P07_CR00118,06002298
Sandwell Metropolitan Borough Council,http://www.sandwell.gov.uk/info/200202/performance_and_spending/1079/payments_over_500,12-Oct-2022,Childrens Services,THE GIFT VOUCHER SHOP LIMITED,Childrens Services,1396.50,Operational Services ,2223P07_CR00119,111545
Sandwell Metropolitan Borough Council,http://www.sandwell.gov.uk/info/200202/performance_and_spending/1079/payments_over_500,12-Oct-2022,Childrens Services,THE GIFT VOUCHER SHOP LIMITED,Childrens Services,1470.00,Operational Services ,2223P07_CR00120,111545
Sandwell Metropolitan Borough Council,http://www.sandwell.gov.uk/info/200202/performance_and_spending/1079/payments_over_500,12-Oct-2022,Childrens Services,THE GIFT VOUCHER SHOP LIMITED,Childrens Services,1470.00,Operational Services ,2223P07_CR00121,111545
Sandwell Metropolitan Borough Council,http://www.sandwell.gov.uk/info/200202/performance_and_spending/1079/payments_over_500,01-Oct-2022,Childrens Services,ROYALE TRAINING LTD,Childrens Services,1579.30,Externally Purchased Professional Services ,2223P07_CR00122,133604
Sandwell Metropolitan Borough Council,http://www.sandwell.gov.uk/info/200202/performance_and_spending/1079/payments_over_500,01-Oct-2022,Childrens Services,ROYALE TRAINING LTD,Childrens Services,1579.30,Externally Purchased Professional Services ,2223P07_CR00123,133604
Sandwell Metropolitan Borough Council,http://www.sandwell.gov.uk/info/200202/performance_and_spending/1079/payments_over_500,01-Oct-2022,Childrens Services,ROYALE TRAINING LTD,Childrens Services,1579.30,Externally Purchased Professional Services ,2223P07_CR00124,133604
Sandwell Metropolitan Borough Council,http://www.sandwell.gov.uk/info/200202/performance_and_spending/1079/payments_over_500,01-Oct-2022,Childrens Services,ROYALE TRAINING LTD,Childrens Services,1579.30,Externally Purchased Professional Services ,2223P07_CR00125,133604
Sandwell Metropolitan Borough Council,http://www.sandwell.gov.uk/info/200202/performance_and_spending/1079/payments_over_500,01-Oct-2022,Childrens Services,ROYALE TRAINING LTD,Childrens Services,1579.30,Externally Purchased Professional Services ,2223P07_CR00126,133604
Sandwell Metropolitan Borough Council,http://www.sandwell.gov.uk/info/200202/performance_and_spending/1079/payments_over_500,18-Oct-2022,Childrens Services,CORONA ENERGY RETAIL 2 LIMITED,Childrens Services,1587.47,Gas,2223P07_CR00127,118395
Sandwell Metropolitan Borough Council,http://www.sandwell.gov.uk/info/200202/performance_and_spending/1079/payments_over_500,06-Oct-2022,Childrens Services,NEWAVE LTD,Childrens Services,1808.73,Agency Staff,2223P07_CR00128,101666
Sandwell Metropolitan Borough Council,http://www.sandwell.gov.uk/info/200202/performance_and_spending/1079/payments_over_500,01-Oct-2022,Childrens Services,GRANGE TREKKING,Childrens Services,1870.00,Equipment & Furniture ,2223P07_CR00129,163808
Sandwell Metropolitan Borough Council,http://www.sandwell.gov.uk/info/200202/performance_and_spending/1079/payments_over_500,01-Oct-2022,Childrens Services,NEWAVE LTD,Childrens Services,1884.77,Agency Staff,2223P07_CR00130,101666
Sandwell Metropolitan Borough Council,http://www.sandwell.gov.uk/info/200202/performance_and_spending/1079/payments_over_500,01-Oct-2022,Childrens Services,THOMAS CHARLES FACILITIES & MAINTENANCE LTD,Childrens Services,1920.00,Contract Cleaning,2223P07_CR00131,114170
Sandwell Metropolitan Borough Council,http://www.sandwell.gov.uk/info/200202/performance_and_spending/1079/payments_over_500,01-Oct-2022,Childrens Services,THOMAS CHARLES FACILITIES & MAINTENANCE LTD,Childrens Services,1920.00,Contract Cleaning,2223P07_CR00132,114170
Sandwell Metropolitan Borough Council,http://www.sandwell.gov.uk/info/200202/performance_and_spending/1079/payments_over_500,01-Oct-2022,Childrens Services,THOMAS CHARLES FACILITIES & MAINTENANCE LTD,Childrens Services,1920.00,Contract Cleaning,2223P07_CR00133,114170
Sandwell Metropolitan Borough Council,http://www.sandwell.gov.uk/info/200202/performance_and_spending/1079/payments_over_500,01-Oct-2022,Childrens Services,JPC TRAVEL SOLUTION,Childrens Services,1936.00,Public Transport,2223P07_CR00134,138533
Sandwell Metropolitan Borough Council,http://www.sandwell.gov.uk/info/200202/performance_and_spending/1079/payments_over_500,01-Oct-2022,Childrens Services,JUST STRAIGHT TALK,Childrens Services,1969.48,Grants,2223P07_CR00135,163039
Sandwell Metropolitan Borough Council,http://www.sandwell.gov.uk/info/200202/performance_and_spending/1079/payments_over_500,01-Oct-2022,Childrens Services,FUTURE FIRST INDEPENDENT SCHOOL,Childrens Services,2100.00,External Contract Hire,2223P07_CR00136,106165
Sandwell Metropolitan Borough Council,http://www.sandwell.gov.uk/info/200202/performance_and_spending/1079/payments_over_500,01-Oct-2022,Childrens Services,FUTURE FIRST INDEPENDENT SCHOOL,Childrens Services,2100.00,External Contract Hire,2223P07_CR00137,106165
Sandwell Metropolitan Borough Council,http://www.sandwell.gov.uk/info/200202/performance_and_spending/1079/payments_over_500,13-Oct-2022,Childrens Services,LEARNPLAY FOUNDATION LTD,Childrens Services,2464.68,Externally Purchased Professional Services ,2223P07_CR00138,86525
Sandwell Metropolitan Borough Council,http://www.sandwell.gov.uk/info/200202/performance_and_spending/1079/payments_over_500,01-Oct-2022,Childrens Services,TOPPS MANAGEMENT & SUPPORT SERVICES LTD,Childrens Services,2499.98,Discretionary Awards,2223P07_CR00139,68846
Sandwell Metropolitan Borough Council,http://www.sandwell.gov.uk/info/200202/performance_and_spending/1079/payments_over_500,01-Oct-2022,Childrens Services,SSE ENERGY SUPPLY LIMITED,Childrens Services,2524.40,Electricity,2223P07_CR00140,116134
Sandwell Metropolitan Borough Council,http://www.sandwell.gov.uk/info/200202/performance_and_spending/1079/payments_over_500,03-Oct-2022,Childrens Services,TOP CHURCH TRAINING,Childrens Services,2567.50,Grants,2223P07_CR00141,163127
Sandwell Metropolitan Borough Council,http://www.sandwell.gov.uk/info/200202/performance_and_spending/1079/payments_over_500,03-Oct-2022,Childrens Services,CERTAS ENERGY LIMITED,Childrens Services,2646.33,Oil,2223P07_CR00142,80421
Sandwell Metropolitan Borough Council,http://www.sandwell.gov.uk/info/200202/performance_and_spending/1079/payments_over_500,01-Oct-2022,Childrens Services,THOMAS CHARLES FACILITIES & MAINTENANCE LTD,Childrens Services,2880.00,Contract Cleaning,2223P07_CR00143,114170
Sandwell Metropolitan Borough Council,http://www.sandwell.gov.uk/info/200202/performance_and_spending/1079/payments_over_500,03-Oct-2022,Childrens Services,ACCESS TO BUSINESS,Childrens Services,2910.27,Grants,2223P07_CR00144,41092
Sandwell Metropolitan Borough Council,http://www.sandwell.gov.uk/info/200202/performance_and_spending/1079/payments_over_500,28-Oct-2022,Childrens Services,DIGBETH DINING CLUB CIC,Childrens Services,2976.00,Catering Provisions,2223P07_CR00145,153646
Sandwell Metropolitan Borough Council,http://www.sandwell.gov.uk/info/200202/performance_and_spending/1079/payments_over_500,28-Oct-2022,Childrens Services,HEART OF ENGLAND COMMUNITY FOUNDATION,Childrens Services,3000.00,Grant Payments,2223P07_CR00146,133427
Sandwell Metropolitan Borough Council,http://www.sandwell.gov.uk/info/200202/performance_and_spending/1079/payments_over_500,17-Oct-2022,Childrens Services,OPEN UNIVERSITY,Childrens Services,3228.00,Externally Purchased Professional Services ,2223P07_CR00147,01043246
Sandwell Metropolitan Borough Council,http://www.sandwell.gov.uk/info/200202/performance_and_spending/1079/payments_over_500,06-Oct-2022,Childrens Services,NEWAVE LTD,Childrens Services,3234.24,Agency Staff,2223P07_CR00148,101666
Sandwell Metropolitan Borough Council,http://www.sandwell.gov.uk/info/200202/performance_and_spending/1079/payments_over_500,17-Oct-2022,Childrens Services,AMP BIOMASS FUEL LTD T/A AMP CLEAN ENERGY,Childrens Services,3836.19,#N/A,2223P07_CR00149,128761
Sandwell Metropolitan Borough Council,http://www.sandwell.gov.uk/info/200202/performance_and_spending/1079/payments_over_500,01-Oct-2022,Childrens Services,PROSPECTS SERVICES LIMITED,Childrens Services,4089.92,ICT ,2223P07_CR00150,01721288
Sandwell Metropolitan Borough Council,http://www.sandwell.gov.uk/info/200202/performance_and_spending/1079/payments_over_500,13-Oct-2022,Childrens Services,BLACKWATER ACADEMY,Childrens Services,4200.00,External Contract Hire,2223P07_CR00151,129151
Sandwell Metropolitan Borough Council,http://www.sandwell.gov.uk/info/200202/performance_and_spending/1079/payments_over_500,13-Oct-2022,Childrens Services,BLACKWATER ACADEMY,Childrens Services,4200.00,External Contract Hire,2223P07_CR00152,129151
Sandwell Metropolitan Borough Council,http://www.sandwell.gov.uk/info/200202/performance_and_spending/1079/payments_over_500,06-Oct-2022,Childrens Services,NEWAVE LTD,Childrens Services,4371.15,Agency Staff,2223P07_CR00153,101666
Sandwell Metropolitan Borough Council,http://www.sandwell.gov.uk/info/200202/performance_and_spending/1079/payments_over_500,01-Oct-2022,Childrens Services,ASPIRE ACTIVE CAMPS LTD,Childrens Services,4480.00,Catering Provisions,2223P07_CR00154,163410
Sandwell Metropolitan Borough Council,http://www.sandwell.gov.uk/info/200202/performance_and_spending/1079/payments_over_500,13-Oct-2022,Childrens Services,LYNG PRIMARY SCHOOL            ,Childrens Services,4750.00,Hire of Facilities,2223P07_CR00155,21030682
Sandwell Metropolitan Borough Council,http://www.sandwell.gov.uk/info/200202/performance_and_spending/1079/payments_over_500,06-Oct-2022,Childrens Services,WINDOW ARTISTS,Childrens Services,5000.00,Catering Provisions,2223P07_CR00156,149499
Sandwell Metropolitan Borough Council,http://www.sandwell.gov.uk/info/200202/performance_and_spending/1079/payments_over_500,03-Oct-2022,Childrens Services,ACCESS TO BUSINESS,Childrens Services,5575.77,Grants,2223P07_CR00157,41092
Sandwell Metropolitan Borough Council,http://www.sandwell.gov.uk/info/200202/performance_and_spending/1079/payments_over_500,03-Oct-2022,Childrens Services,SPORTS PLUS SCHEME LIMITED,Childrens Services,6484.25,Grant Payments,2223P07_CR00158,164261
Sandwell Metropolitan Borough Council,http://www.sandwell.gov.uk/info/200202/performance_and_spending/1079/payments_over_500,06-Oct-2022,Childrens Services,BLACKWATER ACADEMY,Childrens Services,6500.00,Grants,2223P07_CR00159,129151
Sandwell Metropolitan Borough Council,http://www.sandwell.gov.uk/info/200202/performance_and_spending/1079/payments_over_500,01-Oct-2022,Childrens Services,SSE ENERGY SUPPLY LIMITED,Childrens Services,7560.79,Electricity,2223P07_CR00160,116134
Sandwell Metropolitan Borough Council,http://www.sandwell.gov.uk/info/200202/performance_and_spending/1079/payments_over_500,01-Oct-2022,Childrens Services,TOPPS MANAGEMENT & SUPPORT SERVICES LTD,Childrens Services,7857.08,Discretionary Awards,2223P07_CR00161,68846
Sandwell Metropolitan Borough Council,http://www.sandwell.gov.uk/info/200202/performance_and_spending/1079/payments_over_500,01-Oct-2022,Childrens Services,SMETHWICK YOUTH & COMMUNITY CENTRE LIMITED,Childrens Services,8161.06,Grants,2223P07_CR00162,01731934
Sandwell Metropolitan Borough Council,http://www.sandwell.gov.uk/info/200202/performance_and_spending/1079/payments_over_500,11-Oct-2022,Childrens Services,ROWLEY HALL PRIMARY SCHOOL,Childrens Services,8199.00,Grant Payments,2223P07_CR00163,01746996
Sandwell Metropolitan Borough Council,http://www.sandwell.gov.uk/info/200202/performance_and_spending/1079/payments_over_500,11-Oct-2022,Childrens Services,ROWLEY HALL PRIMARY SCHOOL,Childrens Services,8199.00,Grant Payments,2223P07_CR00164,01746996
Sandwell Metropolitan Borough Council,http://www.sandwell.gov.uk/info/200202/performance_and_spending/1079/payments_over_500,01-Oct-2022,Childrens Services,AUTISM WEST MIDLANDS             ,Childrens Services,9215.50,Grant Payments,2223P07_CR00165,65002404
Sandwell Metropolitan Borough Council,http://www.sandwell.gov.uk/info/200202/performance_and_spending/1079/payments_over_500,24-Oct-2022,Childrens Services,HER MAJESTYS PRISON AND PROBATION SERVICE,Childrens Services,9517.00,Other Establishments,2223P07_CR00166,134815
Sandwell Metropolitan Borough Council,http://www.sandwell.gov.uk/info/200202/performance_and_spending/1079/payments_over_500,24-Oct-2022,Childrens Services,HER MAJESTYS PRISON AND PROBATION SERVICE,Childrens Services,9517.00,Other Establishments,2223P07_CR00167,134815
Sandwell Metropolitan Borough Council,http://www.sandwell.gov.uk/info/200202/performance_and_spending/1079/payments_over_500,24-Oct-2022,Childrens Services,HER MAJESTYS PRISON AND PROBATION SERVICE,Childrens Services,9517.00,Other Establishments,2223P07_CR00168,134815
Sandwell Metropolitan Borough Council,http://www.sandwell.gov.uk/info/200202/performance_and_spending/1079/payments_over_500,28-Oct-2022,Childrens Services,MACINTOSH FOODSERVICE SOLUTIONS LTD,Childrens Services,11105.00,Agency Staff,2223P07_CR00169,162369
Sandwell Metropolitan Borough Council,http://www.sandwell.gov.uk/info/200202/performance_and_spending/1079/payments_over_500,13-Oct-2022,Childrens Services,PREMIER SOCCER COACHING T/A PREMIER EDUCATION,Childrens Services,11760.00,Grant Payments,2223P07_CR00170,163599
Sandwell Metropolitan Borough Council,http://www.sandwell.gov.uk/info/200202/performance_and_spending/1079/payments_over_500,16-Oct-2022,Childrens Services,SOLIHULL MBC,Childrens Services,15000.00,SH Payments,2223P07_CR00171,01128751
Sandwell Metropolitan Borough Council,http://www.sandwell.gov.uk/info/200202/performance_and_spending/1079/payments_over_500,01-Oct-2022,Childrens Services,SOLIHULL MBC,Childrens Services,15114.00,SH Payments,2223P07_CR00172,01128751
Sandwell Metropolitan Borough Council,http://www.sandwell.gov.uk/info/200202/performance_and_spending/1079/payments_over_500,10-Oct-2022,Childrens Services,WOLVERHAMPTON VOLUNTARY SECTOR COUNCIL,Childrens Services,15180.83,Grants,2223P07_CR00173,43383
Sandwell Metropolitan Borough Council,http://www.sandwell.gov.uk/info/200202/performance_and_spending/1079/payments_over_500,01-Oct-2022,Childrens Services,SANDWELL ACADEMY TRUST LTD,Childrens Services,21335.00,Public Transport,2223P07_CR00174,62330
Sandwell Metropolitan Borough Council,http://www.sandwell.gov.uk/info/200202/performance_and_spending/1079/payments_over_500,24-Oct-2022,Childrens Services,HER MAJESTYS PRISON AND PROBATION SERVICE,Childrens Services,23870.00,Other Establishments,2223P07_CR00175,134815
Sandwell Metropolitan Borough Council,http://www.sandwell.gov.uk/info/200202/performance_and_spending/1079/payments_over_500,03-Oct-2022,Childrens Services,SIPS EDUCATION LTD,Childrens Services,25500.00,Contract Payments,2223P07_CR00176,110784
Sandwell Metropolitan Borough Council,http://www.sandwell.gov.uk/info/200202/performance_and_spending/1079/payments_over_500,11-Oct-2022,Childrens Services,WHOLE EDUCATION LTD,Dead SeRCOP,38250.00,Consultancy,2223P07_CR00177,164202
Sandwell Metropolitan Borough Council,http://www.sandwell.gov.uk/info/200202/performance_and_spending/1079/payments_over_500,05-Oct-2022,Childrens Services,CLASSIC CARS 1997,Childrens Services,55452.21,Public Transport,2223P07_CR00178,06005093
Sandwell Metropolitan Borough Council,http://www.sandwell.gov.uk/info/200202/performance_and_spending/1079/payments_over_500,10-Oct-2022,Childrens Services,SANDWELL CHILDREN'S TRUST,Childrens Services,5421070.54,Other Establishments,2223P07_CR00179,133302
Sandwell Metropolitan Borough Council,http://www.sandwell.gov.uk/info/200202/performance_and_spending/1079/payments_over_500,01-Oct-2022,Childrens Services,CITIZENS ADVICE SANDWELL & WALSALL,Childrens Services,7287.00,Externally Purchased Professional Services ,2223P07_CR00180,01760899
Sandwell Metropolitan Borough Council,http://www.sandwell.gov.uk/info/200202/performance_and_spending/1079/payments_over_500,27-Oct-2022,Childrens Services,A OAKES LTD,Childrens Services,745.00,Protective Clothing & Uniforms,2223P07_CR00181,01042944
Sandwell Metropolitan Borough Council,http://www.sandwell.gov.uk/info/200202/performance_and_spending/1079/payments_over_500,17-Oct-2022,Childrens Services,ASDA STORES LTD              ,Childrens Services,3425.00,Protective Clothing & Uniforms,2223P07_CR00182,01610594
Sandwell Metropolitan Borough Council,http://www.sandwell.gov.uk/info/200202/performance_and_spending/1079/payments_over_500,24-Oct-2022,Childrens Services,ASDA STORES LTD                   ,Childrens Services,3385.00,Protective Clothing & Uniforms,2223P07_CR00183,01610594
Sandwell Metropolitan Borough Council,http://www.sandwell.gov.uk/info/200202/performance_and_spending/1079/payments_over_500,01-Oct-2022,Childrens Services,CC UNIFORMS LIMITED,Childrens Services,6860.00,Protective Clothing & Uniforms,2223P07_CR00184,141379
Sandwell Metropolitan Borough Council,http://www.sandwell.gov.uk/info/200202/performance_and_spending/1079/payments_over_500,26-Oct-2022,Childrens Services,FIRST CHOICE,Childrens Services,3590.00,Protective Clothing & Uniforms,2223P07_CR00185,01465132
Sandwell Metropolitan Borough Council,http://www.sandwell.gov.uk/info/200202/performance_and_spending/1079/payments_over_500,27-Oct-2022,Childrens Services,GOGNA SCHOOLWEAR & SPORTS LIMITED,Childrens Services,2225.00,Protective Clothing & Uniforms,2223P07_CR00186,04005603
Sandwell Metropolitan Borough Council,http://www.sandwell.gov.uk/info/200202/performance_and_spending/1079/payments_over_500,01-Oct-2022,Childrens Services,SAMANTHA STEATHAM,Childrens Services,2200.00,Externally Purchased Professional Services ,2223P07_CR00187,151908
Sandwell Metropolitan Borough Council,http://www.sandwell.gov.uk/info/200202/performance_and_spending/1079/payments_over_500,11-Oct-2022,Childrens Services,REDACTED PERSONAL DATA,Childrens Services,545.45,External Contract Hire,2223P07_CR00188,REDACTED PERSONAL DATA
Sandwell Metropolitan Borough Council,http://www.sandwell.gov.uk/info/200202/performance_and_spending/1079/payments_over_500,11-Oct-2022,Childrens Services,REDACTED PERSONAL DATA,Childrens Services,727.28,External Contract Hire,2223P07_CR00189,REDACTED PERSONAL DATA
Sandwell Metropolitan Borough Council,http://www.sandwell.gov.uk/info/200202/performance_and_spending/1079/payments_over_500,11-Oct-2022,Childrens Services,REDACTED PERSONAL DATA,Childrens Services,727.27,External Contract Hire,2223P07_CR00190,REDACTED PERSONAL DATA
Sandwell Metropolitan Borough Council,http://www.sandwell.gov.uk/info/200202/performance_and_spending/1079/payments_over_500,11-Oct-2022,Childrens Services,REDACTED PERSONAL DATA,Childrens Services,545.45,External Contract Hire,2223P07_CR00191,REDACTED PERSONAL DATA
Sandwell Metropolitan Borough Council,http://www.sandwell.gov.uk/info/200202/performance_and_spending/1079/payments_over_500,11-Oct-2022,Childrens Services,REDACTED PERSONAL DATA,Childrens Services,545.45,External Contract Hire,2223P07_CR00192,REDACTED PERSONAL DATA
Sandwell Metropolitan Borough Council,http://www.sandwell.gov.uk/info/200202/performance_and_spending/1079/payments_over_500,11-Oct-2022,Childrens Services,REDACTED PERSONAL DATA,Childrens Services,545.45,External Contract Hire,2223P07_CR00193,REDACTED PERSONAL DATA
Sandwell Metropolitan Borough Council,http://www.sandwell.gov.uk/info/200202/performance_and_spending/1079/payments_over_500,11-Oct-2022,Childrens Services,REDACTED PERSONAL DATA,Childrens Services,545.45,External Contract Hire,2223P07_CR00194,REDACTED PERSONAL DATA
Sandwell Metropolitan Borough Council,http://www.sandwell.gov.uk/info/200202/performance_and_spending/1079/payments_over_500,11-Oct-2022,Childrens Services,REDACTED PERSONAL DATA,Childrens Services,545.45,External Contract Hire,2223P07_CR00195,REDACTED PERSONAL DATA
Sandwell Metropolitan Borough Council,http://www.sandwell.gov.uk/info/200202/performance_and_spending/1079/payments_over_500,11-Oct-2022,Childrens Services,REDACTED PERSONAL DATA,Childrens Services,1090.90,External Contract Hire,2223P07_CR00196,REDACTED PERSONAL DATA
Sandwell Metropolitan Borough Council,http://www.sandwell.gov.uk/info/200202/performance_and_spending/1079/payments_over_500,11-Oct-2022,Childrens Services,REDACTED PERSONAL DATA,Childrens Services,545.45,External Contract Hire,2223P07_CR00197,REDACTED PERSONAL DATA
Sandwell Metropolitan Borough Council,http://www.sandwell.gov.uk/info/200202/performance_and_spending/1079/payments_over_500,11-Oct-2022,Childrens Services,REDACTED PERSONAL DATA,Childrens Services,727.27,External Contract Hire,2223P07_CR00198,REDACTED PERSONAL DATA
Sandwell Metropolitan Borough Council,http://www.sandwell.gov.uk/info/200202/performance_and_spending/1079/payments_over_500,11-Oct-2022,Childrens Services,REDACTED PERSONAL DATA,Childrens Services,727.27,External Contract Hire,2223P07_CR00199,REDACTED PERSONAL DATA
Sandwell Metropolitan Borough Council,http://www.sandwell.gov.uk/info/200202/performance_and_spending/1079/payments_over_500,11-Oct-2022,Childrens Services,REDACTED PERSONAL DATA,Childrens Services,727.27,External Contract Hire,2223P07_CR00200,REDACTED PERSONAL DATA
Sandwell Metropolitan Borough Council,http://www.sandwell.gov.uk/info/200202/performance_and_spending/1079/payments_over_500,11-Oct-2022,Childrens Services,REDACTED PERSONAL DATA,Childrens Services,545.45,External Contract Hire,2223P07_CR00201,REDACTED PERSONAL DATA
Sandwell Metropolitan Borough Council,http://www.sandwell.gov.uk/info/200202/performance_and_spending/1079/payments_over_500,11-Oct-2022,Childrens Services,REDACTED PERSONAL DATA,Childrens Services,545.45,External Contract Hire,2223P07_CR00202,REDACTED PERSONAL DATA
Sandwell Metropolitan Borough Council,http://www.sandwell.gov.uk/info/200202/performance_and_spending/1079/payments_over_500,11-Oct-2022,Childrens Services,REDACTED PERSONAL DATA,Childrens Services,727.27,External Contract Hire,2223P07_CR00203,REDACTED PERSONAL DATA
Sandwell Metropolitan Borough Council,http://www.sandwell.gov.uk/info/200202/performance_and_spending/1079/payments_over_500,11-Oct-2022,Childrens Services,REDACTED PERSONAL DATA,Childrens Services,545.45,External Contract Hire,2223P07_CR00204,REDACTED PERSONAL DATA
Sandwell Metropolitan Borough Council,http://www.sandwell.gov.uk/info/200202/performance_and_spending/1079/payments_over_500,11-Oct-2022,Childrens Services,REDACTED PERSONAL DATA,Childrens Services,909.09,External Contract Hire,2223P07_CR00205,REDACTED PERSONAL DATA
Sandwell Metropolitan Borough Council,http://www.sandwell.gov.uk/info/200202/performance_and_spending/1079/payments_over_500,11-Oct-2022,Childrens Services,REDACTED PERSONAL DATA,Childrens Services,727.27,External Contract Hire,2223P07_CR00206,REDACTED PERSONAL DATA
Sandwell Metropolitan Borough Council,http://www.sandwell.gov.uk/info/200202/performance_and_spending/1079/payments_over_500,11-Oct-2022,Childrens Services,REDACTED PERSONAL DATA,Childrens Services,545.45,External Contract Hire,2223P07_CR00207,REDACTED PERSONAL DATA
Sandwell Metropolitan Borough Council,http://www.sandwell.gov.uk/info/200202/performance_and_spending/1079/payments_over_500,11-Oct-2022,Childrens Services,REDACTED PERSONAL DATA,Childrens Services,545.45,External Contract Hire,2223P07_CR00208,REDACTED PERSONAL DATA
Sandwell Metropolitan Borough Council,http://www.sandwell.gov.uk/info/200202/performance_and_spending/1079/payments_over_500,11-Oct-2022,Childrens Services,REDACTED PERSONAL DATA,Childrens Services,545.45,External Contract Hire,2223P07_CR00209,REDACTED PERSONAL DATA
Sandwell Metropolitan Borough Council,http://www.sandwell.gov.uk/info/200202/performance_and_spending/1079/payments_over_500,11-Oct-2022,Childrens Services,REDACTED PERSONAL DATA,Childrens Services,545.45,External Contract Hire,2223P07_CR00210,REDACTED PERSONAL DATA
Sandwell Metropolitan Borough Council,http://www.sandwell.gov.uk/info/200202/performance_and_spending/1079/payments_over_500,11-Oct-2022,Childrens Services,REDACTED PERSONAL DATA,Childrens Services,800.00,External Contract Hire,2223P07_CR00211,REDACTED PERSONAL DATA
Sandwell Metropolitan Borough Council,http://www.sandwell.gov.uk/info/200202/performance_and_spending/1079/payments_over_500,11-Oct-2022,Childrens Services,REDACTED PERSONAL DATA,Childrens Services,727.27,External Contract Hire,2223P07_CR00212,REDACTED PERSONAL DATA
Sandwell Metropolitan Borough Council,http://www.sandwell.gov.uk/info/200202/performance_and_spending/1079/payments_over_500,11-Oct-2022,Childrens Services,REDACTED PERSONAL DATA,Childrens Services,545.45,External Contract Hire,2223P07_CR00213,REDACTED PERSONAL DATA
Sandwell Metropolitan Borough Council,http://www.sandwell.gov.uk/info/200202/performance_and_spending/1079/payments_over_500,11-Oct-2022,Childrens Services,REDACTED PERSONAL DATA,Childrens Services,727.28,External Contract Hire,2223P07_CR00214,REDACTED PERSONAL DATA
Sandwell Metropolitan Borough Council,http://www.sandwell.gov.uk/info/200202/performance_and_spending/1079/payments_over_500,11-Oct-2022,Childrens Services,REDACTED PERSONAL DATA,Childrens Services,545.45,External Contract Hire,2223P07_CR00215,REDACTED PERSONAL DATA
Sandwell Metropolitan Borough Council,http://www.sandwell.gov.uk/info/200202/performance_and_spending/1079/payments_over_500,11-Oct-2022,Childrens Services,REDACTED PERSONAL DATA,Childrens Services,727.27,External Contract Hire,2223P07_CR00216,REDACTED PERSONAL DATA
Sandwell Metropolitan Borough Council,http://www.sandwell.gov.uk/info/200202/performance_and_spending/1079/payments_over_500,11-Oct-2022,Childrens Services,REDACTED PERSONAL DATA,Childrens Services,727.27,External Contract Hire,2223P07_CR00217,REDACTED PERSONAL DATA
Sandwell Metropolitan Borough Council,http://www.sandwell.gov.uk/info/200202/performance_and_spending/1079/payments_over_500,11-Oct-2022,Childrens Services,REDACTED PERSONAL DATA,Childrens Services,954.54,External Contract Hire,2223P07_CR00218,REDACTED PERSONAL DATA
Sandwell Metropolitan Borough Council,http://www.sandwell.gov.uk/info/200202/performance_and_spending/1079/payments_over_500,11-Oct-2022,Childrens Services,REDACTED PERSONAL DATA,Childrens Services,545.45,External Contract Hire,2223P07_CR00219,REDACTED PERSONAL DATA
Sandwell Metropolitan Borough Council,http://www.sandwell.gov.uk/info/200202/performance_and_spending/1079/payments_over_500,11-Oct-2022,Childrens Services,REDACTED PERSONAL DATA,Childrens Services,727.27,External Contract Hire,2223P07_CR00220,REDACTED PERSONAL DATA
Sandwell Metropolitan Borough Council,http://www.sandwell.gov.uk/info/200202/performance_and_spending/1079/payments_over_500,11-Oct-2022,Childrens Services,REDACTED PERSONAL DATA,Childrens Services,545.45,External Contract Hire,2223P07_CR00221,REDACTED PERSONAL DATA
Sandwell Metropolitan Borough Council,http://www.sandwell.gov.uk/info/200202/performance_and_spending/1079/payments_over_500,11-Oct-2022,Childrens Services,REDACTED PERSONAL DATA,Childrens Services,727.27,External Contract Hire,2223P07_CR00222,REDACTED PERSONAL DATA
Sandwell Metropolitan Borough Council,http://www.sandwell.gov.uk/info/200202/performance_and_spending/1079/payments_over_500,12-Oct-2022,Childrens Services,REDACTED PERSONAL DATA,Childrens Services,4588.68,External Contract Hire,2223P07_CR00223,REDACTED PERSONAL DATA
Sandwell Metropolitan Borough Council,http://www.sandwell.gov.uk/info/200202/performance_and_spending/1079/payments_over_500,12-Oct-2022,Childrens Services,REDACTED PERSONAL DATA,Childrens Services,700.92,External Contract Hire,2223P07_CR00224,REDACTED PERSONAL DATA
Sandwell Metropolitan Borough Council,http://www.sandwell.gov.uk/info/200202/performance_and_spending/1079/payments_over_500,12-Oct-2022,Childrens Services,REDACTED PERSONAL DATA,Childrens Services,506.88,External Contract Hire,2223P07_CR00225,REDACTED PERSONAL DATA
Sandwell Metropolitan Borough Council,http://www.sandwell.gov.uk/info/200202/performance_and_spending/1079/payments_over_500,03-Oct-2022,Childrens Services,IDEAL FOR ALL LIMITED,Childrens Services,14046.00,Grant Payments,2223P07_CR00226,01678484
Sandwell Metropolitan Borough Council,http://www.sandwell.gov.uk/info/200202/performance_and_spending/1079/payments_over_500,03-Oct-2022,Childrens Services,LION FARM ACTION CENTRE (SANDWELL) LTD,Childrens Services,35700.50,Grant Payments,2223P07_CR00227,21023409
Sandwell Metropolitan Borough Council,http://www.sandwell.gov.uk/info/200202/performance_and_spending/1079/payments_over_500,03-Oct-2022,Childrens Services,SKILLS WORK AND ENTERPRISE DEVELOPMENT AGENCY LTD,Childrens Services,50633.50,Grant Payments,2223P07_CR00228,5092
Sandwell Metropolitan Borough Council,http://www.sandwell.gov.uk/info/200202/performance_and_spending/1079/payments_over_500,03-Oct-2022,Childrens Services,S.C.V.O.,Childrens Services,154312.50,Grant Payments,2223P07_CR00229,109813
Sandwell Metropolitan Borough Council,http://www.sandwell.gov.uk/info/200202/performance_and_spending/1079/payments_over_500,27-Oct-2022,Childrens Services,ACTI-FIT EDUCATION LTD,Childrens Services,4752.00,Grant Payments,2223P07_CR00230,162905
Sandwell Metropolitan Borough Council,http://www.sandwell.gov.uk/info/200202/performance_and_spending/1079/payments_over_500,03-Oct-2022,Childrens Services,GROUNDWORK WEST MIDLANDS,Childrens Services,78606.00,Grant Payments,2223P07_CR00231,92743
Sandwell Metropolitan Borough Council,http://www.sandwell.gov.uk/info/200202/performance_and_spending/1079/payments_over_500,03-Oct-2022,Childrens Services,MURRAY HALL COMMUNITY TRUST,Childrens Services,42821.00,Grant Payments,2223P07_CR00232,01627284
Sandwell Metropolitan Borough Council,http://www.sandwell.gov.uk/info/200202/performance_and_spending/1079/payments_over_500,03-Oct-2022,Childrens Services,POWERED BY CAN LTD,Childrens Services,47821.00,Grant Payments,2223P07_CR00233,116825
Sandwell Metropolitan Borough Council,http://www.sandwell.gov.uk/info/200202/performance_and_spending/1079/payments_over_500,03-Oct-2022,Childrens Services,SADWICA DAY NURSERY,Childrens Services,11306.25,Grant Payments,2223P07_CR00234,01667892
Sandwell Metropolitan Borough Council,http://www.sandwell.gov.uk/info/200202/performance_and_spending/1079/payments_over_500,03-Oct-2022,Childrens Services,THE BRANCH,Childrens Services,11658.00,Grant Payments,2223P07_CR00235,08588514
Sandwell Metropolitan Borough Council,http://www.sandwell.gov.uk/info/200202/performance_and_spending/1079/payments_over_500,05-Oct-2022,Childrens Services,COMMUNITY TRANSPORT,Childrens Services,1550.00,Grant Payments,2223P07_CR00236,01447963
Sandwell Metropolitan Borough Council,http://www.sandwell.gov.uk/info/200202/performance_and_spending/1079/payments_over_500,01-Oct-2022,Childrens Services Capital,SIGNS & SIGNWRITING,Childrens Services Capital,740.00,CIP - Fixtures & Fittings,2223P07_CR00237,163999
Sandwell Metropolitan Borough Council,http://www.sandwell.gov.uk/info/200202/performance_and_spending/1079/payments_over_500,03-Oct-2022,Childrens Services Capital,BIDDLE SPORT LTD,Childrens Services Capital,1700.00,"CIP - New Construction,Conversion, Enhancement & Reno",2223P07_CR00238,70117
Sandwell Metropolitan Borough Council,http://www.sandwell.gov.uk/info/200202/performance_and_spending/1079/payments_over_500,01-Oct-2022,Childrens Services Capital,D P DESIGN PARTNERSHIP,Childrens Services Capital,3575.00,"CIP - New Construction,Conversion, Enhancement & Reno",2223P07_CR00239,145811
Sandwell Metropolitan Borough Council,http://www.sandwell.gov.uk/info/200202/performance_and_spending/1079/payments_over_500,01-Oct-2022,Childrens Services Capital,POWELL OFFICE EQUIPMENT LIMITED,Childrens Services Capital,6940.00,"CIP - New Construction,Conversion, Enhancement & Reno",2223P07_CR00240,2759
Sandwell Metropolitan Borough Council,http://www.sandwell.gov.uk/info/200202/performance_and_spending/1079/payments_over_500,16-Oct-2022,Childrens Services Capital,SEDDON CONSTRUCTION LIMITED,Childrens Services Capital,61097.94,"CIP - New Construction,Conversion, Enhancement & Reno",2223P07_CR00241,132999
Sandwell Metropolitan Borough Council,http://www.sandwell.gov.uk/info/200202/performance_and_spending/1079/payments_over_500,27-Oct-2022,Childrens Services Capital,WILLMOTT DIXON CONSTRUCTION LIMITED,Childrens Services Capital,244420.34,"CIP - New Construction,Conversion, Enhancement & Reno",2223P07_CR00242,34081
Sandwell Metropolitan Borough Council,http://www.sandwell.gov.uk/info/200202/performance_and_spending/1079/payments_over_500,01-Oct-2022,Childrens Services Capital,WILLMOTT DIXON CONSTRUCTION LIMITED,Childrens Services Capital,308382.95,"CIP - New Construction,Conversion, Enhancement & Reno",2223P07_CR00243,34081
Sandwell Metropolitan Borough Council,http://www.sandwell.gov.uk/info/200202/performance_and_spending/1079/payments_over_500,05-Oct-2022,Housing & Communities,BA BUSH & SON LTD,Neighbourhoods,932.50,Tyres,2223P07_CR00244,159771
Sandwell Metropolitan Borough Council,http://www.sandwell.gov.uk/info/200202/performance_and_spending/1079/payments_over_500,17-Oct-2022,Housing & Communities,BA BUSH & SON LTD,Neighbourhoods,538.32,Tyres,2223P07_CR00245,159771
Sandwell Metropolitan Borough Council,http://www.sandwell.gov.uk/info/200202/performance_and_spending/1079/payments_over_500,01-Oct-2022,Housing & Communities,HADLEYS STEAM CLEANING LTD,Neighbourhoods,1306.00,Repairs & Maintenance,2223P07_CR00246,132536
Sandwell Metropolitan Borough Council,http://www.sandwell.gov.uk/info/200202/performance_and_spending/1079/payments_over_500,14-Oct-2022,Housing & Communities,OAKLEYS LTD,Neighbourhoods,601.64,Repairs & Maintenance,2223P07_CR00247,01598115
Sandwell Metropolitan Borough Council,http://www.sandwell.gov.uk/info/200202/performance_and_spending/1079/payments_over_500,07-Oct-2022,Housing & Communities,SIMON TULLETT MACHINERY COMPANY LIMITED,Neighbourhoods,624.80,Repairs & Maintenance,2223P07_CR00248,109117
Sandwell Metropolitan Borough Council,http://www.sandwell.gov.uk/info/200202/performance_and_spending/1079/payments_over_500,01-Oct-2022,Housing & Communities,COOPER MOBILE SERVICES LTD,Neighbourhoods,7516.81,Fire Service Workshops,2223P07_CR00249,01304378
Sandwell Metropolitan Borough Council,http://www.sandwell.gov.uk/info/200202/performance_and_spending/1079/payments_over_500,19-Oct-2022,Housing & Communities,DENNIS EAGLE LTD,Neighbourhoods,596.19,Fire Service Workshops,2223P07_CR00250,01004865
Sandwell Metropolitan Borough Council,http://www.sandwell.gov.uk/info/200202/performance_and_spending/1079/payments_over_500,10-Oct-2022,Housing & Communities,DENNIS EAGLE LTD,Neighbourhoods,665.18,Fire Service Workshops,2223P07_CR00251,01004865
Sandwell Metropolitan Borough Council,http://www.sandwell.gov.uk/info/200202/performance_and_spending/1079/payments_over_500,17-Oct-2022,Housing & Communities,DENNIS EAGLE LTD,Neighbourhoods,551.45,Fire Service Workshops,2223P07_CR00252,01004865
Sandwell Metropolitan Borough Council,http://www.sandwell.gov.uk/info/200202/performance_and_spending/1079/payments_over_500,01-Oct-2022,Housing & Communities,DENNIS EAGLE LTD,Neighbourhoods,1351.01,Fire Service Workshops,2223P07_CR00253,01004865
Sandwell Metropolitan Borough Council,http://www.sandwell.gov.uk/info/200202/performance_and_spending/1079/payments_over_500,06-Oct-2022,Housing & Communities,DENNIS EAGLE LTD,Neighbourhoods,1645.35,Fire Service Workshops,2223P07_CR00254,01004865
Sandwell Metropolitan Borough Council,http://www.sandwell.gov.uk/info/200202/performance_and_spending/1079/payments_over_500,06-Oct-2022,Housing & Communities,DENNIS EAGLE LTD,Neighbourhoods,2248.91,Fire Service Workshops,2223P07_CR00255,01004865
Sandwell Metropolitan Borough Council,http://www.sandwell.gov.uk/info/200202/performance_and_spending/1079/payments_over_500,10-Oct-2022,Housing & Communities,DENNIS EAGLE LTD,Neighbourhoods,514.26,Fire Service Workshops,2223P07_CR00256,01004865
Sandwell Metropolitan Borough Council,http://www.sandwell.gov.uk/info/200202/performance_and_spending/1079/payments_over_500,10-Oct-2022,Housing & Communities,DENNIS EAGLE LTD,Neighbourhoods,2100.37,Fire Service Workshops,2223P07_CR00257,01004865
Sandwell Metropolitan Borough Council,http://www.sandwell.gov.uk/info/200202/performance_and_spending/1079/payments_over_500,17-Oct-2022,Housing & Communities,DENNIS EAGLE LTD,Neighbourhoods,1133.59,Fire Service Workshops,2223P07_CR00258,01004865
Sandwell Metropolitan Borough Council,http://www.sandwell.gov.uk/info/200202/performance_and_spending/1079/payments_over_500,19-Oct-2022,Housing & Communities,DENNIS EAGLE LTD,Neighbourhoods,548.72,Fire Service Workshops,2223P07_CR00259,01004865
Sandwell Metropolitan Borough Council,http://www.sandwell.gov.uk/info/200202/performance_and_spending/1079/payments_over_500,19-Oct-2022,Housing & Communities,DENNIS EAGLE LTD,Neighbourhoods,934.11,Fire Service Workshops,2223P07_CR00260,01004865
Sandwell Metropolitan Borough Council,http://www.sandwell.gov.uk/info/200202/performance_and_spending/1079/payments_over_500,17-Oct-2022,Housing & Communities,DENNIS EAGLE LTD,Neighbourhoods,1536.22,Fire Service Workshops,2223P07_CR00261,01004865
Sandwell Metropolitan Borough Council,http://www.sandwell.gov.uk/info/200202/performance_and_spending/1079/payments_over_500,13-Oct-2022,Housing & Communities,DENNIS EAGLE LTD,Neighbourhoods,729.37,Fire Service Workshops,2223P07_CR00262,01004865
Sandwell Metropolitan Borough Council,http://www.sandwell.gov.uk/info/200202/performance_and_spending/1079/payments_over_500,21-Oct-2022,Housing & Communities,DENNIS EAGLE LTD,Neighbourhoods,1488.45,Fire Service Workshops,2223P07_CR00263,01004865
Sandwell Metropolitan Borough Council,http://www.sandwell.gov.uk/info/200202/performance_and_spending/1079/payments_over_500,20-Oct-2022,Housing & Communities,DENNIS EAGLE LTD,Neighbourhoods,1271.94,Fire Service Workshops,2223P07_CR00264,01004865
Sandwell Metropolitan Borough Council,http://www.sandwell.gov.uk/info/200202/performance_and_spending/1079/payments_over_500,07-Oct-2022,Housing & Communities,DIGRAPH TRANSPORT SUPPLIES LIMITED,Neighbourhoods,580.00,Fire Service Workshops,2223P07_CR00265,119139
Sandwell Metropolitan Borough Council,http://www.sandwell.gov.uk/info/200202/performance_and_spending/1079/payments_over_500,03-Oct-2022,Housing & Communities,FLEET FACTORS LTD,Neighbourhoods,547.20,Fire Service Workshops,2223P07_CR00266,164128
Sandwell Metropolitan Borough Council,http://www.sandwell.gov.uk/info/200202/performance_and_spending/1079/payments_over_500,21-Oct-2022,Housing & Communities,GEESINK NORBA LTD,Neighbourhoods,3071.11,Fire Service Workshops,2223P07_CR00267,102799
Sandwell Metropolitan Borough Council,http://www.sandwell.gov.uk/info/200202/performance_and_spending/1079/payments_over_500,20-Oct-2022,Housing & Communities,MIDLAND TRUCK & VAN LTD,Neighbourhoods,1177.20,Fire Service Workshops,2223P07_CR00268,128784
Sandwell Metropolitan Borough Council,http://www.sandwell.gov.uk/info/200202/performance_and_spending/1079/payments_over_500,28-Oct-2022,Housing & Communities,MOTUS COMMERCIALS HALESOWEN,Neighbourhoods,1285.79,Fire Service Workshops,2223P07_CR00269,142253
Sandwell Metropolitan Borough Council,http://www.sandwell.gov.uk/info/200202/performance_and_spending/1079/payments_over_500,01-Oct-2022,Housing & Communities,MOTUS COMMERCIALS HALESOWEN,Neighbourhoods,1421.66,Fire Service Workshops,2223P07_CR00270,142253
Sandwell Metropolitan Borough Council,http://www.sandwell.gov.uk/info/200202/performance_and_spending/1079/payments_over_500,01-Oct-2022,Housing & Communities,OAKLEYS LTD,Neighbourhoods,877.07,Fire Service Workshops,2223P07_CR00271,01598115
Sandwell Metropolitan Borough Council,http://www.sandwell.gov.uk/info/200202/performance_and_spending/1079/payments_over_500,01-Oct-2022,Housing & Communities,OAKLEYS LTD,Neighbourhoods,570.55,Fire Service Workshops,2223P07_CR00272,01598115
Sandwell Metropolitan Borough Council,http://www.sandwell.gov.uk/info/200202/performance_and_spending/1079/payments_over_500,05-Oct-2022,Housing & Communities,ROBINS & DAY PARTS WEST MIDLANDS,Neighbourhoods,717.52,Fire Service Workshops,2223P07_CR00273,118812
Sandwell Metropolitan Borough Council,http://www.sandwell.gov.uk/info/200202/performance_and_spending/1079/payments_over_500,20-Oct-2022,Housing & Communities,ROBINS & DAY PARTS WEST MIDLANDS,Neighbourhoods,785.39,Fire Service Workshops,2223P07_CR00274,118812
Sandwell Metropolitan Borough Council,http://www.sandwell.gov.uk/info/200202/performance_and_spending/1079/payments_over_500,01-Oct-2022,Housing & Communities,ROBINS & DAY PARTS WEST MIDLANDS,Neighbourhoods,953.76,Fire Service Workshops,2223P07_CR00275,118812
Sandwell Metropolitan Borough Council,http://www.sandwell.gov.uk/info/200202/performance_and_spending/1079/payments_over_500,24-Oct-2022,Housing & Communities,ROBINS & DAY PARTS WEST MIDLANDS,Neighbourhoods,822.36,Fire Service Workshops,2223P07_CR00276,118812
Sandwell Metropolitan Borough Council,http://www.sandwell.gov.uk/info/200202/performance_and_spending/1079/payments_over_500,10-Oct-2022,Housing & Communities,RYGOR COMMERCIALS LTD,Neighbourhoods,4330.99,Fire Service Workshops,2223P07_CR00277,3345
Sandwell Metropolitan Borough Council,http://www.sandwell.gov.uk/info/200202/performance_and_spending/1079/payments_over_500,18-Oct-2022,Housing & Communities,RYGOR COMMERCIALS LTD,Neighbourhoods,983.28,Fire Service Workshops,2223P07_CR00278,3345
Sandwell Metropolitan Borough Council,http://www.sandwell.gov.uk/info/200202/performance_and_spending/1079/payments_over_500,13-Oct-2022,Housing & Communities,SCARAB SWEEPERS LTD,Neighbourhoods,5743.85,Fire Service Workshops,2223P07_CR00279,01710482
Sandwell Metropolitan Borough Council,http://www.sandwell.gov.uk/info/200202/performance_and_spending/1079/payments_over_500,07-Oct-2022,Housing & Communities,SHELLEY TRANSMISSION SERVICES LTD,Neighbourhoods,1195.00,Fire Service Workshops,2223P07_CR00280,163886
Sandwell Metropolitan Borough Council,http://www.sandwell.gov.uk/info/200202/performance_and_spending/1079/payments_over_500,12-Oct-2022,Housing & Communities,TAYLOR ENGINEERING & FABRICATIONS LTD,Neighbourhoods,514.46,Fire Service Workshops,2223P07_CR00281,87793
Sandwell Metropolitan Borough Council,http://www.sandwell.gov.uk/info/200202/performance_and_spending/1079/payments_over_500,18-Oct-2022,Housing & Communities,TAYLOR ENGINEERING & FABRICATIONS LTD,Neighbourhoods,566.32,Fire Service Workshops,2223P07_CR00282,87793
Sandwell Metropolitan Borough Council,http://www.sandwell.gov.uk/info/200202/performance_and_spending/1079/payments_over_500,12-Oct-2022,Housing & Communities,TERBERG MATEC UK LTD,Neighbourhoods,1800.77,Fire Service Workshops,2223P07_CR00283,21235
Sandwell Metropolitan Borough Council,http://www.sandwell.gov.uk/info/200202/performance_and_spending/1079/payments_over_500,05-Oct-2022,Housing & Communities,TERBERG MATEC UK LTD,Neighbourhoods,511.58,Fire Service Workshops,2223P07_CR00284,21235
Sandwell Metropolitan Borough Council,http://www.sandwell.gov.uk/info/200202/performance_and_spending/1079/payments_over_500,11-Oct-2022,Housing & Communities,TERBERG MATEC UK LTD,Neighbourhoods,1800.77,Fire Service Workshops,2223P07_CR00285,21235
Sandwell Metropolitan Borough Council,http://www.sandwell.gov.uk/info/200202/performance_and_spending/1079/payments_over_500,20-Oct-2022,Housing & Communities,TERBERG MATEC UK LTD,Neighbourhoods,853.44,Fire Service Workshops,2223P07_CR00286,21235
Sandwell Metropolitan Borough Council,http://www.sandwell.gov.uk/info/200202/performance_and_spending/1079/payments_over_500,12-Oct-2022,Housing & Communities,TH WHITE LIMITED,Neighbourhoods,2049.71,Fire Service Workshops,2223P07_CR00287,01774713
Sandwell Metropolitan Borough Council,http://www.sandwell.gov.uk/info/200202/performance_and_spending/1079/payments_over_500,01-Oct-2022,Housing & Communities,TH WHITE LIMITED,Neighbourhoods,591.00,Fire Service Workshops,2223P07_CR00288,01774713
Sandwell Metropolitan Borough Council,http://www.sandwell.gov.uk/info/200202/performance_and_spending/1079/payments_over_500,21-Oct-2022,Housing & Communities,W.BRINDLEY(GARAGES)LIMITED,Neighbourhoods,575.00,Fire Service Workshops,2223P07_CR00289,151376
Sandwell Metropolitan Borough Council,http://www.sandwell.gov.uk/info/200202/performance_and_spending/1079/payments_over_500,01-Oct-2022,Housing & Communities,ACCESSHIRE NATIONWIDE,Neighbourhoods,1728.00,Vehicle Hiring Charges,2223P07_CR00290,123955
Sandwell Metropolitan Borough Council,http://www.sandwell.gov.uk/info/200202/performance_and_spending/1079/payments_over_500,01-Oct-2022,Housing & Communities,DAWSONGROUP VANS,Neighbourhoods,606.86,Vehicle Hiring Charges,2223P07_CR00291,151498
Sandwell Metropolitan Borough Council,http://www.sandwell.gov.uk/info/200202/performance_and_spending/1079/payments_over_500,01-Oct-2022,Housing & Communities,DAWSONGROUP VANS,Neighbourhoods,511.50,Vehicle Hiring Charges,2223P07_CR00292,151498
Sandwell Metropolitan Borough Council,http://www.sandwell.gov.uk/info/200202/performance_and_spending/1079/payments_over_500,01-Oct-2022,Housing & Communities,DAWSONGROUP VANS,Neighbourhoods,511.50,Vehicle Hiring Charges,2223P07_CR00293,151498
Sandwell Metropolitan Borough Council,http://www.sandwell.gov.uk/info/200202/performance_and_spending/1079/payments_over_500,01-Oct-2022,Housing & Communities,DAYS RENTAL,Neighbourhoods,1060.50,Vehicle Hiring Charges,2223P07_CR00294,128169
Sandwell Metropolitan Borough Council,http://www.sandwell.gov.uk/info/200202/performance_and_spending/1079/payments_over_500,01-Oct-2022,Housing & Communities,DAYS RENTAL,Neighbourhoods,502.20,Vehicle Hiring Charges,2223P07_CR00295,128169
Sandwell Metropolitan Borough Council,http://www.sandwell.gov.uk/info/200202/performance_and_spending/1079/payments_over_500,01-Oct-2022,Housing & Communities,DAYS RENTAL,Neighbourhoods,862.20,Vehicle Hiring Charges,2223P07_CR00296,128169
Sandwell Metropolitan Borough Council,http://www.sandwell.gov.uk/info/200202/performance_and_spending/1079/payments_over_500,01-Oct-2022,Housing & Communities,DAYS RENTAL,Neighbourhoods,502.20,Vehicle Hiring Charges,2223P07_CR00297,128169
Sandwell Metropolitan Borough Council,http://www.sandwell.gov.uk/info/200202/performance_and_spending/1079/payments_over_500,01-Oct-2022,Housing & Communities,DAYS RENTAL,Neighbourhoods,502.20,Vehicle Hiring Charges,2223P07_CR00298,128169
Sandwell Metropolitan Borough Council,http://www.sandwell.gov.uk/info/200202/performance_and_spending/1079/payments_over_500,01-Oct-2022,Housing & Communities,DAYS RENTAL,Neighbourhoods,862.20,Vehicle Hiring Charges,2223P07_CR00299,128169
Sandwell Metropolitan Borough Council,http://www.sandwell.gov.uk/info/200202/performance_and_spending/1079/payments_over_500,01-Oct-2022,Housing & Communities,DAYS RENTAL,Neighbourhoods,862.20,Vehicle Hiring Charges,2223P07_CR00300,128169
Sandwell Metropolitan Borough Council,http://www.sandwell.gov.uk/info/200202/performance_and_spending/1079/payments_over_500,01-Oct-2022,Housing & Communities,DAYS RENTAL,Neighbourhoods,862.20,Vehicle Hiring Charges,2223P07_CR00301,128169
Sandwell Metropolitan Borough Council,http://www.sandwell.gov.uk/info/200202/performance_and_spending/1079/payments_over_500,01-Oct-2022,Housing & Communities,DAYS RENTAL,Neighbourhoods,862.20,Vehicle Hiring Charges,2223P07_CR00302,128169
Sandwell Metropolitan Borough Council,http://www.sandwell.gov.uk/info/200202/performance_and_spending/1079/payments_over_500,01-Oct-2022,Housing & Communities,DAYS RENTAL,Neighbourhoods,621.00,Vehicle Hiring Charges,2223P07_CR00303,128169
Sandwell Metropolitan Borough Council,http://www.sandwell.gov.uk/info/200202/performance_and_spending/1079/payments_over_500,01-Oct-2022,Housing & Communities,DAYS RENTAL,Neighbourhoods,621.00,Vehicle Hiring Charges,2223P07_CR00304,128169
Sandwell Metropolitan Borough Council,http://www.sandwell.gov.uk/info/200202/performance_and_spending/1079/payments_over_500,01-Oct-2022,Housing & Communities,DAYS RENTAL,Neighbourhoods,1078.20,Vehicle Hiring Charges,2223P07_CR00305,128169
Sandwell Metropolitan Borough Council,http://www.sandwell.gov.uk/info/200202/performance_and_spending/1079/payments_over_500,01-Oct-2022,Housing & Communities,ENTERPRISE FLEX-E-RENT,Neighbourhoods,850.50,Vehicle Hiring Charges,2223P07_CR00306,142092
Sandwell Metropolitan Borough Council,http://www.sandwell.gov.uk/info/200202/performance_and_spending/1079/payments_over_500,01-Oct-2022,Housing & Communities,ENTERPRISE FLEX-E-RENT,Neighbourhoods,750.00,Vehicle Hiring Charges,2223P07_CR00307,142092
Sandwell Metropolitan Borough Council,http://www.sandwell.gov.uk/info/200202/performance_and_spending/1079/payments_over_500,01-Oct-2022,Housing & Communities,NATIONWIDE PLATFORMS LTD,Neighbourhoods,1124.20,Vehicle Hiring Charges,2223P07_CR00308,82015
Sandwell Metropolitan Borough Council,http://www.sandwell.gov.uk/info/200202/performance_and_spending/1079/payments_over_500,01-Oct-2022,Housing & Communities,NORTHGATE VEHICLE HIRE (WEST MIDLANDS) LTD,Neighbourhoods,591.00,Vehicle Hiring Charges,2223P07_CR00309,01057676
Sandwell Metropolitan Borough Council,http://www.sandwell.gov.uk/info/200202/performance_and_spending/1079/payments_over_500,17-Oct-2022,Housing & Communities,BOC LTD,Neighbourhoods,695.00,Equipment & Furniture ,2223P07_CR00310,01070163
Sandwell Metropolitan Borough Council,http://www.sandwell.gov.uk/info/200202/performance_and_spending/1079/payments_over_500,19-Oct-2022,Housing & Communities,SPALDINGS (UK) LTD,Neighbourhoods,732.00,Equipment & Furniture ,2223P07_CR00311,01392651
Sandwell Metropolitan Borough Council,http://www.sandwell.gov.uk/info/200202/performance_and_spending/1079/payments_over_500,16-Oct-2022,Housing & Communities,PHS BESAFE,Neighbourhoods,1083.30,Laundry,2223P07_CR00312,124613
Sandwell Metropolitan Borough Council,http://www.sandwell.gov.uk/info/200202/performance_and_spending/1079/payments_over_500,04-Oct-2022,Housing & Communities,TRUCKSTOP-HAWKES,Neighbourhoods,1675.00,Subscriptions,2223P07_CR00313,109408
Sandwell Metropolitan Borough Council,http://www.sandwell.gov.uk/info/200202/performance_and_spending/1079/payments_over_500,24-Oct-2022,Housing & Communities,BIG BEAR MUSIC GROUP,Neighbourhoods,500.00,Externally Purchased Professional Services ,2223P07_CR00314,119267
Sandwell Metropolitan Borough Council,http://www.sandwell.gov.uk/info/200202/performance_and_spending/1079/payments_over_500,01-Oct-2022,Housing & Communities,DORMY HOTEL,Neighbourhoods,500.00,Rents,2223P07_CR00315,01737052
Sandwell Metropolitan Borough Council,http://www.sandwell.gov.uk/info/200202/performance_and_spending/1079/payments_over_500,16-Oct-2022,Housing & Communities,DRAMA AND SOME CIC,Neighbourhoods,500.00,Materials & Consumables,2223P07_CR00316,113380
Sandwell Metropolitan Borough Council,http://www.sandwell.gov.uk/info/200202/performance_and_spending/1079/payments_over_500,01-Oct-2022,Housing & Communities,THUNDER CHUNKY,Neighbourhoods,500.00,Civic Events,2223P07_CR00317,163752
Sandwell Metropolitan Borough Council,http://www.sandwell.gov.uk/info/200202/performance_and_spending/1079/payments_over_500,19-Oct-2022,Housing & Communities,TUDOR ENVIRONMENTAL,Neighbourhoods,512.40,Materials & Consumables,2223P07_CR00318,01528713
Sandwell Metropolitan Borough Council,http://www.sandwell.gov.uk/info/200202/performance_and_spending/1079/payments_over_500,01-Oct-2022,Housing & Communities,MIDLAND FORESTRY LIMITED,Neighbourhoods,520.00,Externally Purchased Professional Services ,2223P07_CR00319,45812
Sandwell Metropolitan Borough Council,http://www.sandwell.gov.uk/info/200202/performance_and_spending/1079/payments_over_500,11-Oct-2022,Housing & Communities,MIDLAND FORESTRY LIMITED,Neighbourhoods,528.00,Externally Purchased Professional Services ,2223P07_CR00320,45812
Sandwell Metropolitan Borough Council,http://www.sandwell.gov.uk/info/200202/performance_and_spending/1079/payments_over_500,01-Oct-2022,Housing & Communities,MIDLAND FORESTRY LIMITED,Neighbourhoods,528.00,Externally Purchased Professional Services ,2223P07_CR00321,45812
Sandwell Metropolitan Borough Council,http://www.sandwell.gov.uk/info/200202/performance_and_spending/1079/payments_over_500,10-Oct-2022,Housing & Communities,TOTALENERGIES GAS & POWER LTD,Neighbourhoods,529.70,Gas,2223P07_CR00322,107605
Sandwell Metropolitan Borough Council,http://www.sandwell.gov.uk/info/200202/performance_and_spending/1079/payments_over_500,03-Oct-2022,Housing & Communities,DECORON WALLPAPERS LTD,Neighbourhoods,533.88,Repairs & Maintenance,2223P07_CR00323,01004615
Sandwell Metropolitan Borough Council,http://www.sandwell.gov.uk/info/200202/performance_and_spending/1079/payments_over_500,01-Oct-2022,Housing & Communities,MIDLAND FORESTRY LIMITED,Neighbourhoods,536.00,Externally Purchased Professional Services ,2223P07_CR00324,45812
Sandwell Metropolitan Borough Council,http://www.sandwell.gov.uk/info/200202/performance_and_spending/1079/payments_over_500,05-Oct-2022,Housing & Communities,CONTRACT LETTINGS LTD,Neighbourhoods,541.80,Rents,2223P07_CR00325,76625
Sandwell Metropolitan Borough Council,http://www.sandwell.gov.uk/info/200202/performance_and_spending/1079/payments_over_500,05-Oct-2022,Housing & Communities,CONTRACT LETTINGS LTD,Neighbourhoods,541.80,Rents,2223P07_CR00326,76625
Sandwell Metropolitan Borough Council,http://www.sandwell.gov.uk/info/200202/performance_and_spending/1079/payments_over_500,01-Oct-2022,Housing & Communities,BEECHWOOD TREES & LANDSCAPE LTD,Neighbourhoods,546.00,Externally Purchased Professional Services ,2223P07_CR00327,93287
Sandwell Metropolitan Borough Council,http://www.sandwell.gov.uk/info/200202/performance_and_spending/1079/payments_over_500,06-Oct-2022,Housing & Communities,HILL INTERIOR CONTRACTS LTD,Neighbourhoods,547.00,Contract Payments,2223P07_CR00328,17158
Sandwell Metropolitan Borough Council,http://www.sandwell.gov.uk/info/200202/performance_and_spending/1079/payments_over_500,28-Oct-2022,Housing & Communities,ANIMAL ISLAND LTD,Neighbourhoods,550.00,Civic Events,2223P07_CR00329,164134
Sandwell Metropolitan Borough Council,http://www.sandwell.gov.uk/info/200202/performance_and_spending/1079/payments_over_500,19-Oct-2022,Housing & Communities,HINDLEY CONTRACTORS LIMITED,Neighbourhoods,550.40,Security,2223P07_CR00330,77002804
Sandwell Metropolitan Borough Council,http://www.sandwell.gov.uk/info/200202/performance_and_spending/1079/payments_over_500,01-Oct-2022,Housing & Communities,VENDAID LTD,Neighbourhoods,558.11,Catering Provisions,2223P07_CR00331,01045695
Sandwell Metropolitan Borough Council,http://www.sandwell.gov.uk/info/200202/performance_and_spending/1079/payments_over_500,18-Oct-2022,Housing & Communities,A E CHAPMAN & CO (OLD HILL) LTD,Neighbourhoods,569.02,Advertising & Publicity,2223P07_CR00332,77001665
Sandwell Metropolitan Borough Council,http://www.sandwell.gov.uk/info/200202/performance_and_spending/1079/payments_over_500,06-Oct-2022,Housing & Communities,TUDOR ENVIRONMENTAL,Neighbourhoods,574.52,Materials & Consumables,2223P07_CR00333,01528713
Sandwell Metropolitan Borough Council,http://www.sandwell.gov.uk/info/200202/performance_and_spending/1079/payments_over_500,01-Oct-2022,Housing & Communities,MIDLAND FORESTRY LIMITED,Neighbourhoods,586.00,Externally Purchased Professional Services ,2223P07_CR00334,45812
Sandwell Metropolitan Borough Council,http://www.sandwell.gov.uk/info/200202/performance_and_spending/1079/payments_over_500,01-Oct-2022,Housing & Communities,MIDLANDS SUPERCREAM (BRIERLEY HILL) LTD,Neighbourhoods,592.14,Catering Provisions,2223P07_CR00335,137338
Sandwell Metropolitan Borough Council,http://www.sandwell.gov.uk/info/200202/performance_and_spending/1079/payments_over_500,01-Oct-2022,Housing & Communities,BIRMINGHAM INTERNATIONAL JAZZ & BLUES FESTIVAL LIMITED,Neighbourhoods,595.00,Civic Events,2223P07_CR00336,87922
Sandwell Metropolitan Borough Council,http://www.sandwell.gov.uk/info/200202/performance_and_spending/1079/payments_over_500,03-Oct-2022,Housing & Communities,BRUSHSTROKES,Neighbourhoods,600.00,Externally Purchased Professional Services ,2223P07_CR00337,21029374
Sandwell Metropolitan Borough Council,http://www.sandwell.gov.uk/info/200202/performance_and_spending/1079/payments_over_500,01-Oct-2022,Housing & Communities,MECHANICAL CLEANSING SERVICES LTD,Neighbourhoods,600.00,Waste Disposal Charges,2223P07_CR00338,01378472
Sandwell Metropolitan Borough Council,http://www.sandwell.gov.uk/info/200202/performance_and_spending/1079/payments_over_500,01-Oct-2022,Housing & Communities,MECHANICAL CLEANSING SERVICES LTD,Neighbourhoods,600.00,Waste Disposal Charges,2223P07_CR00339,01378472
Sandwell Metropolitan Borough Council,http://www.sandwell.gov.uk/info/200202/performance_and_spending/1079/payments_over_500,01-Oct-2022,Housing & Communities,JAY SECURITY AND EVENTS LIMITED,Neighbourhoods,609.00,Security,2223P07_CR00340,162111
Sandwell Metropolitan Borough Council,http://www.sandwell.gov.uk/info/200202/performance_and_spending/1079/payments_over_500,01-Oct-2022,Housing & Communities,JAY SECURITY AND EVENTS LIMITED,Neighbourhoods,609.00,Security,2223P07_CR00341,162111
Sandwell Metropolitan Borough Council,http://www.sandwell.gov.uk/info/200202/performance_and_spending/1079/payments_over_500,01-Oct-2022,Housing & Communities,JAY SECURITY AND EVENTS LIMITED,Neighbourhoods,609.00,Security,2223P07_CR00342,162111
Sandwell Metropolitan Borough Council,http://www.sandwell.gov.uk/info/200202/performance_and_spending/1079/payments_over_500,01-Oct-2022,Housing & Communities,JAY SECURITY AND EVENTS LIMITED,Neighbourhoods,609.00,Security,2223P07_CR00343,162111
Sandwell Metropolitan Borough Council,http://www.sandwell.gov.uk/info/200202/performance_and_spending/1079/payments_over_500,01-Oct-2022,Housing & Communities,JAY SECURITY AND EVENTS LIMITED,Neighbourhoods,609.00,Security,2223P07_CR00344,162111
Sandwell Metropolitan Borough Council,http://www.sandwell.gov.uk/info/200202/performance_and_spending/1079/payments_over_500,01-Oct-2022,Housing & Communities,JAY SECURITY AND EVENTS LIMITED,Neighbourhoods,609.00,Security,2223P07_CR00345,162111
Sandwell Metropolitan Borough Council,http://www.sandwell.gov.uk/info/200202/performance_and_spending/1079/payments_over_500,01-Oct-2022,Housing & Communities,MIDLAND FORESTRY LIMITED,Neighbourhoods,610.00,Externally Purchased Professional Services ,2223P07_CR00346,45812
Sandwell Metropolitan Borough Council,http://www.sandwell.gov.uk/info/200202/performance_and_spending/1079/payments_over_500,01-Oct-2022,Housing & Communities,RIGHT TO CARE LTD.,Neighbourhoods,613.98,Rents,2223P07_CR00347,133426
Sandwell Metropolitan Borough Council,http://www.sandwell.gov.uk/info/200202/performance_and_spending/1079/payments_over_500,12-Oct-2022,Housing & Communities,HIRE STATION LIMITED T/A BRANDON HIRE STATION,Neighbourhoods,615.00,Equipment & Furniture ,2223P07_CR00348,138598
Sandwell Metropolitan Borough Council,http://www.sandwell.gov.uk/info/200202/performance_and_spending/1079/payments_over_500,01-Oct-2022,Housing & Communities,MIDLAND FORESTRY LIMITED,Neighbourhoods,622.00,Externally Purchased Professional Services ,2223P07_CR00349,45812
Sandwell Metropolitan Borough Council,http://www.sandwell.gov.uk/info/200202/performance_and_spending/1079/payments_over_500,01-Oct-2022,Housing & Communities,BEECHWOOD TREES & LANDSCAPE LTD,Neighbourhoods,630.00,Externally Purchased Professional Services ,2223P07_CR00350,93287
Sandwell Metropolitan Borough Council,http://www.sandwell.gov.uk/info/200202/performance_and_spending/1079/payments_over_500,07-Oct-2022,Housing & Communities,BEECHWOOD TREES & LANDSCAPE LTD,Neighbourhoods,630.00,Externally Purchased Professional Services ,2223P07_CR00351,93287
Sandwell Metropolitan Borough Council,http://www.sandwell.gov.uk/info/200202/performance_and_spending/1079/payments_over_500,01-Oct-2022,Housing & Communities,MIDLAND FORESTRY LIMITED,Neighbourhoods,634.00,Externally Purchased Professional Services ,2223P07_CR00352,45812
Sandwell Metropolitan Borough Council,http://www.sandwell.gov.uk/info/200202/performance_and_spending/1079/payments_over_500,10-Oct-2022,Housing & Communities,AGRIGEM LTD,Neighbourhoods,638.00,Grounds Maintenance & Improvements,2223P07_CR00353,162012
Sandwell Metropolitan Borough Council,http://www.sandwell.gov.uk/info/200202/performance_and_spending/1079/payments_over_500,01-Oct-2022,Housing & Communities,BEECHWOOD TREES & LANDSCAPE LTD,Neighbourhoods,646.00,Externally Purchased Professional Services ,2223P07_CR00354,93287
Sandwell Metropolitan Borough Council,http://www.sandwell.gov.uk/info/200202/performance_and_spending/1079/payments_over_500,01-Oct-2022,Housing & Communities,TELETRAC NAVMAN (UK) LTD,Neighbourhoods,658.00,External Contract Hire,2223P07_CR00355,129341
Sandwell Metropolitan Borough Council,http://www.sandwell.gov.uk/info/200202/performance_and_spending/1079/payments_over_500,01-Oct-2022,Housing & Communities,MIDLAND FORESTRY LIMITED,Neighbourhoods,674.00,Externally Purchased Professional Services ,2223P07_CR00356,45812
Sandwell Metropolitan Borough Council,http://www.sandwell.gov.uk/info/200202/performance_and_spending/1079/payments_over_500,05-Oct-2022,Housing & Communities,CONTRACT LETTINGS LTD,Neighbourhoods,678.60,Rents,2223P07_CR00357,76625
Sandwell Metropolitan Borough Council,http://www.sandwell.gov.uk/info/200202/performance_and_spending/1079/payments_over_500,05-Oct-2022,Housing & Communities,CONTRACT LETTINGS LTD,Neighbourhoods,678.60,Rents,2223P07_CR00358,76625
Sandwell Metropolitan Borough Council,http://www.sandwell.gov.uk/info/200202/performance_and_spending/1079/payments_over_500,01-Oct-2022,Housing & Communities,GILANI ENTERPRISES LIMITED,Neighbourhoods,700.00,Rents,2223P07_CR00359,2696
Sandwell Metropolitan Borough Council,http://www.sandwell.gov.uk/info/200202/performance_and_spending/1079/payments_over_500,01-Oct-2022,Housing & Communities,GILANI ENTERPRISES LIMITED,Neighbourhoods,700.00,Rents,2223P07_CR00360,2696
Sandwell Metropolitan Borough Council,http://www.sandwell.gov.uk/info/200202/performance_and_spending/1079/payments_over_500,01-Oct-2022,Housing & Communities,GILANI ENTERPRISES LIMITED,Neighbourhoods,700.00,Rents,2223P07_CR00361,2696
Sandwell Metropolitan Borough Council,http://www.sandwell.gov.uk/info/200202/performance_and_spending/1079/payments_over_500,01-Oct-2022,Housing & Communities,RENAISSANCE CREATIVE DESIGN & PRINT LTD,Neighbourhoods,700.00,"Printing, Stationery & General Office Expenses",2223P07_CR00362,97376
Sandwell Metropolitan Borough Council,http://www.sandwell.gov.uk/info/200202/performance_and_spending/1079/payments_over_500,17-Oct-2022,Housing & Communities,B & S CHAINS (MIDLANDS) LIMITED,Neighbourhoods,709.00,Equipment & Furniture ,2223P07_CR00363,01357251
Sandwell Metropolitan Borough Council,http://www.sandwell.gov.uk/info/200202/performance_and_spending/1079/payments_over_500,01-Oct-2022,Housing & Communities,MANOR ABBEY FOODS LTD,Neighbourhoods,712.91,Catering Provisions,2223P07_CR00364,63063
Sandwell Metropolitan Borough Council,http://www.sandwell.gov.uk/info/200202/performance_and_spending/1079/payments_over_500,01-Oct-2022,Housing & Communities,RIGHT TO CARE LTD.,Neighbourhoods,716.43,Rents,2223P07_CR00365,133426
Sandwell Metropolitan Borough Council,http://www.sandwell.gov.uk/info/200202/performance_and_spending/1079/payments_over_500,13-Oct-2022,Housing & Communities,HILL INTERIOR CONTRACTS LTD,Neighbourhoods,727.44,Civic Events,2223P07_CR00366,17158
Sandwell Metropolitan Borough Council,http://www.sandwell.gov.uk/info/200202/performance_and_spending/1079/payments_over_500,06-Oct-2022,Housing & Communities,MANOR ABBEY FOODS LTD,Neighbourhoods,732.35,Catering Provisions,2223P07_CR00367,63063
Sandwell Metropolitan Borough Council,http://www.sandwell.gov.uk/info/200202/performance_and_spending/1079/payments_over_500,05-Oct-2022,Housing & Communities,CONTRACT LETTINGS LTD,Neighbourhoods,738.60,Rents,2223P07_CR00368,76625
Sandwell Metropolitan Borough Council,http://www.sandwell.gov.uk/info/200202/performance_and_spending/1079/payments_over_500,05-Oct-2022,Housing & Communities,CONTRACT LETTINGS LTD,Neighbourhoods,738.60,Rents,2223P07_CR00369,76625
Sandwell Metropolitan Borough Council,http://www.sandwell.gov.uk/info/200202/performance_and_spending/1079/payments_over_500,01-Oct-2022,Housing & Communities,PENNON WATER SERVICES T/A SOURCE FOR BUSINESS,Neighbourhoods,749.35,Water Services,2223P07_CR00370,131726
Sandwell Metropolitan Borough Council,http://www.sandwell.gov.uk/info/200202/performance_and_spending/1079/payments_over_500,24-Oct-2022,Housing & Communities,BIG BEAR MUSIC GROUP,Neighbourhoods,750.00,Civic Events,2223P07_CR00371,119267
Sandwell Metropolitan Borough Council,http://www.sandwell.gov.uk/info/200202/performance_and_spending/1079/payments_over_500,01-Oct-2022,Housing & Communities,CENTRAL DESIGN CONSULTANTS LTD,Neighbourhoods,750.00,Consultancy,2223P07_CR00372,4103
Sandwell Metropolitan Borough Council,http://www.sandwell.gov.uk/info/200202/performance_and_spending/1079/payments_over_500,01-Oct-2022,Housing & Communities,SNAP ANIMATION,Neighbourhoods,750.00,Civic Events,2223P07_CR00373,155409
Sandwell Metropolitan Borough Council,http://www.sandwell.gov.uk/info/200202/performance_and_spending/1079/payments_over_500,20-Oct-2022,Housing & Communities,HILL INTERIOR CONTRACTS LTD,Neighbourhoods,752.24,Civic Events,2223P07_CR00374,17158
Sandwell Metropolitan Borough Council,http://www.sandwell.gov.uk/info/200202/performance_and_spending/1079/payments_over_500,01-Oct-2022,Housing & Communities,SERCO LIMITED,Neighbourhoods,758.65,Waste Disposal Charges,2223P07_CR00375,53771
Sandwell Metropolitan Borough Council,http://www.sandwell.gov.uk/info/200202/performance_and_spending/1079/payments_over_500,10-Oct-2022,Housing & Communities,EPOS NOW LTD,Neighbourhoods,764.32,ICT ,2223P07_CR00376,164201
Sandwell Metropolitan Borough Council,http://www.sandwell.gov.uk/info/200202/performance_and_spending/1079/payments_over_500,01-Oct-2022,Housing & Communities,BLACK COUNTRY TOURING,Neighbourhoods,800.00,Civic Events,2223P07_CR00377,01661722
Sandwell Metropolitan Borough Council,http://www.sandwell.gov.uk/info/200202/performance_and_spending/1079/payments_over_500,01-Oct-2022,Housing & Communities,WATER PLUS SELECT LIMITED,Neighbourhoods,809.13,Water Services,2223P07_CR00378,129644
Sandwell Metropolitan Borough Council,http://www.sandwell.gov.uk/info/200202/performance_and_spending/1079/payments_over_500,11-Oct-2022,Housing & Communities,PESTEX LTD,Neighbourhoods,840.00,Pest Control,2223P07_CR00379,01464607
Sandwell Metropolitan Borough Council,http://www.sandwell.gov.uk/info/200202/performance_and_spending/1079/payments_over_500,01-Oct-2022,Housing & Communities,PESTEX LTD,Neighbourhoods,840.00,Pest Control,2223P07_CR00380,01464607
Sandwell Metropolitan Borough Council,http://www.sandwell.gov.uk/info/200202/performance_and_spending/1079/payments_over_500,01-Oct-2022,Housing & Communities,MIDLAND CHILLED FOODS LIMITED,Neighbourhoods,844.64,Materials & Consumables,2223P07_CR00381,106924
Sandwell Metropolitan Borough Council,http://www.sandwell.gov.uk/info/200202/performance_and_spending/1079/payments_over_500,17-Oct-2022,Housing & Communities,MACINTOSH FOODSERVICE SOLUTIONS LTD,Neighbourhoods,846.00,Externally Purchased Professional Services ,2223P07_CR00382,162369
Sandwell Metropolitan Borough Council,http://www.sandwell.gov.uk/info/200202/performance_and_spending/1079/payments_over_500,01-Oct-2022,Housing & Communities,HELP2RENT LTD,Neighbourhoods,850.00,Rents,2223P07_CR00383,155180
Sandwell Metropolitan Borough Council,http://www.sandwell.gov.uk/info/200202/performance_and_spending/1079/payments_over_500,07-Oct-2022,Housing & Communities,SUNBELT RENTALS LTD,Neighbourhoods,858.40,Equipment & Furniture ,2223P07_CR00384,01508935
Sandwell Metropolitan Borough Council,http://www.sandwell.gov.uk/info/200202/performance_and_spending/1079/payments_over_500,05-Oct-2022,Housing & Communities,RED MOON CONCEPTS LTD,Neighbourhoods,876.67,Catering Equipment,2223P07_CR00385,162312
Sandwell Metropolitan Borough Council,http://www.sandwell.gov.uk/info/200202/performance_and_spending/1079/payments_over_500,01-Oct-2022,Housing & Communities,PROMARCO PROMOTIONS LTD,Neighbourhoods,895.00,Civic Events,2223P07_CR00386,01577242
Sandwell Metropolitan Borough Council,http://www.sandwell.gov.uk/info/200202/performance_and_spending/1079/payments_over_500,01-Oct-2022,Housing & Communities,BIG BEAR MUSIC GROUP,Neighbourhoods,900.00,Civic Events,2223P07_CR00387,119267
Sandwell Metropolitan Borough Council,http://www.sandwell.gov.uk/info/200202/performance_and_spending/1079/payments_over_500,01-Oct-2022,Housing & Communities,JUBILEE PARK COMMUNITY CENTRE,Neighbourhoods,900.00,Hire of Facilities,2223P07_CR00388,13048
Sandwell Metropolitan Borough Council,http://www.sandwell.gov.uk/info/200202/performance_and_spending/1079/payments_over_500,01-Oct-2022,Housing & Communities,BCH PROPERTY LIMITED,Neighbourhoods,933.52,Rents,2223P07_CR00389,01011861
Sandwell Metropolitan Borough Council,http://www.sandwell.gov.uk/info/200202/performance_and_spending/1079/payments_over_500,01-Oct-2022,Housing & Communities,SERCO LIMITED,Neighbourhoods,939.33,Waste Disposal Charges,2223P07_CR00390,53771
Sandwell Metropolitan Borough Council,http://www.sandwell.gov.uk/info/200202/performance_and_spending/1079/payments_over_500,18-Oct-2022,Housing & Communities,TOTALENERGIES GAS & POWER LTD,Neighbourhoods,966.97,Electricity,2223P07_CR00391,107605
Sandwell Metropolitan Borough Council,http://www.sandwell.gov.uk/info/200202/performance_and_spending/1079/payments_over_500,01-Oct-2022,Housing & Communities,WYNNSTAY (AGRICULTURAL SUPPLIES) LIMITED,Neighbourhoods,969.73,Externally Purchased Professional Services ,2223P07_CR00392,121165
Sandwell Metropolitan Borough Council,http://www.sandwell.gov.uk/info/200202/performance_and_spending/1079/payments_over_500,01-Oct-2022,Housing & Communities,GIFTFINDER & COMPANY,Neighbourhoods,974.00,Protective Clothing & Uniforms,2223P07_CR00393,101919
Sandwell Metropolitan Borough Council,http://www.sandwell.gov.uk/info/200202/performance_and_spending/1079/payments_over_500,01-Oct-2022,Housing & Communities,GILANI ENTERPRISES LIMITED,Neighbourhoods,991.67,Rents,2223P07_CR00394,2696
Sandwell Metropolitan Borough Council,http://www.sandwell.gov.uk/info/200202/performance_and_spending/1079/payments_over_500,24-Oct-2022,Housing & Communities,RENTADINOSAUR LTD,Neighbourhoods,1000.00,Civic Events,2223P07_CR00395,164377
Sandwell Metropolitan Borough Council,http://www.sandwell.gov.uk/info/200202/performance_and_spending/1079/payments_over_500,01-Oct-2022,Housing & Communities,CHILD POVERTY ACTION GROUP,Neighbourhoods,1022.04,Licences,2223P07_CR00396,01610718
Sandwell Metropolitan Borough Council,http://www.sandwell.gov.uk/info/200202/performance_and_spending/1079/payments_over_500,03-Oct-2022,Housing & Communities,TH WHITE LIMITED,Neighbourhoods,1048.95,Equipment & Furniture ,2223P07_CR00397,01774713
Sandwell Metropolitan Borough Council,http://www.sandwell.gov.uk/info/200202/performance_and_spending/1079/payments_over_500,01-Oct-2022,Housing & Communities,BEECHWOOD TREES & LANDSCAPE LTD,Neighbourhoods,1055.00,Externally Purchased Professional Services ,2223P07_CR00398,93287
Sandwell Metropolitan Borough Council,http://www.sandwell.gov.uk/info/200202/performance_and_spending/1079/payments_over_500,01-Oct-2022,Housing & Communities,JAY SECURITY AND EVENTS LIMITED,Neighbourhoods,1085.00,Security,2223P07_CR00399,162111
Sandwell Metropolitan Borough Council,http://www.sandwell.gov.uk/info/200202/performance_and_spending/1079/payments_over_500,01-Oct-2022,Housing & Communities,JAY SECURITY AND EVENTS LIMITED,Neighbourhoods,1085.00,Security,2223P07_CR00400,162111
Sandwell Metropolitan Borough Council,http://www.sandwell.gov.uk/info/200202/performance_and_spending/1079/payments_over_500,01-Oct-2022,Housing & Communities,JAY SECURITY AND EVENTS LIMITED,Neighbourhoods,1085.00,Security,2223P07_CR00401,162111
Sandwell Metropolitan Borough Council,http://www.sandwell.gov.uk/info/200202/performance_and_spending/1079/payments_over_500,01-Oct-2022,Housing & Communities,JAY SECURITY AND EVENTS LIMITED,Neighbourhoods,1085.00,Security,2223P07_CR00402,162111
Sandwell Metropolitan Borough Council,http://www.sandwell.gov.uk/info/200202/performance_and_spending/1079/payments_over_500,06-Oct-2022,Housing & Communities,OMNIPLEX (GROUP) LTD,Neighbourhoods,1088.41,Externally Purchased Professional Services ,2223P07_CR00403,152463
Sandwell Metropolitan Borough Council,http://www.sandwell.gov.uk/info/200202/performance_and_spending/1079/payments_over_500,01-Oct-2022,Housing & Communities,WATER PLUS SELECT LIMITED,Neighbourhoods,1111.59,Water Services,2223P07_CR00404,129644
Sandwell Metropolitan Borough Council,http://www.sandwell.gov.uk/info/200202/performance_and_spending/1079/payments_over_500,01-Oct-2022,Housing & Communities,VALIDHIRST LTD,Neighbourhoods,1165.00,ICT ,2223P07_CR00405,164211
Sandwell Metropolitan Borough Council,http://www.sandwell.gov.uk/info/200202/performance_and_spending/1079/payments_over_500,01-Oct-2022,Housing & Communities,CERTAS ENERGY LIMITED,Neighbourhoods,1173.98,Fuel ,2223P07_CR00406,80421
Sandwell Metropolitan Borough Council,http://www.sandwell.gov.uk/info/200202/performance_and_spending/1079/payments_over_500,01-Oct-2022,Housing & Communities,RIGHT TO CARE LTD.,Neighbourhoods,1178.57,Rents,2223P07_CR00407,133426
Sandwell Metropolitan Borough Council,http://www.sandwell.gov.uk/info/200202/performance_and_spending/1079/payments_over_500,01-Oct-2022,Housing & Communities,JAY SECURITY AND EVENTS LIMITED,Neighbourhoods,1247.75,Security,2223P07_CR00408,162111
Sandwell Metropolitan Borough Council,http://www.sandwell.gov.uk/info/200202/performance_and_spending/1079/payments_over_500,01-Oct-2022,Housing & Communities,MIDLAND FORESTRY LIMITED,Neighbourhoods,1250.00,Externally Purchased Professional Services ,2223P07_CR00409,45812
Sandwell Metropolitan Borough Council,http://www.sandwell.gov.uk/info/200202/performance_and_spending/1079/payments_over_500,17-Oct-2022,Housing & Communities,PROMINENT T LS,Neighbourhoods,1250.00,Advertising & Publicity,2223P07_CR00410,164324
Sandwell Metropolitan Borough Council,http://www.sandwell.gov.uk/info/200202/performance_and_spending/1079/payments_over_500,01-Oct-2022,Housing & Communities,RIGHT TO CARE LTD.,Neighbourhoods,1264.29,Rents,2223P07_CR00411,133426
Sandwell Metropolitan Borough Council,http://www.sandwell.gov.uk/info/200202/performance_and_spending/1079/payments_over_500,01-Oct-2022,Housing & Communities,VENDAID LTD,Neighbourhoods,1271.16,Materials & Consumables,2223P07_CR00412,01045695
Sandwell Metropolitan Borough Council,http://www.sandwell.gov.uk/info/200202/performance_and_spending/1079/payments_over_500,17-Oct-2022,Housing & Communities,MACINTOSH FOODSERVICE SOLUTIONS LTD,Neighbourhoods,1278.36,Catering Equipment,2223P07_CR00413,162369
Sandwell Metropolitan Borough Council,http://www.sandwell.gov.uk/info/200202/performance_and_spending/1079/payments_over_500,01-Oct-2022,Housing & Communities,BCH PROPERTY LIMITED,Neighbourhoods,1283.52,Rents,2223P07_CR00414,01011861
Sandwell Metropolitan Borough Council,http://www.sandwell.gov.uk/info/200202/performance_and_spending/1079/payments_over_500,01-Oct-2022,Housing & Communities,BCH PROPERTY LIMITED,Neighbourhoods,1283.52,Rents,2223P07_CR00415,01011861
Sandwell Metropolitan Borough Council,http://www.sandwell.gov.uk/info/200202/performance_and_spending/1079/payments_over_500,01-Oct-2022,Housing & Communities,GILANI ENTERPRISES LIMITED,Neighbourhoods,1375.00,Rents,2223P07_CR00416,2696
Sandwell Metropolitan Borough Council,http://www.sandwell.gov.uk/info/200202/performance_and_spending/1079/payments_over_500,01-Oct-2022,Housing & Communities,HOME FARM NURSERIES (PINVIN) LIMITED,Neighbourhoods,1380.55,Equipment & Furniture ,2223P07_CR00417,77003445
Sandwell Metropolitan Borough Council,http://www.sandwell.gov.uk/info/200202/performance_and_spending/1079/payments_over_500,01-Oct-2022,Housing & Communities,CITRON HYGIENE UK LTD,Neighbourhoods,1389.45,Contract Cleaning,2223P07_CR00418,140849
Sandwell Metropolitan Borough Council,http://www.sandwell.gov.uk/info/200202/performance_and_spending/1079/payments_over_500,01-Oct-2022,Housing & Communities,GREENTECH LTD,Housing & Communities,1389.64,Materials & Consumables,2223P07_CR00419,163053
Sandwell Metropolitan Borough Council,http://www.sandwell.gov.uk/info/200202/performance_and_spending/1079/payments_over_500,01-Oct-2022,Housing & Communities,"HIGHFIELD HOUSE HOTEL,",Neighbourhoods,1400.00,Rents,2223P07_CR00420,162756
Sandwell Metropolitan Borough Council,http://www.sandwell.gov.uk/info/200202/performance_and_spending/1079/payments_over_500,01-Oct-2022,Housing & Communities,DORMY HOTEL,Neighbourhoods,1416.67,Rents,2223P07_CR00421,01737052
Sandwell Metropolitan Borough Council,http://www.sandwell.gov.uk/info/200202/performance_and_spending/1079/payments_over_500,01-Oct-2022,Housing & Communities,HINDLEY CONTRACTORS LIMITED,Neighbourhoods,1417.45,Security,2223P07_CR00422,77002804
Sandwell Metropolitan Borough Council,http://www.sandwell.gov.uk/info/200202/performance_and_spending/1079/payments_over_500,01-Oct-2022,Housing & Communities,"HIGHFIELD HOUSE HOTEL,",Neighbourhoods,1480.00,Rents,2223P07_CR00423,162756
Sandwell Metropolitan Borough Council,http://www.sandwell.gov.uk/info/200202/performance_and_spending/1079/payments_over_500,03-Oct-2022,Housing & Communities,SHERRIFFS FOODS LIMITED T/A FOSTERS,Neighbourhoods,1487.88,Materials & Consumables,2223P07_CR00424,139776
Sandwell Metropolitan Borough Council,http://www.sandwell.gov.uk/info/200202/performance_and_spending/1079/payments_over_500,01-Oct-2022,Housing & Communities,MIDLAND FORESTRY LIMITED,Neighbourhoods,1524.00,Externally Purchased Professional Services ,2223P07_CR00425,45812
Sandwell Metropolitan Borough Council,http://www.sandwell.gov.uk/info/200202/performance_and_spending/1079/payments_over_500,17-Oct-2022,Housing & Communities,RENAISSANCE CREATIVE DESIGN & PRINT LTD,Neighbourhoods,1530.00,"Printing, Stationery & General Office Expenses",2223P07_CR00426,97376
Sandwell Metropolitan Borough Council,http://www.sandwell.gov.uk/info/200202/performance_and_spending/1079/payments_over_500,06-Oct-2022,Housing & Communities,W V HOWE LTD,Neighbourhoods,1536.26,Equipment & Furniture ,2223P07_CR00427,01052548
Sandwell Metropolitan Borough Council,http://www.sandwell.gov.uk/info/200202/performance_and_spending/1079/payments_over_500,01-Oct-2022,Housing & Communities,THOMSON ENVIRONMENTAL CONSULTANTS LTD,Housing & Communities,1544.30,"CIP - New Construction,Conversion, Enhancement & Reno",2223P07_CR00428,120393
Sandwell Metropolitan Borough Council,http://www.sandwell.gov.uk/info/200202/performance_and_spending/1079/payments_over_500,01-Oct-2022,Housing & Communities,BCH PROPERTY LIMITED,Neighbourhoods,1568.00,Rents,2223P07_CR00429,01011861
Sandwell Metropolitan Borough Council,http://www.sandwell.gov.uk/info/200202/performance_and_spending/1079/payments_over_500,01-Oct-2022,Housing & Communities,JAY SECURITY AND EVENTS LIMITED,Neighbourhoods,1573.25,Security,2223P07_CR00430,162111
Sandwell Metropolitan Borough Council,http://www.sandwell.gov.uk/info/200202/performance_and_spending/1079/payments_over_500,01-Oct-2022,Housing & Communities,ROYALE TRAINING LTD,Neighbourhoods,1579.30,Rents,2223P07_CR00431,133604
Sandwell Metropolitan Borough Council,http://www.sandwell.gov.uk/info/200202/performance_and_spending/1079/payments_over_500,01-Oct-2022,Housing & Communities,ROYALE TRAINING LTD,Neighbourhoods,1579.30,Rents,2223P07_CR00432,133604
Sandwell Metropolitan Borough Council,http://www.sandwell.gov.uk/info/200202/performance_and_spending/1079/payments_over_500,01-Oct-2022,Housing & Communities,ROYALE TRAINING LTD,Neighbourhoods,1579.30,Rents,2223P07_CR00433,133604
Sandwell Metropolitan Borough Council,http://www.sandwell.gov.uk/info/200202/performance_and_spending/1079/payments_over_500,01-Oct-2022,Housing & Communities,ROYALE TRAINING LTD,Neighbourhoods,1579.30,Rents,2223P07_CR00434,133604
Sandwell Metropolitan Borough Council,http://www.sandwell.gov.uk/info/200202/performance_and_spending/1079/payments_over_500,18-Oct-2022,Housing & Communities,G & B KENDALL & SONS,Neighbourhoods,1600.00,Externally Purchased Professional Services ,2223P07_CR00435,01422772
Sandwell Metropolitan Borough Council,http://www.sandwell.gov.uk/info/200202/performance_and_spending/1079/payments_over_500,01-Oct-2022,Housing & Communities,GILANI ENTERPRISES LIMITED,Neighbourhoods,1700.00,Rents,2223P07_CR00436,2696
Sandwell Metropolitan Borough Council,http://www.sandwell.gov.uk/info/200202/performance_and_spending/1079/payments_over_500,19-Oct-2022,Housing & Communities,CDW LIMITED,Neighbourhoods,1766.94,ICT ,2223P07_CR00437,140946
Sandwell Metropolitan Borough Council,http://www.sandwell.gov.uk/info/200202/performance_and_spending/1079/payments_over_500,01-Oct-2022,Housing & Communities,BEECHWOOD TREES & LANDSCAPE LTD,Neighbourhoods,1770.00,Externally Purchased Professional Services ,2223P07_CR00438,93287
Sandwell Metropolitan Borough Council,http://www.sandwell.gov.uk/info/200202/performance_and_spending/1079/payments_over_500,18-Oct-2022,Housing & Communities,RED ENTS LTD,Neighbourhoods,1800.00,Civic Events,2223P07_CR00439,164506
Sandwell Metropolitan Borough Council,http://www.sandwell.gov.uk/info/200202/performance_and_spending/1079/payments_over_500,01-Oct-2022,Housing & Communities,REWIND UK EDUCATION AND INTERVENTIONS LTD,Neighbourhoods,1800.00,Grant Payments,2223P07_CR00440,110507
Sandwell Metropolitan Borough Council,http://www.sandwell.gov.uk/info/200202/performance_and_spending/1079/payments_over_500,01-Oct-2022,Housing & Communities,RIGHT TO CARE LTD.,Neighbourhoods,1812.14,Rents,2223P07_CR00441,133426
Sandwell Metropolitan Borough Council,http://www.sandwell.gov.uk/info/200202/performance_and_spending/1079/payments_over_500,25-Oct-2022,Housing & Communities,HOME FARM NURSERIES (PINVIN) LIMITED,Neighbourhoods,1963.66,Equipment & Furniture ,2223P07_CR00442,77003445
Sandwell Metropolitan Borough Council,http://www.sandwell.gov.uk/info/200202/performance_and_spending/1079/payments_over_500,01-Oct-2022,Housing & Communities,HIRE STATION LIMITED T/A BRANDON HIRE STATION,Neighbourhoods,1976.50,Equipment & Furniture ,2223P07_CR00443,138598
Sandwell Metropolitan Borough Council,http://www.sandwell.gov.uk/info/200202/performance_and_spending/1079/payments_over_500,01-Oct-2022,Housing & Communities,RIDGE & PARTNERS LLP,Neighbourhoods,2000.00,Consultancy,2223P07_CR00444,134994
Sandwell Metropolitan Borough Council,http://www.sandwell.gov.uk/info/200202/performance_and_spending/1079/payments_over_500,12-Oct-2022,Housing & Communities,DOOCEY INFRASTRUCTURE LIMITED,Neighbourhoods,2300.00,Operational Services ,2223P07_CR00445,102966
Sandwell Metropolitan Borough Council,http://www.sandwell.gov.uk/info/200202/performance_and_spending/1079/payments_over_500,01-Oct-2022,Housing & Communities,GILANI ENTERPRISES LIMITED,Neighbourhoods,2400.00,Rents,2223P07_CR00446,2696
Sandwell Metropolitan Borough Council,http://www.sandwell.gov.uk/info/200202/performance_and_spending/1079/payments_over_500,01-Oct-2022,Housing & Communities,XEROX FINANCE LTD,Neighbourhoods,2402.82,Equipment & Furniture ,2223P07_CR00447,2269
Sandwell Metropolitan Borough Council,http://www.sandwell.gov.uk/info/200202/performance_and_spending/1079/payments_over_500,01-Oct-2022,Housing & Communities,MIDLAND FORESTRY LIMITED,Neighbourhoods,2422.00,Externally Purchased Professional Services ,2223P07_CR00448,45812
Sandwell Metropolitan Borough Council,http://www.sandwell.gov.uk/info/200202/performance_and_spending/1079/payments_over_500,12-Oct-2022,Housing & Communities,VERTIGO CREATIVE STUDIO LIMITED,Neighbourhoods,2437.50,Externally Purchased Professional Services ,2223P07_CR00449,72029
Sandwell Metropolitan Borough Council,http://www.sandwell.gov.uk/info/200202/performance_and_spending/1079/payments_over_500,01-Oct-2022,Housing & Communities,DORMY HOTEL,Neighbourhoods,2508.33,Rents,2223P07_CR00450,01737052
Sandwell Metropolitan Borough Council,http://www.sandwell.gov.uk/info/200202/performance_and_spending/1079/payments_over_500,01-Oct-2022,Housing & Communities,CERTAS ENERGY LIMITED,Neighbourhoods,2509.36,Oil,2223P07_CR00451,80421
Sandwell Metropolitan Borough Council,http://www.sandwell.gov.uk/info/200202/performance_and_spending/1079/payments_over_500,01-Oct-2022,Housing & Communities,COOKE RUDLING LIMITED,Assistant Chief Executive (Excl SIU),2512.50,Externally Purchased Professional Services ,2223P07_CR00452,01577073
Sandwell Metropolitan Borough Council,http://www.sandwell.gov.uk/info/200202/performance_and_spending/1079/payments_over_500,15-Oct-2022,Housing & Communities,ALLSTAR BUSINESS SOLUTIONS LIMITED,Neighbourhoods,2589.09,Fuel ,2223P07_CR00453,104057
Sandwell Metropolitan Borough Council,http://www.sandwell.gov.uk/info/200202/performance_and_spending/1079/payments_over_500,01-Oct-2022,Housing & Communities,RENAISSANCE CREATIVE DESIGN & PRINT LTD,Neighbourhoods,2675.00,"Printing, Stationery & General Office Expenses",2223P07_CR00454,97376
Sandwell Metropolitan Borough Council,http://www.sandwell.gov.uk/info/200202/performance_and_spending/1079/payments_over_500,01-Oct-2022,Housing & Communities,BEECHWOOD TREES & LANDSCAPE LTD,Neighbourhoods,2814.00,Externally Purchased Professional Services ,2223P07_CR00455,93287
Sandwell Metropolitan Borough Council,http://www.sandwell.gov.uk/info/200202/performance_and_spending/1079/payments_over_500,01-Oct-2022,Housing & Communities,ALLSTAR BUSINESS SOLUTIONS LIMITED,Neighbourhoods,2923.88,Fuel ,2223P07_CR00456,104057
Sandwell Metropolitan Borough Council,http://www.sandwell.gov.uk/info/200202/performance_and_spending/1079/payments_over_500,17-Oct-2022,Housing & Communities,MACINTOSH FOODSERVICE SOLUTIONS LTD,Neighbourhoods,2925.00,Externally Purchased Professional Services ,2223P07_CR00457,162369
Sandwell Metropolitan Borough Council,http://www.sandwell.gov.uk/info/200202/performance_and_spending/1079/payments_over_500,01-Oct-2022,Housing & Communities,FRITH RESOURCE MANAGEMENT LTD,Neighbourhoods,2996.48,Waste Disposal Charges,2223P07_CR00458,163890
Sandwell Metropolitan Borough Council,http://www.sandwell.gov.uk/info/200202/performance_and_spending/1079/payments_over_500,01-Oct-2022,Housing & Communities,HEAVEN SENDS LIMITED,Neighbourhoods,3033.48,Materials & Consumables,2223P07_CR00459,127796
Sandwell Metropolitan Borough Council,http://www.sandwell.gov.uk/info/200202/performance_and_spending/1079/payments_over_500,01-Oct-2022,Housing & Communities,KRUNCH UK,Neighbourhoods,3063.31,Grant Payments,2223P07_CR00460,08588452
Sandwell Metropolitan Borough Council,http://www.sandwell.gov.uk/info/200202/performance_and_spending/1079/payments_over_500,01-Oct-2022,Housing & Communities,HOME FARM NURSERIES (PINVIN) LIMITED,Neighbourhoods,3100.84,Equipment & Furniture ,2223P07_CR00461,77003445
Sandwell Metropolitan Borough Council,http://www.sandwell.gov.uk/info/200202/performance_and_spending/1079/payments_over_500,01-Oct-2022,Housing & Communities,MIDLAND FORESTRY LIMITED,Neighbourhoods,3200.00,Externally Purchased Professional Services ,2223P07_CR00462,45812
Sandwell Metropolitan Borough Council,http://www.sandwell.gov.uk/info/200202/performance_and_spending/1079/payments_over_500,01-Oct-2022,Housing & Communities,RIGHT TO CARE LTD.,Neighbourhoods,3260.72,Rents,2223P07_CR00463,133426
Sandwell Metropolitan Borough Council,http://www.sandwell.gov.uk/info/200202/performance_and_spending/1079/payments_over_500,01-Oct-2022,Housing & Communities,MIDLAND FORESTRY LIMITED,Neighbourhoods,3480.00,Externally Purchased Professional Services ,2223P07_CR00464,45812
Sandwell Metropolitan Borough Council,http://www.sandwell.gov.uk/info/200202/performance_and_spending/1079/payments_over_500,01-Oct-2022,Housing & Communities,SUNBELT RENTALS LTD,Neighbourhoods,3540.00,Equipment & Furniture ,2223P07_CR00465,01508935
Sandwell Metropolitan Borough Council,http://www.sandwell.gov.uk/info/200202/performance_and_spending/1079/payments_over_500,01-Oct-2022,Housing & Communities,WYNNSTAY (AGRICULTURAL SUPPLIES) LIMITED,Neighbourhoods,3643.60,Externally Purchased Professional Services ,2223P07_CR00466,121165
Sandwell Metropolitan Borough Council,http://www.sandwell.gov.uk/info/200202/performance_and_spending/1079/payments_over_500,16-Oct-2022,Housing & Communities,COULTERS LTD,Neighbourhoods,3820.00,Materials & Consumables,2223P07_CR00467,154910
Sandwell Metropolitan Borough Council,http://www.sandwell.gov.uk/info/200202/performance_and_spending/1079/payments_over_500,01-Oct-2022,Housing & Communities,PITCHMARK LTD,Neighbourhoods,3840.00,Materials & Consumables,2223P07_CR00468,120374
Sandwell Metropolitan Borough Council,http://www.sandwell.gov.uk/info/200202/performance_and_spending/1079/payments_over_500,12-Oct-2022,Housing & Communities,SERCO LIMITED,Neighbourhoods,3883.91,Waste Disposal Charges,2223P07_CR00469,53771
Sandwell Metropolitan Borough Council,http://www.sandwell.gov.uk/info/200202/performance_and_spending/1079/payments_over_500,01-Oct-2022,Housing & Communities,"HIGHFIELD HOUSE HOTEL,",Neighbourhoods,3950.00,Rents,2223P07_CR00470,162756
Sandwell Metropolitan Borough Council,http://www.sandwell.gov.uk/info/200202/performance_and_spending/1079/payments_over_500,01-Oct-2022,Housing & Communities,INFAMOUS COMMUNITY ARTS,Neighbourhoods,4050.00,"Printing, Stationery & General Office Expenses",2223P07_CR00471,102940
Sandwell Metropolitan Borough Council,http://www.sandwell.gov.uk/info/200202/performance_and_spending/1079/payments_over_500,01-Oct-2022,Housing & Communities,GILANI ENTERPRISES LIMITED,Neighbourhoods,4800.00,Rents,2223P07_CR00472,2696
Sandwell Metropolitan Borough Council,http://www.sandwell.gov.uk/info/200202/performance_and_spending/1079/payments_over_500,01-Oct-2022,Housing & Communities,HAYSTOUN CONSTRUCTION LTD,Neighbourhoods,5334.10,Equipment & Furniture ,2223P07_CR00473,11849
Sandwell Metropolitan Borough Council,http://www.sandwell.gov.uk/info/200202/performance_and_spending/1079/payments_over_500,01-Oct-2022,Housing & Communities,MIDLAND FORESTRY LIMITED,Neighbourhoods,5520.00,Externally Purchased Professional Services ,2223P07_CR00474,45812
Sandwell Metropolitan Borough Council,http://www.sandwell.gov.uk/info/200202/performance_and_spending/1079/payments_over_500,01-Oct-2022,Housing & Communities,WYNNSTAY (AGRICULTURAL SUPPLIES) LIMITED,Neighbourhoods,5620.06,Externally Purchased Professional Services ,2223P07_CR00475,121165
Sandwell Metropolitan Borough Council,http://www.sandwell.gov.uk/info/200202/performance_and_spending/1079/payments_over_500,01-Oct-2022,Housing & Communities,COMMUNITY FIRST PARTNERSHIP LIMITED,Housing & Communities,5720.00,Externally Purchased Professional Services ,2223P07_CR00476,34777
Sandwell Metropolitan Borough Council,http://www.sandwell.gov.uk/info/200202/performance_and_spending/1079/payments_over_500,01-Oct-2022,Housing & Communities,MORE TALK MORE ACTION UK CIC,Neighbourhoods,5750.00,Grant Payments,2223P07_CR00477,162432
Sandwell Metropolitan Borough Council,http://www.sandwell.gov.uk/info/200202/performance_and_spending/1079/payments_over_500,01-Oct-2022,Housing & Communities,HAYSTOUN CONSTRUCTION LTD,Neighbourhoods,5795.31,Operational Services ,2223P07_CR00478,11849
Sandwell Metropolitan Borough Council,http://www.sandwell.gov.uk/info/200202/performance_and_spending/1079/payments_over_500,01-Oct-2022,Housing & Communities,LOCKWOOD SALADS LTD,Neighbourhoods,6100.00,Catering Provisions,2223P07_CR00479,155145
Sandwell Metropolitan Borough Council,http://www.sandwell.gov.uk/info/200202/performance_and_spending/1079/payments_over_500,01-Oct-2022,Housing & Communities,MIDLAND FORESTRY LIMITED,Housing & Communities,6520.00,Externally Purchased Professional Services ,2223P07_CR00480,45812
Sandwell Metropolitan Borough Council,http://www.sandwell.gov.uk/info/200202/performance_and_spending/1079/payments_over_500,01-Oct-2022,Housing & Communities,GILANI ENTERPRISES LIMITED,Neighbourhoods,6525.00,Rents,2223P07_CR00481,2696
Sandwell Metropolitan Borough Council,http://www.sandwell.gov.uk/info/200202/performance_and_spending/1079/payments_over_500,10-Oct-2022,Housing & Communities,GRESHAM OFFICE FURNITURE LTD,Housing & Communities,6593.85,Equipment & Furniture ,2223P07_CR00482,93465
Sandwell Metropolitan Borough Council,http://www.sandwell.gov.uk/info/200202/performance_and_spending/1079/payments_over_500,01-Oct-2022,Housing & Communities,GILANI ENTERPRISES LIMITED,Neighbourhoods,7000.00,Rents,2223P07_CR00483,2696
Sandwell Metropolitan Borough Council,http://www.sandwell.gov.uk/info/200202/performance_and_spending/1079/payments_over_500,04-Oct-2022,Housing & Communities,POWERED BY CAN LTD,Neighbourhoods,7060.00,Grant Payments,2223P07_CR00484,116825
Sandwell Metropolitan Borough Council,http://www.sandwell.gov.uk/info/200202/performance_and_spending/1079/payments_over_500,06-Oct-2022,Housing & Communities,HSL COMPLIANCE LTD,Neighbourhoods,7182.95,Contract Payments,2223P07_CR00485,134746
Sandwell Metropolitan Borough Council,http://www.sandwell.gov.uk/info/200202/performance_and_spending/1079/payments_over_500,18-Oct-2022,Housing & Communities,MIDLAND FORESTRY LIMITED,Neighbourhoods,7744.00,Externally Purchased Professional Services ,2223P07_CR00486,45812
Sandwell Metropolitan Borough Council,http://www.sandwell.gov.uk/info/200202/performance_and_spending/1079/payments_over_500,03-Oct-2022,Housing & Communities,BRUSHSTROKES,Neighbourhoods,7863.24,Externally Purchased Professional Services ,2223P07_CR00487,21029374
Sandwell Metropolitan Borough Council,http://www.sandwell.gov.uk/info/200202/performance_and_spending/1079/payments_over_500,03-Oct-2022,Housing & Communities,BRUSHSTROKES,Neighbourhoods,8362.27,Externally Purchased Professional Services ,2223P07_CR00488,21029374
Sandwell Metropolitan Borough Council,http://www.sandwell.gov.uk/info/200202/performance_and_spending/1079/payments_over_500,03-Oct-2022,Housing & Communities,BRUSHSTROKES,Neighbourhoods,8422.76,Externally Purchased Professional Services ,2223P07_CR00489,21029374
Sandwell Metropolitan Borough Council,http://www.sandwell.gov.uk/info/200202/performance_and_spending/1079/payments_over_500,03-Oct-2022,Housing & Communities,PROFILE SECURITY SERVICES LTD,Neighbourhoods,9955.20,Security,2223P07_CR00490,131253
Sandwell Metropolitan Borough Council,http://www.sandwell.gov.uk/info/200202/performance_and_spending/1079/payments_over_500,01-Oct-2022,Housing & Communities,BLACK COUNTRY WOMEN'S AID,Neighbourhoods,10000.00,Grant Payments,2223P07_CR00491,127401
Sandwell Metropolitan Borough Council,http://www.sandwell.gov.uk/info/200202/performance_and_spending/1079/payments_over_500,03-Oct-2022,Housing & Communities,PROFILE SECURITY SERVICES LTD,Neighbourhoods,10118.40,Security,2223P07_CR00492,131253
Sandwell Metropolitan Borough Council,http://www.sandwell.gov.uk/info/200202/performance_and_spending/1079/payments_over_500,01-Oct-2022,Housing & Communities,PROFILE SECURITY SERVICES LTD,Neighbourhoods,10384.19,Security,2223P07_CR00493,131253
Sandwell Metropolitan Borough Council,http://www.sandwell.gov.uk/info/200202/performance_and_spending/1079/payments_over_500,24-Oct-2022,Housing & Communities,AMETHYST HORTICULTURE LTD,Neighbourhoods,10725.00,Equipment & Furniture ,2223P07_CR00494,148498
Sandwell Metropolitan Borough Council,http://www.sandwell.gov.uk/info/200202/performance_and_spending/1079/payments_over_500,03-Oct-2022,Housing & Communities,HAYSTOUN CONSTRUCTION LTD,Neighbourhoods,10869.46,Equipment & Furniture ,2223P07_CR00495,11849
Sandwell Metropolitan Borough Council,http://www.sandwell.gov.uk/info/200202/performance_and_spending/1079/payments_over_500,01-Oct-2022,Housing & Communities,SERCO LIMITED,Neighbourhoods,12150.18,Waste Disposal Charges,2223P07_CR00496,53771
Sandwell Metropolitan Borough Council,http://www.sandwell.gov.uk/info/200202/performance_and_spending/1079/payments_over_500,10-Oct-2022,Housing & Communities,SERCO LIMITED,Neighbourhoods,14688.80,Waste Disposal Charges,2223P07_CR00497,53771
Sandwell Metropolitan Borough Council,http://www.sandwell.gov.uk/info/200202/performance_and_spending/1079/payments_over_500,01-Oct-2022,Housing & Communities,HOME FARM NURSERIES (PINVIN) LIMITED,Neighbourhoods,14852.20,Equipment & Furniture ,2223P07_CR00498,77003445
Sandwell Metropolitan Borough Council,http://www.sandwell.gov.uk/info/200202/performance_and_spending/1079/payments_over_500,01-Oct-2022,Housing & Communities,MIDLAND FORESTRY LIMITED,Neighbourhoods,15210.00,Externally Purchased Professional Services ,2223P07_CR00499,45812
Sandwell Metropolitan Borough Council,http://www.sandwell.gov.uk/info/200202/performance_and_spending/1079/payments_over_500,21-Oct-2022,Housing & Communities,HOME FARM NURSERIES (PINVIN) LIMITED,Neighbourhoods,15668.35,Equipment & Furniture ,2223P07_CR00500,77003445
Sandwell Metropolitan Borough Council,http://www.sandwell.gov.uk/info/200202/performance_and_spending/1079/payments_over_500,01-Oct-2022,Housing & Communities,CERTAS ENERGY LIMITED,Neighbourhoods,18037.50,Fuel ,2223P07_CR00501,80421
Sandwell Metropolitan Borough Council,http://www.sandwell.gov.uk/info/200202/performance_and_spending/1079/payments_over_500,18-Oct-2022,Housing & Communities,THE LETTERBOX CONSULTANCY LIMITED,Neighbourhoods,18199.60,Postages,2223P07_CR00502,118808
Sandwell Metropolitan Borough Council,http://www.sandwell.gov.uk/info/200202/performance_and_spending/1079/payments_over_500,03-Oct-2022,Housing & Communities,HAYSTOUN CONSTRUCTION LTD,Neighbourhoods,20441.81,Equipment & Furniture ,2223P07_CR00503,11849
Sandwell Metropolitan Borough Council,http://www.sandwell.gov.uk/info/200202/performance_and_spending/1079/payments_over_500,01-Oct-2022,Housing & Communities,CERTAS ENERGY LIMITED,Neighbourhoods,21073.50,Fuel ,2223P07_CR00504,80421
Sandwell Metropolitan Borough Council,http://www.sandwell.gov.uk/info/200202/performance_and_spending/1079/payments_over_500,11-Oct-2022,Housing & Communities,EDUCATION SOFTWARE SOLUTIONS LTD,Neighbourhoods,21115.00,ICT ,2223P07_CR00505,34178
Sandwell Metropolitan Borough Council,http://www.sandwell.gov.uk/info/200202/performance_and_spending/1079/payments_over_500,01-Oct-2022,Housing & Communities,CERTAS ENERGY LIMITED,Neighbourhoods,21422.91,Fuel ,2223P07_CR00506,80421
Sandwell Metropolitan Borough Council,http://www.sandwell.gov.uk/info/200202/performance_and_spending/1079/payments_over_500,28-Oct-2022,Housing & Communities,CONTINUUM SPORT & LEISURE LTD,Neighbourhoods,21500.00,Consultancy,2223P07_CR00507,147318
Sandwell Metropolitan Borough Council,http://www.sandwell.gov.uk/info/200202/performance_and_spending/1079/payments_over_500,01-Oct-2022,Housing & Communities,TURNOCK LIMITED,Neighbourhoods,21710.00,Equipment & Furniture ,2223P07_CR00508,13649
Sandwell Metropolitan Borough Council,http://www.sandwell.gov.uk/info/200202/performance_and_spending/1079/payments_over_500,18-Oct-2022,Housing & Communities,SERCO LIMITED,Neighbourhoods,22679.63,Waste Disposal Charges,2223P07_CR00509,53771
Sandwell Metropolitan Borough Council,http://www.sandwell.gov.uk/info/200202/performance_and_spending/1079/payments_over_500,01-Oct-2022,Housing & Communities,BRUSHSTROKES,Neighbourhoods,30608.32,Externally Purchased Professional Services ,2223P07_CR00510,21029374
Sandwell Metropolitan Borough Council,http://www.sandwell.gov.uk/info/200202/performance_and_spending/1079/payments_over_500,01-Oct-2022,Housing & Communities,BRUSHSTROKES,Neighbourhoods,38201.32,Externally Purchased Professional Services ,2223P07_CR00511,21029374
Sandwell Metropolitan Borough Council,http://www.sandwell.gov.uk/info/200202/performance_and_spending/1079/payments_over_500,01-Oct-2022,Housing & Communities,BRUSHSTROKES,Neighbourhoods,38201.32,Externally Purchased Professional Services ,2223P07_CR00512,21029374
Sandwell Metropolitan Borough Council,http://www.sandwell.gov.uk/info/200202/performance_and_spending/1079/payments_over_500,01-Oct-2022,Housing & Communities,BRUSHSTROKES,Neighbourhoods,38201.32,Externally Purchased Professional Services ,2223P07_CR00513,21029374
Sandwell Metropolitan Borough Council,http://www.sandwell.gov.uk/info/200202/performance_and_spending/1079/payments_over_500,01-Oct-2022,Housing & Communities,BRUSHSTROKES,Neighbourhoods,38201.32,Externally Purchased Professional Services ,2223P07_CR00514,21029374
Sandwell Metropolitan Borough Council,http://www.sandwell.gov.uk/info/200202/performance_and_spending/1079/payments_over_500,01-Oct-2022,Housing & Communities,SANDWELL COLLEGE,Neighbourhoods,100000.00,Grant Payments,2223P07_CR00515,01529345
Sandwell Metropolitan Borough Council,http://www.sandwell.gov.uk/info/200202/performance_and_spending/1079/payments_over_500,03-Oct-2022,Housing & Communities,SANDWELL FUNDCO 3 LTD,Neighbourhoods,116009.24,SH Payments,2223P07_CR00516,113986
Sandwell Metropolitan Borough Council,http://www.sandwell.gov.uk/info/200202/performance_and_spending/1079/payments_over_500,01-Oct-2022,Housing & Communities,WATES CONSTRUCTION LTD            ,Housing & Communities,358407.45,"CIP - New Construction,Conversion, Enhancement & Reno",2223P07_CR00517,77000882
Sandwell Metropolitan Borough Council,http://www.sandwell.gov.uk/info/200202/performance_and_spending/1079/payments_over_500,05-Oct-2022,Housing & Communities,WATES CONSTRUCTION LTD                ,Housing & Communities,435635.84,"CIP - New Construction,Conversion, Enhancement & Reno",2223P07_CR00518,77000882
Sandwell Metropolitan Borough Council,http://www.sandwell.gov.uk/info/200202/performance_and_spending/1079/payments_over_500,18-Oct-2022,Housing & Communities,SERCO LIMITED,Neighbourhoods,1640862.49,Waste Disposal Charges,2223P07_CR00519,53771
Sandwell Metropolitan Borough Council,http://www.sandwell.gov.uk/info/200202/performance_and_spending/1079/payments_over_500,01-Oct-2022,Housing & Communities,SAFFRON HOTEL,Neighbourhoods,560.00,Rents,2223P07_CR00520,164316
Sandwell Metropolitan Borough Council,http://www.sandwell.gov.uk/info/200202/performance_and_spending/1079/payments_over_500,01-Oct-2022,Housing & Communities,SAFFRON HOTEL,Neighbourhoods,560.00,Rents,2223P07_CR00521,164316
Sandwell Metropolitan Borough Council,http://www.sandwell.gov.uk/info/200202/performance_and_spending/1079/payments_over_500,01-Oct-2022,Housing & Communities,ANT EVENT MANAGEMENT,Neighbourhoods,900.00,Civic Events,2223P07_CR00522,155357
Sandwell Metropolitan Borough Council,http://www.sandwell.gov.uk/info/200202/performance_and_spending/1079/payments_over_500,06-Oct-2022,Housing & Communities,SANDWELL LEISURE TRUST ,Neighbourhoods,234327.66,Other Establishments,2223P07_CR00523,120965
Sandwell Metropolitan Borough Council,http://www.sandwell.gov.uk/info/200202/performance_and_spending/1079/payments_over_500,01-Oct-2022,Housing & Communities,BIRMINGHAM INTERNATIONAL JAZZ & BLUES FESTIVAL LIMITED,Neighbourhoods,770.00,Civic Events,2223P07_CR00524,87922
Sandwell Metropolitan Borough Council,http://www.sandwell.gov.uk/info/200202/performance_and_spending/1079/payments_over_500,06-Oct-2022,Housing & Communities,JULIAN MINWALLA C/O COTTONS CHARTERED SURVEYORS,Neighbourhoods,808.93,Rents,2223P07_CR00525,164386
Sandwell Metropolitan Borough Council,http://www.sandwell.gov.uk/info/200202/performance_and_spending/1079/payments_over_500,27-Oct-2022,Housing & Communities,POTOK INVESTMENTS LLP,Neighbourhoods,1530.00,Rents,2223P07_CR00526,152261
Sandwell Metropolitan Borough Council,http://www.sandwell.gov.uk/info/200202/performance_and_spending/1079/payments_over_500,12-Oct-2022,Housing & Communities,POST OFFICE COUNTERS,Neighbourhoods,14950.00,Licences & Test Fees,2223P07_CR00527,102580
Sandwell Metropolitan Borough Council,http://www.sandwell.gov.uk/info/200202/performance_and_spending/1079/payments_over_500,01-Oct-2022,Housing & Communities,BRENDAN HAWTHORNE,Neighbourhoods,550.00,Materials & Consumables,2223P07_CR00528,56162
Sandwell Metropolitan Borough Council,http://www.sandwell.gov.uk/info/200202/performance_and_spending/1079/payments_over_500,14-Oct-2022,Housing & Communities,REDACTED PERSONAL DATA,Housing & Communities,700.00,Rents,2223P07_CR00529,REDACTED PERSONAL DATA
Sandwell Metropolitan Borough Council,http://www.sandwell.gov.uk/info/200202/performance_and_spending/1079/payments_over_500,14-Oct-2022,Housing & Communities,REDACTED PERSONAL DATA,Housing & Communities,700.00,Rents,2223P07_CR00530,REDACTED PERSONAL DATA
Sandwell Metropolitan Borough Council,http://www.sandwell.gov.uk/info/200202/performance_and_spending/1079/payments_over_500,27-Oct-2022,Housing & Communities,REDACTED PERSONAL DATA,Neighbourhoods,725.00,Rents,2223P07_CR00531,REDACTED PERSONAL DATA
Sandwell Metropolitan Borough Council,http://www.sandwell.gov.uk/info/200202/performance_and_spending/1079/payments_over_500,26-Oct-2022,Housing & Communities,A E HUDSON,Neighbourhoods,500.00,Rents,2223P07_CR00532,107342
Sandwell Metropolitan Borough Council,http://www.sandwell.gov.uk/info/200202/performance_and_spending/1079/payments_over_500,26-Oct-2022,Housing & Communities,A PRASHER,Neighbourhoods,500.00,Rents,2223P07_CR00533,112229
Sandwell Metropolitan Borough Council,http://www.sandwell.gov.uk/info/200202/performance_and_spending/1079/payments_over_500,26-Oct-2022,Housing & Communities,BALIJIT KAUR,Neighbourhoods,500.00,Rents,2223P07_CR00534,101860
Sandwell Metropolitan Borough Council,http://www.sandwell.gov.uk/info/200202/performance_and_spending/1079/payments_over_500,26-Oct-2022,Housing & Communities,BALWANT SINGH,Neighbourhoods,500.00,Rents,2223P07_CR00535,84433
Sandwell Metropolitan Borough Council,http://www.sandwell.gov.uk/info/200202/performance_and_spending/1079/payments_over_500,26-Oct-2022,Housing & Communities,CHRISTINE ANN CADDEN,Neighbourhoods,500.00,Rents,2223P07_CR00536,112728
Sandwell Metropolitan Borough Council,http://www.sandwell.gov.uk/info/200202/performance_and_spending/1079/payments_over_500,26-Oct-2022,Housing & Communities,ELEANOR MCGEE,Neighbourhoods,550.00,Rents,2223P07_CR00537,109162
Sandwell Metropolitan Borough Council,http://www.sandwell.gov.uk/info/200202/performance_and_spending/1079/payments_over_500,26-Oct-2022,Housing & Communities,J S GARCHA,Neighbourhoods,500.00,Rents,2223P07_CR00538,106491
Sandwell Metropolitan Borough Council,http://www.sandwell.gov.uk/info/200202/performance_and_spending/1079/payments_over_500,26-Oct-2022,Housing & Communities,MOHANAD ABBAS,Neighbourhoods,550.00,Rents,2223P07_CR00539,108876
Sandwell Metropolitan Borough Council,http://www.sandwell.gov.uk/info/200202/performance_and_spending/1079/payments_over_500,26-Oct-2022,Housing & Communities,NARINDER SINGH,Neighbourhoods,500.00,Rents,2223P07_CR00540,114091
Sandwell Metropolitan Borough Council,http://www.sandwell.gov.uk/info/200202/performance_and_spending/1079/payments_over_500,26-Oct-2022,Housing & Communities,SAKANDAR SINGH,Neighbourhoods,713.72,Rents,2223P07_CR00541,117913
Sandwell Metropolitan Borough Council,http://www.sandwell.gov.uk/info/200202/performance_and_spending/1079/payments_over_500,03-Oct-2022,Housing & Communities,CITIZENS ADVICE SANDWELL & WALSALL,Neighbourhoods,349294.00,Grant Payments,2223P07_CR00542,01760899
Sandwell Metropolitan Borough Council,http://www.sandwell.gov.uk/info/200202/performance_and_spending/1079/payments_over_500,03-Oct-2022,Housing & Communities,SANDWELL CONSORTIUM CIC,Neighbourhoods,170285.00,Grant Payments,2223P07_CR00543,104616
Sandwell Metropolitan Borough Council,http://www.sandwell.gov.uk/info/200202/performance_and_spending/1079/payments_over_500,03-Oct-2022,Housing & Communities,SMETHWICK PAKISTANI MUSLIM ASSOCIATION LTD,Neighbourhoods,15729.00,Grant Payments,2223P07_CR00544,01715191
Sandwell Metropolitan Borough Council,http://www.sandwell.gov.uk/info/200202/performance_and_spending/1079/payments_over_500,03-Oct-2022,Housing & Communities,REWIND UK EDUCATION AND INTERVENTIONS LTD,Neighbourhoods,6250.00,Grant Payments,2223P07_CR00545,110507
Sandwell Metropolitan Borough Council,http://www.sandwell.gov.uk/info/200202/performance_and_spending/1079/payments_over_500,03-Oct-2022,Housing & Communities,WARLEY WOODS COMMUNITY TRUST      ,Neighbourhoods,36244.00,Grant Payments,2223P07_CR00546,08588603
Sandwell Metropolitan Borough Council,http://www.sandwell.gov.uk/info/200202/performance_and_spending/1079/payments_over_500,03-Oct-2022,Housing & Communities,MULTISTORY,Neighbourhoods,28541.50,Grant Payments,2223P07_CR00547,6471
Sandwell Metropolitan Borough Council,http://www.sandwell.gov.uk/info/200202/performance_and_spending/1079/payments_over_500,03-Oct-2022,Housing & Communities,BLACK COUNTRY TOURING,Neighbourhoods,10555.00,Grant Payments,2223P07_CR00548,01661722
Sandwell Metropolitan Borough Council,http://www.sandwell.gov.uk/info/200202/performance_and_spending/1079/payments_over_500,03-Oct-2022,Housing & Communities,FRIAR PARK MILLENNIUM CENTRE,Neighbourhoods,27003.50,Grant Payments,2223P07_CR00549,28476
Sandwell Metropolitan Borough Council,http://www.sandwell.gov.uk/info/200202/performance_and_spending/1079/payments_over_500,03-Oct-2022,Housing & Communities,YEMENI COMMUNITY ASSOCIATION IN SANDWELL,Neighbourhoods,7307.50,Grant Payments,2223P07_CR00550,01711292
Sandwell Metropolitan Borough Council,http://www.sandwell.gov.uk/info/200202/performance_and_spending/1079/payments_over_500,03-Oct-2022,Housing & Communities,GAYTON ROAD COMMUNITY CENTRE ASSOCIATION,Neighbourhoods,18509.00,Grant Payments,2223P07_CR00551,112420
Sandwell Metropolitan Borough Council,http://www.sandwell.gov.uk/info/200202/performance_and_spending/1079/payments_over_500,03-Oct-2022,Housing & Communities,YEW TREE & TAME BRIDGE COMMUNITY CENTRE,Neighbourhoods,13021.00,Grant Payments,2223P07_CR00552,108389
Sandwell Metropolitan Borough Council,http://www.sandwell.gov.uk/info/200202/performance_and_spending/1079/payments_over_500,03-Oct-2022,Housing & Communities,ST ALBANS COMMUNITY ASSOCIATION,Neighbourhoods,12400.00,Grant Payments,2223P07_CR00553,08323189
Sandwell Metropolitan Borough Council,http://www.sandwell.gov.uk/info/200202/performance_and_spending/1079/payments_over_500,03-Oct-2022,Housing & Communities,NORTH SMETHWICK DEVELOPMENT TRUST,Neighbourhoods,22936.00,Grant Payments,2223P07_CR00554,01346623
Sandwell Metropolitan Borough Council,http://www.sandwell.gov.uk/info/200202/performance_and_spending/1079/payments_over_500,03-Oct-2022,Housing & Communities,SANDWELL IRISH COMMUNITY ASSOCIATION,Neighbourhoods,8325.00,Grant Payments,2223P07_CR00555,37424
Sandwell Metropolitan Borough Council,http://www.sandwell.gov.uk/info/200202/performance_and_spending/1079/payments_over_500,03-Oct-2022,Housing & Communities,BANGLADESHI WOMEN'S ASSOCIATION LIMITED,Neighbourhoods,35438.50,Grant Payments,2223P07_CR00556,69648
Sandwell Metropolitan Borough Council,http://www.sandwell.gov.uk/info/200202/performance_and_spending/1079/payments_over_500,03-Oct-2022,Housing & Communities,GREAT BRIDGE COMMUNITY FORUM,Neighbourhoods,9259.50,Grant Payments,2223P07_CR00557,21026008
Sandwell Metropolitan Borough Council,http://www.sandwell.gov.uk/info/200202/performance_and_spending/1079/payments_over_500,03-Oct-2022,Housing & Communities,ST PAULS COMMUNITY ASSOCIATION,Neighbourhoods,11600.00,Grant Payments,2223P07_CR00558,01702471
Sandwell Metropolitan Borough Council,http://www.sandwell.gov.uk/info/200202/performance_and_spending/1079/payments_over_500,03-Oct-2022,Housing & Communities,MURRAY HALL COMMUNITY TRUST,Neighbourhoods,2934.00,Grant Payments,2223P07_CR00559,01627284
Sandwell Metropolitan Borough Council,http://www.sandwell.gov.uk/info/200202/performance_and_spending/1079/payments_over_500,03-Oct-2022,Housing & Communities,HILL TOP COMMUNITY DEVELOPMENT ASSOCIATION,Neighbourhoods,5273.00,Grant Payments,2223P07_CR00560,97197
Sandwell Metropolitan Borough Council,http://www.sandwell.gov.uk/info/200202/performance_and_spending/1079/payments_over_500,03-Oct-2022,Housing & Communities,BANGLADESHI ISLAMIC CENTRE,Neighbourhoods,21628.00,Grant Payments,2223P07_CR00561,01722187
Sandwell Metropolitan Borough Council,http://www.sandwell.gov.uk/info/200202/performance_and_spending/1079/payments_over_500,03-Oct-2022,Housing & Communities,SMETHWICK PAKISTANI MUSLIM ASSOCIATION LTD,Neighbourhoods,15917.50,Grant Payments,2223P07_CR00562,01715191
Sandwell Metropolitan Borough Council,http://www.sandwell.gov.uk/info/200202/performance_and_spending/1079/payments_over_500,03-Oct-2022,Housing & Communities,ST ALBANS COMMUNITY ASSOCIATION,Neighbourhoods,50012.50,Grant Payments,2223P07_CR00563,08323189
Sandwell Metropolitan Borough Council,http://www.sandwell.gov.uk/info/200202/performance_and_spending/1079/payments_over_500,03-Oct-2022,Housing & Communities,WEST SMETHWICK ENTERPRISE AND STEPPING STONES PRE-SCHOOL,Neighbourhoods,24623.00,Grant Payments,2223P07_CR00564,01722169
Sandwell Metropolitan Borough Council,http://www.sandwell.gov.uk/info/200202/performance_and_spending/1079/payments_over_500,03-Oct-2022,Housing & Communities,YEMENI COMMUNITY ASSOCIATION IN SANDWELL,Neighbourhoods,11472.50,Grant Payments,2223P07_CR00565,01711292
Sandwell Metropolitan Borough Council,http://www.sandwell.gov.uk/info/200202/performance_and_spending/1079/payments_over_500,03-Oct-2022,Housing & Communities,SHARP LTD,Neighbourhoods,38705.00,Grant Payments,2223P07_CR00566,01601345
Sandwell Metropolitan Borough Council,http://www.sandwell.gov.uk/info/200202/performance_and_spending/1079/payments_over_500,01-Oct-2022,Housing Revenue Account Capital,SELECT WINDOWS (HOME IMPROVEMENTS) LIMITED,Housing Revenue Account Capital,524.35,Contract Payments,2223P07_CR00567,42616
Sandwell Metropolitan Borough Council,http://www.sandwell.gov.uk/info/200202/performance_and_spending/1079/payments_over_500,01-Oct-2022,Housing Revenue Account Capital,SELECT WINDOWS (HOME IMPROVEMENTS) LIMITED,Housing Revenue Account Capital,605.59,Contract Payments,2223P07_CR00568,42616
Sandwell Metropolitan Borough Council,http://www.sandwell.gov.uk/info/200202/performance_and_spending/1079/payments_over_500,03-Oct-2022,Housing Revenue Account Capital,RMF LANDSCAPING LTD,Housing Revenue Account Capital,607.36,"CIP - New Construction,Conversion, Enhancement & Reno",2223P07_CR00569,77008956
Sandwell Metropolitan Borough Council,http://www.sandwell.gov.uk/info/200202/performance_and_spending/1079/payments_over_500,01-Oct-2022,Housing Revenue Account Capital,SELECT WINDOWS (HOME IMPROVEMENTS) LIMITED,Housing Revenue Account Capital,712.13,Contract Payments,2223P07_CR00570,42616
Sandwell Metropolitan Borough Council,http://www.sandwell.gov.uk/info/200202/performance_and_spending/1079/payments_over_500,01-Oct-2022,Housing Revenue Account Capital,SELECT WINDOWS (HOME IMPROVEMENTS) LIMITED,Housing Revenue Account Capital,717.75,Contract Payments,2223P07_CR00571,42616
Sandwell Metropolitan Borough Council,http://www.sandwell.gov.uk/info/200202/performance_and_spending/1079/payments_over_500,01-Oct-2022,Housing Revenue Account Capital,SELECT WINDOWS (HOME IMPROVEMENTS) LIMITED,Housing Revenue Account Capital,757.50,Contract Payments,2223P07_CR00572,42616
Sandwell Metropolitan Borough Council,http://www.sandwell.gov.uk/info/200202/performance_and_spending/1079/payments_over_500,01-Oct-2022,Housing Revenue Account Capital,SELECT WINDOWS (HOME IMPROVEMENTS) LIMITED,Housing Revenue Account Capital,758.12,Contract Payments,2223P07_CR00573,42616
Sandwell Metropolitan Borough Council,http://www.sandwell.gov.uk/info/200202/performance_and_spending/1079/payments_over_500,03-Oct-2022,Housing Revenue Account Capital,J TOMLINSON LIMITED,Housing Revenue Account Capital,762.25,Contract Payments,2223P07_CR00574,112820
Sandwell Metropolitan Borough Council,http://www.sandwell.gov.uk/info/200202/performance_and_spending/1079/payments_over_500,01-Oct-2022,Housing Revenue Account Capital,SELECT WINDOWS (HOME IMPROVEMENTS) LIMITED,Housing Revenue Account Capital,793.09,Contract Payments,2223P07_CR00575,42616
Sandwell Metropolitan Borough Council,http://www.sandwell.gov.uk/info/200202/performance_and_spending/1079/payments_over_500,01-Oct-2022,Housing Revenue Account Capital,SELECT WINDOWS (HOME IMPROVEMENTS) LIMITED,Housing Revenue Account Capital,854.82,Contract Payments,2223P07_CR00576,42616
Sandwell Metropolitan Borough Council,http://www.sandwell.gov.uk/info/200202/performance_and_spending/1079/payments_over_500,01-Oct-2022,Housing Revenue Account Capital,SELECT WINDOWS (HOME IMPROVEMENTS) LIMITED,Housing Revenue Account Capital,875.75,Contract Payments,2223P07_CR00577,42616
Sandwell Metropolitan Borough Council,http://www.sandwell.gov.uk/info/200202/performance_and_spending/1079/payments_over_500,01-Oct-2022,Housing Revenue Account Capital,SELECT WINDOWS (HOME IMPROVEMENTS) LIMITED,Housing Revenue Account Capital,888.76,Contract Payments,2223P07_CR00578,42616
Sandwell Metropolitan Borough Council,http://www.sandwell.gov.uk/info/200202/performance_and_spending/1079/payments_over_500,01-Oct-2022,Housing Revenue Account Capital,SELECT WINDOWS (HOME IMPROVEMENTS) LIMITED,Housing Revenue Account Capital,941.07,Contract Payments,2223P07_CR00579,42616
Sandwell Metropolitan Borough Council,http://www.sandwell.gov.uk/info/200202/performance_and_spending/1079/payments_over_500,01-Oct-2022,Housing Revenue Account Capital,LIFT & ENGINEERING SERVICES LTD,Housing Revenue Account Capital,984.30,CIP - Fixtures & Fittings,2223P07_CR00580,77003962
Sandwell Metropolitan Borough Council,http://www.sandwell.gov.uk/info/200202/performance_and_spending/1079/payments_over_500,01-Oct-2022,Housing Revenue Account Capital,SELECT WINDOWS (HOME IMPROVEMENTS) LIMITED,Housing Revenue Account Capital,987.81,Contract Payments,2223P07_CR00581,42616
Sandwell Metropolitan Borough Council,http://www.sandwell.gov.uk/info/200202/performance_and_spending/1079/payments_over_500,01-Oct-2022,Housing Revenue Account Capital,RIDGE & PARTNERS LLP,Housing Revenue Account Capital,1000.00,"CIP - New Construction,Conversion, Enhancement & Reno",2223P07_CR00582,134994
Sandwell Metropolitan Borough Council,http://www.sandwell.gov.uk/info/200202/performance_and_spending/1079/payments_over_500,16-Oct-2022,Housing Revenue Account Capital,RIDGE & PARTNERS LLP,Housing Revenue Account Capital,1000.00,"CIP - New Construction,Conversion, Enhancement & Reno",2223P07_CR00583,134994
Sandwell Metropolitan Borough Council,http://www.sandwell.gov.uk/info/200202/performance_and_spending/1079/payments_over_500,16-Oct-2022,Housing Revenue Account Capital,RIDGE & PARTNERS LLP,Housing Revenue Account Capital,1000.00,"CIP - New Construction,Conversion, Enhancement & Reno",2223P07_CR00584,134994
Sandwell Metropolitan Borough Council,http://www.sandwell.gov.uk/info/200202/performance_and_spending/1079/payments_over_500,01-Oct-2022,Housing Revenue Account Capital,SELECT WINDOWS (HOME IMPROVEMENTS) LIMITED,Housing Revenue Account Capital,1098.55,Contract Payments,2223P07_CR00585,42616
Sandwell Metropolitan Borough Council,http://www.sandwell.gov.uk/info/200202/performance_and_spending/1079/payments_over_500,24-Oct-2022,Housing Revenue Account Capital,DOLPHIN LIFTS MIDLANDS LTD,Housing Revenue Account Capital,1300.00,Deferred Charges/Grant Payments,2223P07_CR00586,123852
Sandwell Metropolitan Borough Council,http://www.sandwell.gov.uk/info/200202/performance_and_spending/1079/payments_over_500,03-Oct-2022,Housing Revenue Account Capital,J TOMLINSON LIMITED,Housing Revenue Account Capital,1479.24,Contract Payments,2223P07_CR00587,112820
Sandwell Metropolitan Borough Council,http://www.sandwell.gov.uk/info/200202/performance_and_spending/1079/payments_over_500,01-Oct-2022,Housing Revenue Account Capital,DOLPHIN LIFTS MIDLANDS LTD,Housing Revenue Account Capital,1526.66,Deferred Charges/Grant Payments,2223P07_CR00588,123852
Sandwell Metropolitan Borough Council,http://www.sandwell.gov.uk/info/200202/performance_and_spending/1079/payments_over_500,01-Oct-2022,Housing Revenue Account Capital,POWRED HEATING COMPONENTS LIMITED,Housing Revenue Account Capital,1752.89,Materials & Consumables,2223P07_CR00589,133978
Sandwell Metropolitan Borough Council,http://www.sandwell.gov.uk/info/200202/performance_and_spending/1079/payments_over_500,01-Oct-2022,Housing Revenue Account Capital,ROWELEC LIMITED,Housing Revenue Account Capital,1752.97,"CIP - New Construction,Conversion, Enhancement & Reno",2223P07_CR00590,116267
Sandwell Metropolitan Borough Council,http://www.sandwell.gov.uk/info/200202/performance_and_spending/1079/payments_over_500,24-Oct-2022,Housing Revenue Account Capital,DOLPHIN LIFTS MIDLANDS LTD,Housing Revenue Account Capital,2020.00,Deferred Charges/Grant Payments,2223P07_CR00591,123852
Sandwell Metropolitan Borough Council,http://www.sandwell.gov.uk/info/200202/performance_and_spending/1079/payments_over_500,01-Oct-2022,Housing Revenue Account Capital,SELECT WINDOWS (HOME IMPROVEMENTS) LIMITED,Housing Revenue Account Capital,2033.65,Contract Payments,2223P07_CR00592,42616
Sandwell Metropolitan Borough Council,http://www.sandwell.gov.uk/info/200202/performance_and_spending/1079/payments_over_500,01-Oct-2022,Housing Revenue Account Capital,RIDGE & PARTNERS LLP,Housing Revenue Account Capital,2080.00,Consultancy,2223P07_CR00593,134994
Sandwell Metropolitan Borough Council,http://www.sandwell.gov.uk/info/200202/performance_and_spending/1079/payments_over_500,13-Oct-2022,Housing Revenue Account Capital,DOLPHIN LIFTS MIDLANDS LTD,Housing Revenue Account Capital,2086.66,Deferred Charges/Grant Payments,2223P07_CR00594,123852
Sandwell Metropolitan Borough Council,http://www.sandwell.gov.uk/info/200202/performance_and_spending/1079/payments_over_500,24-Oct-2022,Housing Revenue Account Capital,RENTADINOSAUR LTD,Housing Revenue Account Capital,3000.00,Deferred Charges/Grant Payments,2223P07_CR00595,164377
Sandwell Metropolitan Borough Council,http://www.sandwell.gov.uk/info/200202/performance_and_spending/1079/payments_over_500,01-Oct-2022,Housing Revenue Account Capital,POWRED HEATING COMPONENTS LIMITED,Housing Revenue Account Capital,5311.22,Materials & Consumables,2223P07_CR00596,133978
Sandwell Metropolitan Borough Council,http://www.sandwell.gov.uk/info/200202/performance_and_spending/1079/payments_over_500,06-Oct-2022,Housing Revenue Account Capital,AXIS EUROPE PLC                                          ,Housing Revenue Account Capital,5842.75,Deferred Charges/Grant Payments,2223P07_CR00597,64946
Sandwell Metropolitan Borough Council,http://www.sandwell.gov.uk/info/200202/performance_and_spending/1079/payments_over_500,06-Oct-2022,Housing Revenue Account Capital,AXIS EUROPE PLC                                          ,Housing Revenue Account Capital,5983.26,Deferred Charges/Grant Payments,2223P07_CR00598,64946
Sandwell Metropolitan Borough Council,http://www.sandwell.gov.uk/info/200202/performance_and_spending/1079/payments_over_500,18-Oct-2022,Housing Revenue Account Capital,AXIS EUROPE PLC                                          ,Housing Revenue Account Capital,6358.05,Deferred Charges/Grant Payments,2223P07_CR00599,64946
Sandwell Metropolitan Borough Council,http://www.sandwell.gov.uk/info/200202/performance_and_spending/1079/payments_over_500,06-Oct-2022,Housing Revenue Account Capital,AXIS EUROPE PLC                                          ,Housing Revenue Account Capital,6443.54,Deferred Charges/Grant Payments,2223P07_CR00600,64946
Sandwell Metropolitan Borough Council,http://www.sandwell.gov.uk/info/200202/performance_and_spending/1079/payments_over_500,18-Oct-2022,Housing Revenue Account Capital,AXIS EUROPE PLC                                          ,Housing Revenue Account Capital,6493.78,Deferred Charges/Grant Payments,2223P07_CR00601,64946
Sandwell Metropolitan Borough Council,http://www.sandwell.gov.uk/info/200202/performance_and_spending/1079/payments_over_500,06-Oct-2022,Housing Revenue Account Capital,AXIS EUROPE PLC                                          ,Housing Revenue Account Capital,6754.94,Deferred Charges/Grant Payments,2223P07_CR00602,64946
Sandwell Metropolitan Borough Council,http://www.sandwell.gov.uk/info/200202/performance_and_spending/1079/payments_over_500,01-Oct-2022,Housing Revenue Account Capital,AXIS EUROPE PLC                                          ,Housing Revenue Account Capital,6951.36,Deferred Charges/Grant Payments,2223P07_CR00603,64946
Sandwell Metropolitan Borough Council,http://www.sandwell.gov.uk/info/200202/performance_and_spending/1079/payments_over_500,06-Oct-2022,Housing Revenue Account Capital,AXIS EUROPE PLC                                          ,Housing Revenue Account Capital,7189.32,Deferred Charges/Grant Payments,2223P07_CR00604,64946
Sandwell Metropolitan Borough Council,http://www.sandwell.gov.uk/info/200202/performance_and_spending/1079/payments_over_500,06-Oct-2022,Housing Revenue Account Capital,AXIS EUROPE PLC                                          ,Housing Revenue Account Capital,7401.25,Deferred Charges/Grant Payments,2223P07_CR00605,64946
Sandwell Metropolitan Borough Council,http://www.sandwell.gov.uk/info/200202/performance_and_spending/1079/payments_over_500,18-Oct-2022,Housing Revenue Account Capital,AXIS EUROPE PLC                                          ,Housing Revenue Account Capital,7750.18,Deferred Charges/Grant Payments,2223P07_CR00606,64946
Sandwell Metropolitan Borough Council,http://www.sandwell.gov.uk/info/200202/performance_and_spending/1079/payments_over_500,01-Oct-2022,Housing Revenue Account Capital,AXIS EUROPE PLC                                          ,Housing Revenue Account Capital,7874.38,Deferred Charges/Grant Payments,2223P07_CR00607,64946
Sandwell Metropolitan Borough Council,http://www.sandwell.gov.uk/info/200202/performance_and_spending/1079/payments_over_500,09-Oct-2022,Housing Revenue Account Capital,LIFT & ENGINEERING SERVICES LTD,Housing Revenue Account Capital,8723.82,CIP - Fixtures & Fittings,2223P07_CR00608,77003962
Sandwell Metropolitan Borough Council,http://www.sandwell.gov.uk/info/200202/performance_and_spending/1079/payments_over_500,18-Oct-2022,Housing Revenue Account Capital,PR PROPERTY MAINTENANCE,Housing Revenue Account Capital,8807.19,Deferred Charges/Grant Payments,2223P07_CR00609,33836
Sandwell Metropolitan Borough Council,http://www.sandwell.gov.uk/info/200202/performance_and_spending/1079/payments_over_500,01-Oct-2022,Housing Revenue Account Capital,LIFT & ENGINEERING SERVICES LTD,Housing Revenue Account Capital,9653.18,CIP - Fixtures & Fittings,2223P07_CR00610,77003962
Sandwell Metropolitan Borough Council,http://www.sandwell.gov.uk/info/200202/performance_and_spending/1079/payments_over_500,01-Oct-2022,Housing Revenue Account Capital,PARCOR LTD,Housing Revenue Account Capital,10053.80,"CIP - New Construction,Conversion, Enhancement & Reno",2223P07_CR00611,163117
Sandwell Metropolitan Borough Council,http://www.sandwell.gov.uk/info/200202/performance_and_spending/1079/payments_over_500,01-Oct-2022,Housing Revenue Account Capital,VINCI CONSTRUCTION LTD,Housing Revenue Account Capital,11832.41,Deferred Charges/Grant Payments,2223P07_CR00612,36361
Sandwell Metropolitan Borough Council,http://www.sandwell.gov.uk/info/200202/performance_and_spending/1079/payments_over_500,14-Oct-2022,Housing Revenue Account Capital,LIFT & ENGINEERING SERVICES LTD,Housing Revenue Account Capital,12000.22,CIP - Fixtures & Fittings,2223P07_CR00613,77003962
Sandwell Metropolitan Borough Council,http://www.sandwell.gov.uk/info/200202/performance_and_spending/1079/payments_over_500,01-Oct-2022,Housing Revenue Account Capital,STOURBRIDGE PAVING COMPANY LIMITED,Housing Revenue Account Capital,12015.20,CIP - Infrastructure,2223P07_CR00614,77003641
Sandwell Metropolitan Borough Council,http://www.sandwell.gov.uk/info/200202/performance_and_spending/1079/payments_over_500,06-Oct-2022,Housing Revenue Account Capital,PR PROPERTY MAINTENANCE,Housing Revenue Account Capital,13903.48,Deferred Charges/Grant Payments,2223P07_CR00615,33836
Sandwell Metropolitan Borough Council,http://www.sandwell.gov.uk/info/200202/performance_and_spending/1079/payments_over_500,01-Oct-2022,Housing Revenue Account Capital,PHOENIX GAS SERVICES LIMITED,Housing Revenue Account Capital,16928.94,Contract Payments,2223P07_CR00616,126729
Sandwell Metropolitan Borough Council,http://www.sandwell.gov.uk/info/200202/performance_and_spending/1079/payments_over_500,01-Oct-2022,Housing Revenue Account Capital,VINCI CONSTRUCTION LTD,Housing Revenue Account Capital,49498.27,Deferred Charges/Grant Payments,2223P07_CR00617,36361
Sandwell Metropolitan Borough Council,http://www.sandwell.gov.uk/info/200202/performance_and_spending/1079/payments_over_500,01-Oct-2022,Housing Revenue Account Capital,NATIONWIDE WINDOWS LIMITED,Housing Revenue Account Capital,58462.68,"CIP - New Construction,Conversion, Enhancement & Reno",2223P07_CR00618,108316
Sandwell Metropolitan Borough Council,http://www.sandwell.gov.uk/info/200202/performance_and_spending/1079/payments_over_500,27-Oct-2022,Housing Revenue Account Capital,SEDDON CONSTRUCTION LIMITED,Housing Revenue Account Capital,77491.60,"CIP - New Construction,Conversion, Enhancement & Reno",2223P07_CR00619,132999
Sandwell Metropolitan Borough Council,http://www.sandwell.gov.uk/info/200202/performance_and_spending/1079/payments_over_500,01-Oct-2022,Housing Revenue Account Capital,SEDDON CONSTRUCTION LIMITED,Housing Revenue Account Capital,146286.66,"CIP - New Construction,Conversion, Enhancement & Reno",2223P07_CR00620,132999
Sandwell Metropolitan Borough Council,http://www.sandwell.gov.uk/info/200202/performance_and_spending/1079/payments_over_500,01-Oct-2022,Housing Revenue Account Capital,J.HARPER & SONS (LEOMINSTER) LIMITED,Housing Revenue Account Capital,192768.14,"CIP - New Construction,Conversion, Enhancement & Reno",2223P07_CR00621,111814
Sandwell Metropolitan Borough Council,http://www.sandwell.gov.uk/info/200202/performance_and_spending/1079/payments_over_500,07-Oct-2022,Housing Revenue Account Capital,LOVELL PARTNERSHIPS  LTD,Housing Revenue Account Capital,197024.53,"CIP - New Construction,Conversion, Enhancement & Reno",2223P07_CR00622,77007398
Sandwell Metropolitan Borough Council,http://www.sandwell.gov.uk/info/200202/performance_and_spending/1079/payments_over_500,01-Oct-2022,Housing Revenue Account Capital,SYCAMORE WINDOWS & CONSERVATORIES LIMITED,Housing Revenue Account Capital,226046.19,"CIP - New Construction,Conversion, Enhancement & Reno",2223P07_CR00623,145272
Sandwell Metropolitan Borough Council,http://www.sandwell.gov.uk/info/200202/performance_and_spending/1079/payments_over_500,01-Oct-2022,Housing Revenue Account Capital,SURE MAINTENANCE LIMITED,Housing Revenue Account Capital,241939.48,"CIP - New Construction,Conversion, Enhancement & Reno",2223P07_CR00624,93926
Sandwell Metropolitan Borough Council,http://www.sandwell.gov.uk/info/200202/performance_and_spending/1079/payments_over_500,01-Oct-2022,Housing Revenue Account Capital,LOVELL PARTNERSHIPS  LTD,Housing Revenue Account Capital,242023.23,"CIP - New Construction,Conversion, Enhancement & Reno",2223P07_CR00625,77007398
Sandwell Metropolitan Borough Council,http://www.sandwell.gov.uk/info/200202/performance_and_spending/1079/payments_over_500,10-Oct-2022,Housing Revenue Account Capital,SEDDON CONSTRUCTION LIMITED,Housing Revenue Account Capital,242791.48,"CIP - New Construction,Conversion, Enhancement & Reno",2223P07_CR00626,132999
Sandwell Metropolitan Borough Council,http://www.sandwell.gov.uk/info/200202/performance_and_spending/1079/payments_over_500,11-Oct-2022,Housing Revenue Account Capital,VINCI CONSTRUCTION LTD,Housing Revenue Account Capital,246145.17,"CIP - New Construction,Conversion, Enhancement & Reno",2223P07_CR00627,36361
Sandwell Metropolitan Borough Council,http://www.sandwell.gov.uk/info/200202/performance_and_spending/1079/payments_over_500,01-Oct-2022,Housing Revenue Account Capital,SEDDON CONSTRUCTION LIMITED,Housing Revenue Account Capital,363705.14,"CIP - New Construction,Conversion, Enhancement & Reno",2223P07_CR00628,132999
Sandwell Metropolitan Borough Council,http://www.sandwell.gov.uk/info/200202/performance_and_spending/1079/payments_over_500,12-Oct-2022,Housing Revenue Account Capital,VINCI CONSTRUCTION LTD,Housing Revenue Account Capital,424967.69,"CIP - New Construction,Conversion, Enhancement & Reno",2223P07_CR00629,36361
Sandwell Metropolitan Borough Council,http://www.sandwell.gov.uk/info/200202/performance_and_spending/1079/payments_over_500,01-Oct-2022,Housing Revenue Account Capital,LOVELL PARTNERSHIPS  LTD,Housing Revenue Account Capital,656577.40,"CIP - New Construction,Conversion, Enhancement & Reno",2223P07_CR00630,77007398
Sandwell Metropolitan Borough Council,http://www.sandwell.gov.uk/info/200202/performance_and_spending/1079/payments_over_500,01-Oct-2022,Housing Revenue Account Capital,SPELLER METCALFE MALVERN LIMITED,Housing Revenue Account Capital,1225008.05,"CIP - New Construction,Conversion, Enhancement & Reno",2223P07_CR00631,92473
Sandwell Metropolitan Borough Council,http://www.sandwell.gov.uk/info/200202/performance_and_spending/1079/payments_over_500,01-Oct-2022,Housing Revenue Account Capital,AA PROJECTS LIMITED,Housing Revenue Account Capital,1860.00,Deferred Charges/Grant Payments,2223P07_CR00632,116074
Sandwell Metropolitan Borough Council,http://www.sandwell.gov.uk/info/200202/performance_and_spending/1079/payments_over_500,18-Oct-2022,Housing Revenue Account Capital,AXIS DESIGN ARCHITECTS LTD,Housing Revenue Account Capital,578.23,Deferred Charges/Grant Payments,2223P07_CR00633,151579
Sandwell Metropolitan Borough Council,http://www.sandwell.gov.uk/info/200202/performance_and_spending/1079/payments_over_500,03-Oct-2022,Housing Revenue Account Capital,FORMBUILD INSTALLATIONS LTD,Housing Revenue Account Capital,1493.25,Deferred Charges/Grant Payments,2223P07_CR00634,153985
Sandwell Metropolitan Borough Council,http://www.sandwell.gov.uk/info/200202/performance_and_spending/1079/payments_over_500,21-Oct-2022,Individual School Budgets With Inclusion,5 STAR DAY NURSERY - OLDBURY,Individual School Budgets With Inclusion,6563.03,Grant Payments,2223P07_CR00635,120730
Sandwell Metropolitan Borough Council,http://www.sandwell.gov.uk/info/200202/performance_and_spending/1079/payments_over_500,21-Oct-2022,Individual School Budgets With Inclusion,5 STAR DAY NURSERY LIMITED,Individual School Budgets With Inclusion,9275.18,Grant Payments,2223P07_CR00636,105382
Sandwell Metropolitan Borough Council,http://www.sandwell.gov.uk/info/200202/performance_and_spending/1079/payments_over_500,21-Oct-2022,Individual School Budgets With Inclusion,ABC DAY NURSERY & PRE SCHOOL LTD,Individual School Budgets With Inclusion,7848.23,Grant Payments,2223P07_CR00637,01472823
Sandwell Metropolitan Borough Council,http://www.sandwell.gov.uk/info/200202/performance_and_spending/1079/payments_over_500,21-Oct-2022,Individual School Budgets With Inclusion,ADVENTURE QUEST (GREAT BRIDGE) LTD,Individual School Budgets With Inclusion,5104.58,Grant Payments,2223P07_CR00638,153563
Sandwell Metropolitan Borough Council,http://www.sandwell.gov.uk/info/200202/performance_and_spending/1079/payments_over_500,21-Oct-2022,Individual School Budgets With Inclusion,AL KAHIR SCHOOL,Individual School Budgets With Inclusion,2090.45,Grant Payments,2223P07_CR00639,128728
Sandwell Metropolitan Borough Council,http://www.sandwell.gov.uk/info/200202/performance_and_spending/1079/payments_over_500,21-Oct-2022,Individual School Budgets With Inclusion,BANANA MOON DAY NURSERY,Individual School Budgets With Inclusion,6319.95,Grant Payments,2223P07_CR00640,124220
Sandwell Metropolitan Borough Council,http://www.sandwell.gov.uk/info/200202/performance_and_spending/1079/payments_over_500,21-Oct-2022,Individual School Budgets With Inclusion,BLOXCIDGE HOUSE DAY NURSERY,Individual School Budgets With Inclusion,5590.73,Grant Payments,2223P07_CR00641,82862
Sandwell Metropolitan Borough Council,http://www.sandwell.gov.uk/info/200202/performance_and_spending/1079/payments_over_500,21-Oct-2022,Individual School Budgets With Inclusion,BLUEBELLS DAY NURSERY,Individual School Budgets With Inclusion,2164.05,Grant Payments,2223P07_CR00642,01721314
Sandwell Metropolitan Borough Council,http://www.sandwell.gov.uk/info/200202/performance_and_spending/1079/payments_over_500,21-Oct-2022,Individual School Budgets With Inclusion,BOOKWORMS DAYCARE LIMITED,Individual School Budgets With Inclusion,8175.30,Grant Payments,2223P07_CR00643,114741
Sandwell Metropolitan Borough Council,http://www.sandwell.gov.uk/info/200202/performance_and_spending/1079/payments_over_500,21-Oct-2022,Individual School Budgets With Inclusion,BRIGHT LIGHTS DAY NURSERY,Individual School Budgets With Inclusion,4517.10,Grant Payments,2223P07_CR00644,89877
Sandwell Metropolitan Borough Council,http://www.sandwell.gov.uk/info/200202/performance_and_spending/1079/payments_over_500,21-Oct-2022,Individual School Budgets With Inclusion,BUSY BEE NURSERY,Individual School Budgets With Inclusion,9398.90,Grant Payments,2223P07_CR00645,01222577
Sandwell Metropolitan Borough Council,http://www.sandwell.gov.uk/info/200202/performance_and_spending/1079/payments_over_500,21-Oct-2022,Individual School Budgets With Inclusion,CAP DAY NURSERY,Individual School Budgets With Inclusion,3476.55,Grant Payments,2223P07_CR00646,51154
Sandwell Metropolitan Borough Council,http://www.sandwell.gov.uk/info/200202/performance_and_spending/1079/payments_over_500,21-Oct-2022,Individual School Budgets With Inclusion,CATHERINE HOUSE DAY NURSERY,Individual School Budgets With Inclusion,2885.40,Grant Payments,2223P07_CR00647,08587767
Sandwell Metropolitan Borough Council,http://www.sandwell.gov.uk/info/200202/performance_and_spending/1079/payments_over_500,21-Oct-2022,Individual School Budgets With Inclusion,CONFEDERATION OF BANGLADESHI ORGANISATIONS (CBO) LIMITED,Individual School Budgets With Inclusion,1458.45,Grant Payments,2223P07_CR00648,10034
Sandwell Metropolitan Borough Council,http://www.sandwell.gov.uk/info/200202/performance_and_spending/1079/payments_over_500,21-Oct-2022,Individual School Budgets With Inclusion,CONIFERS DAY NURSERY LTD,Individual School Budgets With Inclusion,4375.35,Grant Payments,2223P07_CR00649,131957
Sandwell Metropolitan Borough Council,http://www.sandwell.gov.uk/info/200202/performance_and_spending/1079/payments_over_500,21-Oct-2022,Individual School Budgets With Inclusion,DAFFODILS NURSERY LTD,Individual School Budgets With Inclusion,6208.13,Grant Payments,2223P07_CR00650,120066
Sandwell Metropolitan Borough Council,http://www.sandwell.gov.uk/info/200202/performance_and_spending/1079/payments_over_500,21-Oct-2022,Individual School Budgets With Inclusion,FAIRYTALES NURSERY LTD,Individual School Budgets With Inclusion,8079.12,Grant Payments,2223P07_CR00651,106247
Sandwell Metropolitan Borough Council,http://www.sandwell.gov.uk/info/200202/performance_and_spending/1079/payments_over_500,21-Oct-2022,Individual School Budgets With Inclusion,FATIMA DAY NURSERY,Individual School Budgets With Inclusion,3889.20,Grant Payments,2223P07_CR00652,131343
Sandwell Metropolitan Borough Council,http://www.sandwell.gov.uk/info/200202/performance_and_spending/1079/payments_over_500,21-Oct-2022,Individual School Budgets With Inclusion,FIREFLIES NURSERY LIMITED,Individual School Budgets With Inclusion,6076.88,Grant Payments,2223P07_CR00653,124120
Sandwell Metropolitan Borough Council,http://www.sandwell.gov.uk/info/200202/performance_and_spending/1079/payments_over_500,21-Oct-2022,Individual School Budgets With Inclusion,FIRST STEPS DAY NURSERY,Individual School Budgets With Inclusion,7535.33,Grant Payments,2223P07_CR00654,51155
Sandwell Metropolitan Borough Council,http://www.sandwell.gov.uk/info/200202/performance_and_spending/1079/payments_over_500,21-Oct-2022,Individual School Budgets With Inclusion,FIRST STEPS OLDBURY,Individual School Budgets With Inclusion,3403.05,Grant Payments,2223P07_CR00655,118886
Sandwell Metropolitan Borough Council,http://www.sandwell.gov.uk/info/200202/performance_and_spending/1079/payments_over_500,21-Oct-2022,Individual School Budgets With Inclusion,GENIUS GEMS,Individual School Budgets With Inclusion,6627.39,Grant Payments,2223P07_CR00656,160606
Sandwell Metropolitan Borough Council,http://www.sandwell.gov.uk/info/200202/performance_and_spending/1079/payments_over_500,21-Oct-2022,Individual School Budgets With Inclusion,GNG NURSERY,Individual School Budgets With Inclusion,7292.25,Grant Payments,2223P07_CR00657,114805
Sandwell Metropolitan Borough Council,http://www.sandwell.gov.uk/info/200202/performance_and_spending/1079/payments_over_500,21-Oct-2022,Individual School Budgets With Inclusion,HUMPTY DUMPTYS DAY NURSERY,Individual School Budgets With Inclusion,7292.25,Grant Payments,2223P07_CR00658,08510771
Sandwell Metropolitan Borough Council,http://www.sandwell.gov.uk/info/200202/performance_and_spending/1079/payments_over_500,21-Oct-2022,Individual School Budgets With Inclusion,JUNIPER'S PRESCHOOL,Individual School Budgets With Inclusion,3366.30,Grant Payments,2223P07_CR00659,154579
Sandwell Metropolitan Borough Council,http://www.sandwell.gov.uk/info/200202/performance_and_spending/1079/payments_over_500,21-Oct-2022,Individual School Budgets With Inclusion,K L THAW CHILDMINDING,Individual School Budgets With Inclusion,951.30,Grant Payments,2223P07_CR00660,104746
Sandwell Metropolitan Borough Council,http://www.sandwell.gov.uk/info/200202/performance_and_spending/1079/payments_over_500,21-Oct-2022,Individual School Budgets With Inclusion,KANGAROO POUCH AT GREAT BRIDGE,Individual School Budgets With Inclusion,6563.03,Grant Payments,2223P07_CR00661,129771
Sandwell Metropolitan Borough Council,http://www.sandwell.gov.uk/info/200202/performance_and_spending/1079/payments_over_500,21-Oct-2022,Individual School Budgets With Inclusion,KANGAROO POUCH AT TIVIDALE,Individual School Budgets With Inclusion,4994.33,Grant Payments,2223P07_CR00662,113715
Sandwell Metropolitan Borough Council,http://www.sandwell.gov.uk/info/200202/performance_and_spending/1079/payments_over_500,21-Oct-2022,Individual School Budgets With Inclusion,KANGAROO POUCH CHARLEMONT,Individual School Budgets With Inclusion,3973.20,Grant Payments,2223P07_CR00663,117283
Sandwell Metropolitan Borough Council,http://www.sandwell.gov.uk/info/200202/performance_and_spending/1079/payments_over_500,21-Oct-2022,Individual School Budgets With Inclusion,KANGAROO POUCH LIMITED,Individual School Budgets With Inclusion,4087.65,Grant Payments,2223P07_CR00664,106981
Sandwell Metropolitan Borough Council,http://www.sandwell.gov.uk/info/200202/performance_and_spending/1079/payments_over_500,21-Oct-2022,Individual School Budgets With Inclusion,LAVENDER FARM DAY NURSERY,Individual School Budgets With Inclusion,25279.80,Grant Payments,2223P07_CR00665,65596
Sandwell Metropolitan Borough Council,http://www.sandwell.gov.uk/info/200202/performance_and_spending/1079/payments_over_500,21-Oct-2022,Individual School Budgets With Inclusion,LILLIPUT LODGE CHILDRENS DAY NURSERY,Individual School Budgets With Inclusion,5945.63,Grant Payments,2223P07_CR00666,2980
Sandwell Metropolitan Borough Council,http://www.sandwell.gov.uk/info/200202/performance_and_spending/1079/payments_over_500,21-Oct-2022,Individual School Budgets With Inclusion,LITTLE ACADEMY NURSERY,Individual School Budgets With Inclusion,721.35,Grant Payments,2223P07_CR00667,81904
Sandwell Metropolitan Borough Council,http://www.sandwell.gov.uk/info/200202/performance_and_spending/1079/payments_over_500,21-Oct-2022,Individual School Budgets With Inclusion,LITTLE ANGELS DAY NURSERY LIMITED,Individual School Budgets With Inclusion,2916.90,Grant Payments,2223P07_CR00668,10207
Sandwell Metropolitan Borough Council,http://www.sandwell.gov.uk/info/200202/performance_and_spending/1079/payments_over_500,21-Oct-2022,Individual School Budgets With Inclusion,LITTLE EXPLORERS (WEST MIDLANDS) LTD,Individual School Budgets With Inclusion,10938.38,Grant Payments,2223P07_CR00669,114804
Sandwell Metropolitan Borough Council,http://www.sandwell.gov.uk/info/200202/performance_and_spending/1079/payments_over_500,21-Oct-2022,Individual School Budgets With Inclusion,LITTLE LEARNERS LTD,Individual School Budgets With Inclusion,6208.13,Grant Payments,2223P07_CR00670,01424133
Sandwell Metropolitan Borough Council,http://www.sandwell.gov.uk/info/200202/performance_and_spending/1079/payments_over_500,21-Oct-2022,Individual School Budgets With Inclusion,LITTLE LEGEND NURSERIES LTD,Individual School Budgets With Inclusion,2558.33,Grant Payments,2223P07_CR00671,117890
Sandwell Metropolitan Borough Council,http://www.sandwell.gov.uk/info/200202/performance_and_spending/1079/payments_over_500,21-Oct-2022,Individual School Budgets With Inclusion,LITTLE SAPLINGS CHILDCARE CENTRES,Individual School Budgets With Inclusion,8415.75,Grant Payments,2223P07_CR00672,131043
Sandwell Metropolitan Borough Council,http://www.sandwell.gov.uk/info/200202/performance_and_spending/1079/payments_over_500,21-Oct-2022,Individual School Budgets With Inclusion,LITTLE STEPPERS,Individual School Budgets With Inclusion,3476.55,Grant Payments,2223P07_CR00673,120240
Sandwell Metropolitan Borough Council,http://www.sandwell.gov.uk/info/200202/performance_and_spending/1079/payments_over_500,21-Oct-2022,Individual School Budgets With Inclusion,LITTLE VALERS PRE SCHOOL,Individual School Budgets With Inclusion,11177.78,Grant Payments,2223P07_CR00674,99107
Sandwell Metropolitan Borough Council,http://www.sandwell.gov.uk/info/200202/performance_and_spending/1079/payments_over_500,21-Oct-2022,Individual School Budgets With Inclusion,LITTLE WENDY HOUSE DAY NURSERY,Individual School Budgets With Inclusion,13855.28,Grant Payments,2223P07_CR00675,91544
Sandwell Metropolitan Borough Council,http://www.sandwell.gov.uk/info/200202/performance_and_spending/1079/payments_over_500,21-Oct-2022,Individual School Budgets With Inclusion,LOLA BELLES PRIVATE DAY NURSERY,Individual School Budgets With Inclusion,5530.35,Grant Payments,2223P07_CR00676,89271
Sandwell Metropolitan Borough Council,http://www.sandwell.gov.uk/info/200202/performance_and_spending/1079/payments_over_500,21-Oct-2022,Individual School Budgets With Inclusion,MINI MONKEYS LTD,Individual School Budgets With Inclusion,6319.95,Grant Payments,2223P07_CR00677,114818
Sandwell Metropolitan Borough Council,http://www.sandwell.gov.uk/info/200202/performance_and_spending/1079/payments_over_500,21-Oct-2022,Individual School Budgets With Inclusion,MINNS LIMITED,Individual School Budgets With Inclusion,4718.18,Grant Payments,2223P07_CR00678,120067
Sandwell Metropolitan Borough Council,http://www.sandwell.gov.uk/info/200202/performance_and_spending/1079/payments_over_500,21-Oct-2022,Individual School Budgets With Inclusion,MOORLANDS LITTLE LEARNERS PLAYGROUP,Individual School Budgets With Inclusion,7292.25,Grant Payments,2223P07_CR00679,46390
Sandwell Metropolitan Borough Council,http://www.sandwell.gov.uk/info/200202/performance_and_spending/1079/payments_over_500,21-Oct-2022,Individual School Budgets With Inclusion,N & K VARMA LIMITED T/A (KIDDIES PLAYHOUSE TIPTON),Individual School Budgets With Inclusion,4618.43,Grant Payments,2223P07_CR00680,26124
Sandwell Metropolitan Borough Council,http://www.sandwell.gov.uk/info/200202/performance_and_spending/1079/payments_over_500,21-Oct-2022,Individual School Budgets With Inclusion,OUR LADY AND ST HUBERTS CATHOLIC PRIMARY SCHOOL            ,Individual School Budgets With Inclusion,4018.84,Grant Payments,2223P07_CR00681,61053
Sandwell Metropolitan Borough Council,http://www.sandwell.gov.uk/info/200202/performance_and_spending/1079/payments_over_500,21-Oct-2022,Individual School Budgets With Inclusion,PERRYFIELDS PRE SCHOOL,Individual School Budgets With Inclusion,3963.75,Grant Payments,2223P07_CR00682,18879
Sandwell Metropolitan Borough Council,http://www.sandwell.gov.uk/info/200202/performance_and_spending/1079/payments_over_500,21-Oct-2022,Individual School Budgets With Inclusion,PITTA PATTA DAYCARE,Individual School Budgets With Inclusion,3476.55,Grant Payments,2223P07_CR00683,114742
Sandwell Metropolitan Borough Council,http://www.sandwell.gov.uk/info/200202/performance_and_spending/1079/payments_over_500,21-Oct-2022,Individual School Budgets With Inclusion,PLAYHOUSE DAY NURSERY,Individual School Budgets With Inclusion,3889.20,Grant Payments,2223P07_CR00684,01586669
Sandwell Metropolitan Borough Council,http://www.sandwell.gov.uk/info/200202/performance_and_spending/1079/payments_over_500,21-Oct-2022,Individual School Budgets With Inclusion,RAK DAY CARE LTD T/A HAPPY VALLEY PRE SCHOOL LTD,Individual School Budgets With Inclusion,5590.73,Grant Payments,2223P07_CR00685,01572212
Sandwell Metropolitan Borough Council,http://www.sandwell.gov.uk/info/200202/performance_and_spending/1079/payments_over_500,21-Oct-2022,Individual School Budgets With Inclusion,RARE WOOD LIMITED,Individual School Budgets With Inclusion,8691.38,Grant Payments,2223P07_CR00686,20167
Sandwell Metropolitan Borough Council,http://www.sandwell.gov.uk/info/200202/performance_and_spending/1079/payments_over_500,21-Oct-2022,Individual School Budgets With Inclusion,ROOTS & SHOOTS PLAYGROUP,Individual School Budgets With Inclusion,5001.15,Grant Payments,2223P07_CR00687,75502
Sandwell Metropolitan Borough Council,http://www.sandwell.gov.uk/info/200202/performance_and_spending/1079/payments_over_500,21-Oct-2022,Individual School Budgets With Inclusion,ROWLEY VILLAGE DAY NURSERY,Individual School Budgets With Inclusion,9479.93,Grant Payments,2223P07_CR00688,24228
Sandwell Metropolitan Borough Council,http://www.sandwell.gov.uk/info/200202/performance_and_spending/1079/payments_over_500,21-Oct-2022,Individual School Budgets With Inclusion,SADWICA DAY NURSERY,Individual School Budgets With Inclusion,4966.50,Grant Payments,2223P07_CR00689,01667892
Sandwell Metropolitan Borough Council,http://www.sandwell.gov.uk/info/200202/performance_and_spending/1079/payments_over_500,21-Oct-2022,Individual School Budgets With Inclusion,SANDWELL NHS TRUST DAY NURSERY,Individual School Budgets With Inclusion,10209.15,Grant Payments,2223P07_CR00690,40788
Sandwell Metropolitan Borough Council,http://www.sandwell.gov.uk/info/200202/performance_and_spending/1079/payments_over_500,21-Oct-2022,Individual School Budgets With Inclusion,SANTOS DAY NURSERIES,Individual School Budgets With Inclusion,7213.50,Grant Payments,2223P07_CR00691,129262
Sandwell Metropolitan Borough Council,http://www.sandwell.gov.uk/info/200202/performance_and_spending/1079/payments_over_500,21-Oct-2022,Individual School Budgets With Inclusion,SMARTY PANTS @ LIGHTWOODS HOUSE LTD,Individual School Budgets With Inclusion,6011.25,Grant Payments,2223P07_CR00692,130645
Sandwell Metropolitan Borough Council,http://www.sandwell.gov.uk/info/200202/performance_and_spending/1079/payments_over_500,21-Oct-2022,Individual School Budgets With Inclusion,SMARTY PANTS PRIVATE DAY NURSERY LTD,Individual School Budgets With Inclusion,8415.75,Grant Payments,2223P07_CR00693,74037
Sandwell Metropolitan Borough Council,http://www.sandwell.gov.uk/info/200202/performance_and_spending/1079/payments_over_500,21-Oct-2022,Individual School Budgets With Inclusion,SPON LANE DAY NURSERY LIMITED,Individual School Budgets With Inclusion,5711.48,Grant Payments,2223P07_CR00694,127024
Sandwell Metropolitan Borough Council,http://www.sandwell.gov.uk/info/200202/performance_and_spending/1079/payments_over_500,21-Oct-2022,Individual School Budgets With Inclusion,ST HUBERTS PRE-SCHOOL PLAYGROUP 2,Individual School Budgets With Inclusion,12022.50,Grant Payments,2223P07_CR00695,123074
Sandwell Metropolitan Borough Council,http://www.sandwell.gov.uk/info/200202/performance_and_spending/1079/payments_over_500,21-Oct-2022,Individual School Budgets With Inclusion,ST MICHAELS DAY NURSERY,Individual School Budgets With Inclusion,1738.28,Grant Payments,2223P07_CR00696,01698538
Sandwell Metropolitan Borough Council,http://www.sandwell.gov.uk/info/200202/performance_and_spending/1079/payments_over_500,21-Oct-2022,Individual School Budgets With Inclusion,STACEY PARTRIDGE (STEP UP CHILDCARE),Individual School Budgets With Inclusion,911.66,Grant Payments,2223P07_CR00697,151395
Sandwell Metropolitan Borough Council,http://www.sandwell.gov.uk/info/200202/performance_and_spending/1079/payments_over_500,21-Oct-2022,Individual School Budgets With Inclusion,STEPPING STONES NURSERY,Individual School Budgets With Inclusion,3366.30,Grant Payments,2223P07_CR00698,50029
Sandwell Metropolitan Borough Council,http://www.sandwell.gov.uk/info/200202/performance_and_spending/1079/payments_over_500,21-Oct-2022,Individual School Budgets With Inclusion,THE FAMILY NURSERY COMPANY LTD,Individual School Budgets With Inclusion,7049.18,Grant Payments,2223P07_CR00699,89879
Sandwell Metropolitan Borough Council,http://www.sandwell.gov.uk/info/200202/performance_and_spending/1079/payments_over_500,21-Oct-2022,Individual School Budgets With Inclusion,THE PATCH DAY NURSERY,Individual School Budgets With Inclusion,7340.87,Grant Payments,2223P07_CR00700,126020
Sandwell Metropolitan Borough Council,http://www.sandwell.gov.uk/info/200202/performance_and_spending/1079/payments_over_500,21-Oct-2022,Individual School Budgets With Inclusion,THE RIVERS MULTI ACADEMY TRUST,Individual School Budgets With Inclusion,11181.45,Grant Payments,2223P07_CR00701,61014
Sandwell Metropolitan Borough Council,http://www.sandwell.gov.uk/info/200202/performance_and_spending/1079/payments_over_500,21-Oct-2022,Individual School Budgets With Inclusion,THE TODDLER HOUSE LIMITED,Individual School Budgets With Inclusion,6806.10,Grant Payments,2223P07_CR00702,122166
Sandwell Metropolitan Borough Council,http://www.sandwell.gov.uk/info/200202/performance_and_spending/1079/payments_over_500,21-Oct-2022,Individual School Budgets With Inclusion,THE WONDER YEARS DAY NURSERY LIMITED,Individual School Budgets With Inclusion,6076.88,Grant Payments,2223P07_CR00703,01647249
Sandwell Metropolitan Borough Council,http://www.sandwell.gov.uk/info/200202/performance_and_spending/1079/payments_over_500,21-Oct-2022,Individual School Budgets With Inclusion,TICK TOCK DAY NURSERY LTD,Individual School Budgets With Inclusion,11424.53,Grant Payments,2223P07_CR00704,9391
Sandwell Metropolitan Borough Council,http://www.sandwell.gov.uk/info/200202/performance_and_spending/1079/payments_over_500,21-Oct-2022,Individual School Budgets With Inclusion,TIDDLYWINKS KIDDYS NURSERY LIMITED,Individual School Budgets With Inclusion,10938.38,Grant Payments,2223P07_CR00705,110667
Sandwell Metropolitan Borough Council,http://www.sandwell.gov.uk/info/200202/performance_and_spending/1079/payments_over_500,21-Oct-2022,Individual School Budgets With Inclusion,TIMBERTREE NEIGHBOURHOOD NURSERY,Individual School Budgets With Inclusion,8415.75,Grant Payments,2223P07_CR00706,135664
Sandwell Metropolitan Borough Council,http://www.sandwell.gov.uk/info/200202/performance_and_spending/1079/payments_over_500,21-Oct-2022,Individual School Budgets With Inclusion,TINY TOEZ LIMITED,Individual School Budgets With Inclusion,6251.70,Grant Payments,2223P07_CR00707,23618
Sandwell Metropolitan Borough Council,http://www.sandwell.gov.uk/info/200202/performance_and_spending/1079/payments_over_500,21-Oct-2022,Individual School Budgets With Inclusion,TINY WOODS PRE SCHOOL,Individual School Budgets With Inclusion,9137.10,Grant Payments,2223P07_CR00708,91788
Sandwell Metropolitan Borough Council,http://www.sandwell.gov.uk/info/200202/performance_and_spending/1079/payments_over_500,21-Oct-2022,Individual School Budgets With Inclusion,TIP TOP DAY NURSERY WEDNESBURY,Individual School Budgets With Inclusion,6456.45,Grant Payments,2223P07_CR00709,147082
Sandwell Metropolitan Borough Council,http://www.sandwell.gov.uk/info/200202/performance_and_spending/1079/payments_over_500,21-Oct-2022,Individual School Budgets With Inclusion,TIPTON EXPLORERS NURSERY,Individual School Budgets With Inclusion,4809.00,Grant Payments,2223P07_CR00710,132351
Sandwell Metropolitan Borough Council,http://www.sandwell.gov.uk/info/200202/performance_and_spending/1079/payments_over_500,21-Oct-2022,Individual School Budgets With Inclusion,TIPTON NURSERY,Individual School Budgets With Inclusion,6456.45,Grant Payments,2223P07_CR00711,89881
Sandwell Metropolitan Borough Council,http://www.sandwell.gov.uk/info/200202/performance_and_spending/1079/payments_over_500,21-Oct-2022,Individual School Budgets With Inclusion,TIPTON TODDLERS DAY NURSERY,Individual School Budgets With Inclusion,9860.74,Grant Payments,2223P07_CR00712,4397
Sandwell Metropolitan Borough Council,http://www.sandwell.gov.uk/info/200202/performance_and_spending/1079/payments_over_500,21-Oct-2022,Individual School Budgets With Inclusion,TULIP DAY NURSERY LTD,Individual School Budgets With Inclusion,1738.28,Grant Payments,2223P07_CR00713,152250
Sandwell Metropolitan Borough Council,http://www.sandwell.gov.uk/info/200202/performance_and_spending/1079/payments_over_500,21-Oct-2022,Individual School Budgets With Inclusion,TWO STEPS PRE-SCHOOL,Individual School Budgets With Inclusion,2673.83,Grant Payments,2223P07_CR00714,109186
Sandwell Metropolitan Borough Council,http://www.sandwell.gov.uk/info/200202/performance_and_spending/1079/payments_over_500,21-Oct-2022,Individual School Budgets With Inclusion,UNICORN DAY NURSERY,Individual School Budgets With Inclusion,27315.76,Grant Payments,2223P07_CR00715,91543
Sandwell Metropolitan Borough Council,http://www.sandwell.gov.uk/info/200202/performance_and_spending/1079/payments_over_500,21-Oct-2022,Individual School Budgets With Inclusion,UNITED KIDS CHILDCARE,Individual School Budgets With Inclusion,6059.34,Grant Payments,2223P07_CR00716,134806
Sandwell Metropolitan Borough Council,http://www.sandwell.gov.uk/info/200202/performance_and_spending/1079/payments_over_500,21-Oct-2022,Individual School Budgets With Inclusion,UNITED KIDS LIMITED,Individual School Budgets With Inclusion,5104.58,Grant Payments,2223P07_CR00717,136360
Sandwell Metropolitan Borough Council,http://www.sandwell.gov.uk/info/200202/performance_and_spending/1079/payments_over_500,21-Oct-2022,Individual School Budgets With Inclusion,WEST BROMWICH & DISTRICT Y.M.C.A. COMMUNITY ENTERPRISES,Individual School Budgets With Inclusion,10423.98,Grant Payments,2223P07_CR00718,01088376
Sandwell Metropolitan Borough Council,http://www.sandwell.gov.uk/info/200202/performance_and_spending/1079/payments_over_500,21-Oct-2022,Individual School Budgets With Inclusion,WHITECREST PRIMARY SCHOOL                ,Individual School Budgets With Inclusion,4885.65,Grant Payments,2223P07_CR00719,38087
Sandwell Metropolitan Borough Council,http://www.sandwell.gov.uk/info/200202/performance_and_spending/1079/payments_over_500,21-Oct-2022,Individual School Budgets With Inclusion,WIGGLES & GIGGLES LTD,Individual School Budgets With Inclusion,13465.20,Grant Payments,2223P07_CR00720,01674799
Sandwell Metropolitan Borough Council,http://www.sandwell.gov.uk/info/200202/performance_and_spending/1079/payments_over_500,21-Oct-2022,Individual School Budgets With Inclusion,WONDERLAND CHILDRENS DAY NURSERY (UK) LTD,Individual School Budgets With Inclusion,14827.58,Grant Payments,2223P07_CR00721,50852
Sandwell Metropolitan Borough Council,http://www.sandwell.gov.uk/info/200202/performance_and_spending/1079/payments_over_500,21-Oct-2022,Individual School Budgets With Inclusion,ANNE MARIE JACKSON-HEPBURN,Individual School Budgets With Inclusion,951.30,Grant Payments,2223P07_CR00722,162845
Sandwell Metropolitan Borough Council,http://www.sandwell.gov.uk/info/200202/performance_and_spending/1079/payments_over_500,21-Oct-2022,Individual School Budgets With Inclusion,CARA PRATT,Individual School Budgets With Inclusion,961.80,Grant Payments,2223P07_CR00723,140537
Sandwell Metropolitan Borough Council,http://www.sandwell.gov.uk/info/200202/performance_and_spending/1079/payments_over_500,21-Oct-2022,Individual School Budgets With Inclusion,CAROLINE HENDERSON,Individual School Budgets With Inclusion,713.48,Grant Payments,2223P07_CR00724,129980
Sandwell Metropolitan Borough Council,http://www.sandwell.gov.uk/info/200202/performance_and_spending/1079/payments_over_500,21-Oct-2022,Individual School Budgets With Inclusion,CAROLINE TAVARES,Individual School Budgets With Inclusion,713.48,Grant Payments,2223P07_CR00725,112188
Sandwell Metropolitan Borough Council,http://www.sandwell.gov.uk/info/200202/performance_and_spending/1079/payments_over_500,21-Oct-2022,Individual School Budgets With Inclusion,CLAIRE PARTRIDGE,Individual School Budgets With Inclusion,713.48,Grant Payments,2223P07_CR00726,123143
Sandwell Metropolitan Borough Council,http://www.sandwell.gov.uk/info/200202/performance_and_spending/1079/payments_over_500,21-Oct-2022,Individual School Budgets With Inclusion,CLARE O'DRISCOLL,Individual School Budgets With Inclusion,642.13,Grant Payments,2223P07_CR00727,129659
Sandwell Metropolitan Borough Council,http://www.sandwell.gov.uk/info/200202/performance_and_spending/1079/payments_over_500,21-Oct-2022,Individual School Budgets With Inclusion,GAIL FAY PREECE,Individual School Budgets With Inclusion,501.90,Grant Payments,2223P07_CR00728,61415
Sandwell Metropolitan Borough Council,http://www.sandwell.gov.uk/info/200202/performance_and_spending/1079/payments_over_500,21-Oct-2022,Individual School Budgets With Inclusion,GEMMA NOONE,Individual School Budgets With Inclusion,501.90,Grant Payments,2223P07_CR00729,153866
Sandwell Metropolitan Borough Council,http://www.sandwell.gov.uk/info/200202/performance_and_spending/1079/payments_over_500,21-Oct-2022,Individual School Budgets With Inclusion,JACQUELINE HEHIR,Individual School Budgets With Inclusion,1701.53,Grant Payments,2223P07_CR00730,75203
Sandwell Metropolitan Borough Council,http://www.sandwell.gov.uk/info/200202/performance_and_spending/1079/payments_over_500,21-Oct-2022,Individual School Budgets With Inclusion,JENNIFER LOUISE LEATHERLAND,Individual School Budgets With Inclusion,1701.53,Grant Payments,2223P07_CR00731,131850
Sandwell Metropolitan Borough Council,http://www.sandwell.gov.uk/info/200202/performance_and_spending/1079/payments_over_500,21-Oct-2022,Individual School Budgets With Inclusion,KAI DRUMS,Individual School Budgets With Inclusion,6896.93,Grant Payments,2223P07_CR00732,120729
Sandwell Metropolitan Borough Council,http://www.sandwell.gov.uk/info/200202/performance_and_spending/1079/payments_over_500,21-Oct-2022,Individual School Budgets With Inclusion,LEEANNE ADAMS,Individual School Budgets With Inclusion,713.48,Grant Payments,2223P07_CR00733,134517
Sandwell Metropolitan Borough Council,http://www.sandwell.gov.uk/info/200202/performance_and_spending/1079/payments_over_500,21-Oct-2022,Individual School Budgets With Inclusion,MONIQUE BROWN.,Individual School Budgets With Inclusion,752.85,Grant Payments,2223P07_CR00734,127112
Sandwell Metropolitan Borough Council,http://www.sandwell.gov.uk/info/200202/performance_and_spending/1079/payments_over_500,21-Oct-2022,Individual School Budgets With Inclusion,NATALIE WESTON,Individual School Budgets With Inclusion,951.30,Grant Payments,2223P07_CR00735,152056
Sandwell Metropolitan Borough Council,http://www.sandwell.gov.uk/info/200202/performance_and_spending/1079/payments_over_500,21-Oct-2022,Individual School Budgets With Inclusion,ROWINA WINDSOR,Individual School Budgets With Inclusion,729.23,Grant Payments,2223P07_CR00736,138305
Sandwell Metropolitan Borough Council,http://www.sandwell.gov.uk/info/200202/performance_and_spending/1079/payments_over_500,21-Oct-2022,Individual School Budgets With Inclusion,SARAH HOWEY,Individual School Budgets With Inclusion,713.48,Grant Payments,2223P07_CR00737,140888
Sandwell Metropolitan Borough Council,http://www.sandwell.gov.uk/info/200202/performance_and_spending/1079/payments_over_500,21-Oct-2022,Individual School Budgets With Inclusion,SATVINDER KAUR,Individual School Budgets With Inclusion,1189.13,Grant Payments,2223P07_CR00738,131042
Sandwell Metropolitan Borough Council,http://www.sandwell.gov.uk/info/200202/performance_and_spending/1079/payments_over_500,21-Oct-2022,Individual School Budgets With Inclusion,VANESSA BILLINGSLEY,Individual School Budgets With Inclusion,713.48,Grant Payments,2223P07_CR00739,125216
Sandwell Metropolitan Borough Council,http://www.sandwell.gov.uk/info/200202/performance_and_spending/1079/payments_over_500,21-Oct-2022,Individual School Budgets With Inclusion,WENDY MAXWELL,Individual School Budgets With Inclusion,1701.53,Grant Payments,2223P07_CR00740,37344
Sandwell Metropolitan Borough Council,http://www.sandwell.gov.uk/info/200202/performance_and_spending/1079/payments_over_500,01-Oct-2022,Individual School Budgets With Inclusion,HADLEY TRAVEL,Individual School Budgets With Inclusion,500.00,External Contract Hire,2223P07_CR00741,06003036
Sandwell Metropolitan Borough Council,http://www.sandwell.gov.uk/info/200202/performance_and_spending/1079/payments_over_500,12-Oct-2022,Individual School Budgets With Inclusion,EG (TRAINING) LTD,Individual School Budgets With Inclusion,511.67,Other Local Authorities,2223P07_CR00742,146780
Sandwell Metropolitan Borough Council,http://www.sandwell.gov.uk/info/200202/performance_and_spending/1079/payments_over_500,16-Oct-2022,Individual School Budgets With Inclusion,SONOVA UK,Individual School Budgets With Inclusion,548.89,Equipment & Furniture ,2223P07_CR00743,01576192
Sandwell Metropolitan Borough Council,http://www.sandwell.gov.uk/info/200202/performance_and_spending/1079/payments_over_500,01-Oct-2022,Individual School Budgets With Inclusion,NEC SOFTWARE SOLUTIONS UK LTD,Individual School Budgets With Inclusion,625.00,Materials & Consumables,2223P07_CR00744,56043
Sandwell Metropolitan Borough Council,http://www.sandwell.gov.uk/info/200202/performance_and_spending/1079/payments_over_500,01-Oct-2022,Individual School Budgets With Inclusion,JENNIFER NOCK TRAINING AND CONSULTANCY,Individual School Budgets With Inclusion,680.00,Externally Purchased Professional Services ,2223P07_CR00745,140689
Sandwell Metropolitan Borough Council,http://www.sandwell.gov.uk/info/200202/performance_and_spending/1079/payments_over_500,01-Oct-2022,Individual School Budgets With Inclusion,SANDWELL FUTURES LTD,Individual School Budgets With Inclusion,691.47,Other Establishments,2223P07_CR00746,88151
Sandwell Metropolitan Borough Council,http://www.sandwell.gov.uk/info/200202/performance_and_spending/1079/payments_over_500,16-Oct-2022,Individual School Budgets With Inclusion,CLB MUSIC SERVICES LTD,Individual School Budgets With Inclusion,720.00,Externally Purchased Professional Services ,2223P07_CR00747,163924
Sandwell Metropolitan Borough Council,http://www.sandwell.gov.uk/info/200202/performance_and_spending/1079/payments_over_500,01-Oct-2022,Individual School Budgets With Inclusion,RENAISSANCE CREATIVE DESIGN & PRINT LTD,Individual School Budgets With Inclusion,795.00,Advertising & Publicity,2223P07_CR00748,97376
Sandwell Metropolitan Borough Council,http://www.sandwell.gov.uk/info/200202/performance_and_spending/1079/payments_over_500,01-Oct-2022,Individual School Budgets With Inclusion,BOOKWORMS DAYCARE LIMITED,Individual School Budgets With Inclusion,855.00,Externally Purchased Professional Services ,2223P07_CR00749,114741
Sandwell Metropolitan Borough Council,http://www.sandwell.gov.uk/info/200202/performance_and_spending/1079/payments_over_500,01-Oct-2022,Individual School Budgets With Inclusion,ASCEND HEALTH AND CHILDCARE TRAINING,Individual School Budgets With Inclusion,1080.00,Other Establishments,2223P07_CR00750,136631
